Workbook

Sheet Power calculations
A1: Input from the ETM frontend
B2: 3
B3: Type of results (chart) | C3: Power [kW] | E3: (power is the easiest and most interesting to start with. From there load can be calculated)
B4: Future year | C4: 2030
B5: Electricity demand growth | C5: 0.01 | D5: per year
B7: Solar PV | C7: =D7/100 -> 1 | D7: 100
B8: 3kW uncontrolled charging | C8: 0 | D8: 0
B9: Electric boiler | C9: 0 | D9: 0
B10: Micro CHP | C10: 1 | D10: 100
B11: Electric heater | C11: 0 | D11: 0
B12: Ground source heat pump | C12: 0 | D12: 0
B13: Bivalent heat pump | C13: 0 | D13: 0
B14: Air conditioning | C14: 0 | D14: 0
B17: (only the technologies currently found in ETM have been included here although the data required to add more is available)
A33: Input from the backend (in the future these things can be moved to the front end to add functionality)
B34: (in future versions it is interesting to allow users to define some of these things for added functionality)
B36: Transformer capacity | C36: 160 | D36: kVA | E36: (this can be made network dependent or left to the user)
B37: Cable ampacity | C37: 240 | D37: A | E37: (or cable type, this information is available for different types of cables)
B38: # of houses per transformer | C38: 51
B39: # of houses per cable | C39: 21
B40: Electricity use | C40: 4000 | D40: kWh
B41: Type of household | C41: Average
B42: Solar panel efficiency | C42: 0.11542 | E42: (the solar panel data is currently not used in this calculation, however the solar profile below could be adjusted to take these into account)
B43: Solar panel area | C43: 15 | D43: m2
A45: Backend data
B47: Future electricity use | C47: =C40*(1+C5)^(C4-YEAR(TODAY())) -> 4832.435802 | D47: kWh
B49: Strand-Axelsson coefficients | E49: (The Strand-Axelsson equation is used to determine the correlation between yearly electricity use and peak load)
C50: Alpha | D50: Beta
B51: Average | C51: 0.0001847 | D51: 0.0437 | E51: (These values were empirically determined by network operators, and vary according to user type)
B52: City | C52: 0.000189 | D52: 0.0325
B53: Village | C53: 0.0002332 | D53: 0.0159
B54: Countryside | C54: 0.0002319 | D54: 0.0234
B56: Converter attributes [kW]
C57: P_max,1 | D57: P_max,inf
B58: Household load | C58: =VLOOKUP(C41,B50:D54,2,FALSE)*C47+VLOOKUP(C41,B50:D54,3,FALSE)*SQRT(C47) -> 3.930388006 | D58: 1.066370486 | E58: (P_max,1 of the household load is calculated from the electricity use to take into account the growth of electricity demand)
B59: Solar PV | C59: 1.5437425 | D59: 1.5437425 | E59: (Remaining values for P_max,1 need to be specified)
B60: 3kW uncontrolled charging | C60: 3 | D60: 0.928035 | E60: (Values for P_max,inf can be extracted from the load profiles below. P_max,inf = max value in the average profile)
B61: Electric boiler | C61: 5.7 | D61: 1.433415525
B62: Micro CHP | C62: 1 | D62: 0.8985202753
B63: Electric heater | C63: 5.5 | D63: 5.12905971
B64: Ground source heat pump | C64: 1.583333333 | D64: 1.521147228
B65: Bivalent heat pump | C65: 3.75 | D65: 2.05
B66: Air conditioning | C66: 1.583333333 | D66: 1.521147228
B68: Average load profiles [kW]
C69: 00:00:00 | D69: 00:15:00 | E69: 00:30:00 | F69: 00:45:00 | G69: 01:00:00 | H69: 01:15:00 | I69: 01:30:00 | J69: 01:45:00 | K69: 02:00:00 | L69: 02:15:00 | M69: 02:30:00 | N69: 02:45:00 | O69: 03:00:00 | P69: 03:15:00 | Q69: 03:30:00 | R69: 03:45:00 | S69: 04:00:00 | T69: 04:15:00 | U69: 04:30:00 | V69: 04:45:00 | W69: 05:00:00 | X69: 05:15:00 | Y69: 05:30:00 | Z69: 05:45:00 | AA69: 06:00:00 | AB69: 06:15:00 | AC69: 06:30:00 | AD69: 06:45:00 | AE69: 07:00:00 | AF69: 07:15:00 | AG69: 07:30:00 | AH69: 07:45:00 | AI69: 08:00:00 | AJ69: 08:15:00 | AK69: 08:30:00 | AL69: 08:45:00 | AM69: 09:00:00 | AN69: 09:15:00 | AO69: 09:30:00 | AP69: 09:45:00 | AQ69: 10:00:00 | AR69: 10:15:00 | AS69: 10:30:00 | AT69: 10:45:00 | AU69: 11:00:00 | AV69: 11:15:00 | AW69: 11:30:00 | AX69: 11:45:00 | AY69: 12:00:00 | AZ69: 12:15:00 | BA69: 12:30:00 | BB69: 12:45:00 | BC69: 13:00:00 | BD69: 13:15:00 | BE69: 13:30:00 | BF69: 13:45:00 | BG69: 14:00:00 | BH69: 14:15:00 | BI69: 14:30:00 | BJ69: 14:45:00 | BK69: 15:00:00 | BL69: 15:15:00 | BM69: 15:30:00 | BN69: 15:45:00 | BO69: 16:00:00 | BP69: 16:15:00 | BQ69: 16:30:00 | BR69: 16:45:00 | BS69: 17:00:00 | BT69: 17:15:00 | BU69: 17:30:00 | BV69: 17:45:00 | BW69: 18:00:00 | BX69: 18:15:00 | BY69: 18:30:00 | BZ69: 18:45:00 | CA69: 19:00:00 | CB69: 19:15:00 | CC69: 19:30:00 | CD69: 19:45:00 | CE69: 20:00:00 | CF69: 20:15:00 | CG69: 20:30:00 | CH69: 20:45:00 | CI69: 21:00:00 | CJ69: 21:15:00 | CK69: 21:30:00 | CL69: 21:45:00 | CM69: 22:00:00 | CN69: 22:15:00 | CO69: 22:30:00 | CP69: 22:45:00 | CQ69: 23:00:00 | CR69: 23:15:00 | CS69: 23:30:00 | CT69: 23:45:00 | CU69: 00:00:00 | CV69: 00:15:00 | CW69: 00:30:00 | CX69: 00:45:00 | CY69: 01:00:00 | CZ69: 01:15:00 | DA69: 01:30:00 | DB69: 01:45:00 | DC69: 02:00:00 | DD69: 02:15:00 | DE69: 02:30:00 | DF69: 02:45:00 | DG69: 03:00:00 | DH69: 03:15:00 | DI69: 03:30:00 | DJ69: 03:45:00 | DK69: 04:00:00 | DL69: 04:15:00 | DM69: 04:30:00 | DN69: 04:45:00 | DO69: 05:00:00 | DP69: 05:15:00 | DQ69: 05:30:00 | DR69: 05:45:00 | DS69: 06:00:00 | DT69: 06:15:00 | DU69: 06:30:00 | DV69: 06:45:00 | DW69: 07:00:00 | DX69: 07:15:00 | DY69: 07:30:00 | DZ69: 07:45:00 | EA69: 08:00:00 | EB69: 08:15:00 | EC69: 08:30:00 | ED69: 08:45:00 | EE69: 09:00:00 | EF69: 09:15:00 | EG69: 09:30:00 | EH69: 09:45:00 | EI69: 10:00:00 | EJ69: 10:15:00 | EK69: 10:30:00 | EL69: 10:45:00 | EM69: 11:00:00 | EN69: 11:15:00 | EO69: 11:30:00 | EP69: 11:45:00 | EQ69: 12:00:00 | ER69: 12:15:00 | ES69: 12:30:00 | ET69: 12:45:00 | EU69: 13:00:00 | EV69: 13:15:00 | EW69: 13:30:00 | EX69: 13:45:00 | EY69: 14:00:00 | EZ69: 14:15:00 | FA69: 14:30:00 | FB69: 14:45:00 | FC69: 15:00:00 | FD69: 15:15:00 | FE69: 15:30:00 | FF69: 15:45:00 | FG69: 16:00:00 | FH69: 16:15:00 | FI69: 16:30:00 | FJ69: 16:45:00 | FK69: 17:00:00 | FL69: 17:15:00 | FM69: 17:30:00 | FN69: 17:45:00 | FO69: 18:00:00 | FP69: 18:15:00 | FQ69: 18:30:00 | FR69: 18:45:00 | FS69: 19:00:00 | FT69: 19:15:00 | FU69: 19:30:00 | FV69: 19:45:00 | FW69: 20:00:00 | FX69: 20:15:00 | FY69: 20:30:00 | FZ69: 20:45:00 | GA69: 21:00:00 | GB69: 21:15:00 | GC69: 21:30:00 | GD69: 21:45:00 | GE69: 22:00:00 | GF69: 22:15:00 | GG69: 22:30:00 | GH69: 22:45:00 | GI69: 23:00:00 | GJ69: 23:15:00 | GK69: 23:30:00 | GL69: 23:45:00
B70: Household load | C70: 0.4780890514 | D70: 0.4463766514 | E70: 0.3997206857 | F70: 0.3778174629 | G70: 0.3431767543 | H70: 0.3276751029 | I70: 0.3048329829 | J70: 0.2959889657 | K70: 0.2789640686 | L70: 0.27102612 | M70: 0.2615517943 | N70: 0.2585775257 | O70: 0.2529375771 | P70: 0.25016028 | Q70: 0.2476062171 | R70: 0.2477244 | S70: 0.2488143086 | T70: 0.2461551943 | U70: 0.2433778971 | V70: 0.2442248743 | W70: 0.2454001371 | X70: 0.2471925771 | Y70: 0.2439031543 | Z70: 0.2501471486 | AA70: 0.2550386057 | AB70: 0.2634098914 | AC70: 0.2695882286 | AD70: 0.2765216229 | AE70: 0.2895742629 | AF70: 0.2992061657 | AG70: 0.3258432686 | AH70: 0.3440631257 | AI70: 0.3817568914 | AJ70: 0.4017100971 | AK70: 0.4354644343 | AL70: 0.4528373143 | AM70: 0.4908528 | AN70: 0.5060983886 | AO70: 0.5256510857 | AP70: 0.5276798914 | AQ70: 0.5347117714 | AR70: 0.5365633029 | AS70: 0.5395704 | AT70: 0.5419734514 | AU70: 0.54710784 | AV70: 0.5492351314 | AW70: 0.5530432457 | AX70: 0.5609024057 | AY70: 0.5711120914 | AZ70: 0.5779076057 | BA70: 0.5791222629 | BB70: 0.5825692629 | BC70: 0.5798050971 | BD70: 0.5767914343 | BE70: 0.5649140571 | BF70: 0.5611322057 | BG70: 0.5602392686 | BH70: 0.5528922343 | BI70: 0.542328 | BJ70: 0.5362021886 | BK70: 0.5336612571 | BL70: 0.5332476171 | BM70: 0.5365764343 | BN70: 0.5372855314 | BO70: 0.5337400457 | BP70: 0.5322430629 | BQ70: 0.5413562743 | BR70: 0.5514018171 | BS70: 0.5667524571 | BT70: 0.5768570914 | BU70: 0.5973486857 | BV70: 0.6099548571 | BW70: 0.6256600457 | BX70: 0.62307972 | BY70: 0.6168357257 | BZ70: 0.6136053943 | CA70: 0.61917312 | CB70: 0.6188382686 | CC70: 0.61659936 | CD70: 0.6151220743 | CE70: 0.6094821257 | CF70: 0.6039275314 | CG70: 0.5901526629 | CH70: 0.5838101829 | CI70: 0.5738434286 | CJ70: 0.5700024857 | CK70: 0.5682757029 | CL70: 0.5733378686 | CM70: 0.5865546514 | CN70: 0.5974274743 | CO70: 0.6136841829 | CP70: 0.6163629943 | CQ70: 0.61623168 | CR70: 0.5997648686 | CS70: 0.5638635429 | CT70: 0.5318162914 | CU70: 0.5294592 | CV70: 0.4993816629 | CW70: 0.4603090971 | CX70: 0.4360028229 | CY70: 0.3971206629 | CZ70: 0.3786053486 | DA70: 0.3535768457 | DB70: 0.3417782571 | DC70: 0.32392608 | DD70: 0.3131320457 | DE70: 0.3027319543 | DF70: 0.2960940171 | DG70: 0.2863439314 | DH70: 0.2799620571 | DI70: 0.27539232 | DJ70: 0.2726544171 | DK70: 0.2677760914 | DL70: 0.2615517943 | DM70: 0.2559840686 | DN70: 0.25287192 | DO70: 0.2539093029 | DP70: 0.2565684171 | DQ70: 0.2611841143 | DR70: 0.2674478057 | DS70: 0.2727660343 | DT70: 0.2783600229 | DU70: 0.2851621029 | DV70: 0.2976500914 | DW70: 0.3234796114 | DX70: 0.34299948 | DY70: 0.3750073371 | DZ70: 0.3969893486 | EA70: 0.43184016 | EB70: 0.4577222057 | EC70: 0.4988629714 | ED70: 0.52872384 | EE70: 0.5772576 | EF70: 0.5982744514 | EG70: 0.6310964571 | EH70: 0.6488041886 | EI70: 0.6771615086 | EJ70: 0.6868918971 | EK70: 0.6901090971 | EL70: 0.6879424114 | EM70: 0.6853292571 | EN70: 0.6860580514 | EO70: 0.6977515886 | EP70: 0.7071077314 | EQ70: 0.7282427657 | ER70: 0.7288533771 | ES70: 0.7215457371 | ET70: 0.7099244229 | EU70: 0.7035294171 | EV70: 0.7036672971 | EW70: 0.70851936 | EX70: 0.70782996 | EY70: 0.7028728457 | EZ70: 0.7004500971 | FA70: 0.6975940114 | FB70: 0.6969440057 | FC70: 0.6881919086 | FD70: 0.67846152 | FE70: 0.6780281829 | FF70: 0.6849812743 | FG70: 0.7166345829 | FH70: 0.7430681486 | FI70: 0.80944752 | FJ70: 0.8639298171 | FK70: 0.95468112 | FL70: 1.000536069 | FM70: 1.055005234 | FN70: 1.066370486 | FO70: 1.064013394 | FP70: 1.054361794 | FQ70: 1.043738469 | FR70: 1.04324604 | FS70: 1.042083909 | FT70: 1.038735394 | FU70: 1.037750537 | FV70: 1.029694406 | FW70: 1.010358377 | FX70: 0.9846733029 | FY70: 0.9479053029 | FZ70: 0.9299612057 | GA70: 0.9058059429 | GB70: 0.8925300686 | GC70: 0.8662015543 | GD70: 0.8516256686 | GE70: 0.82507392 | GF70: 0.8091980229 | GG70: 0.7814775771 | GH70: 0.7568364514 | GI70: 0.70300416 | GJ70: 0.6626644114 | GK70: 0.5971911086 | GL70: 0.5561422629
B71: Solar PV | C71: 0 | D71: 0 | E71: 0 | F71: 0 | G71: 0 | H71: 0 | I71: 0 | J71: 0 | K71: 0 | L71: 0 | M71: 0 | N71: 0 | O71: 0 | P71: 0.002 | Q71: 0.01016666667 | R71: 0.02733333333 | S71: 0.05066666667 | T71: 0.077 | U71: 0.1038333333 | V71: 0.13 | W71: 0.1698333333 | X71: 0.2126666667 | Y71: 0.253 | Z71: 0.288 | AA71: 0.3286666667 | AB71: 0.3713333333 | AC71: 0.412 | AD71: 0.4513333333 | AE71: 0.4906666667 | AF71: 0.531 | AG71: 0.5693333333 | AH71: 0.608 | AI71: 0.644 | AJ71: 0.6763333333 | AK71: 0.7091666667 | AL71: 0.738 | AM71: 0.7641666667 | AN71: 0.7896666667 | AO71: 0.8158333333 | AP71: 0.833 | AQ71: 0.8418333333 | AR71: 0.8693333333 | AS71: 0.871 | AT71: 0.8853333333 | AU71: 0.8886666667 | AV71: 0.8916666667 | AW71: 0.8916666667 | AX71: 0.8893333333 | AY71: 0.8873333333 | AZ71: 0.879 | BA71: 0.87 | BB71: 0.855 | BC71: 0.8378333333 | BD71: 0.8173333333 | BE71: 0.7991666667 | BF71: 0.7753333333 | BG71: 0.7483333333 | BH71: 0.7236666667 | BI71: 0.693 | BJ71: 0.6596666667 | BK71: 0.6263333333 | BL71: 0.5936666667 | BM71: 0.5553333333 | BN71: 0.5196666667 | BO71: 0.481 | BP71: 0.4443333333 | BQ71: 0.403 | BR71: 0.3643333333 | BS71: 0.325 | BT71: 0.283 | BU71: 0.245 | BV71: 0.207 | BW71: 0.1681666667 | BX71: 0.1283333333 | BY71: 0.09633333333 | BZ71: 0.06333333333 | CA71: 0.037 | CB71: 0.019 | CC71: 0.006833333333 | CD71: 0 | CE71: 0 | CF71: 0 | CG71: 0 | CH71: 0 | CI71: 0 | CJ71: 0 | CK71: 0 | CL71: 0 | CM71: 0 | CN71: 0 | CO71: 0 | CP71: 0 | CQ71: 0 | CR71: 0 | CS71: 0 | CT71: 0 | CU71: 0 | CV71: 0 | CW71: 0 | CX71: 0 | CY71: 0 | CZ71: 0 | DA71: 0 | DB71: 0 | DC71: 0 | DD71: 0 | DE71: 0 | DF71: 0 | DG71: 0 | DH71: 0 | DI71: 0 | DJ71: 0 | DK71: 0 | DL71: 0 | DM71: 0 | DN71: 0 | DO71: 0 | DP71: 0 | DQ71: 0 | DR71: 0 | DS71: 0 | DT71: 0 | DU71: 0 | DV71: 0 | DW71: 0 | DX71: 0 | DY71: 0.004666666667 | DZ71: 0.024 | EA71: 0.05983333333 | EB71: 0.09566666667 | EC71: 0.1345 | ED71: 0.172 | EE71: 0.2073333333 | EF71: 0.2403333333 | EG71: 0.2698333333 | EH71: 0.2956666667 | EI71: 0.3156666667 | EJ71: 0.332 | EK71: 0.3393333333 | EL71: 0.3386666667 | EM71: 0.3336666667 | EN71: 0.3256666667 | EO71: 0.3128333333 | EP71: 0.2996666667 | EQ71: 0.2861666667 | ER71: 0.269 | ES71: 0.2505 | ET71: 0.2296666667 | EU71: 0.2076666667 | EV71: 0.182 | EW71: 0.15 | EX71: 0.1016666667 | EY71: 0.07966666667 | EZ71: 0.07633333333 | FA71: 0.069 | FB71: 0.04533333333 | FC71: 0.02266666667 | FD71: 0.006 | FE71: 0.0006666666667 | FF71: 0 | FG71: 0 | FH71: 0 | FI71: 0 | FJ71: 0 | FK71: 0 | FL71: 0 | FM71: 0 | FN71: 0 | FO71: 0 | FP71: 0 | FQ71: 0 | FR71: 0 | FS71: 0 | FT71: 0 | FU71: 0 | FV71: 0 | FW71: 0 | FX71: 0 | FY71: 0 | FZ71: 0 | GA71: 0 | GB71: 0 | GC71: 0 | GD71: 0 | GE71: 0 | GF71: 0 | GG71: 0 | GH71: 0 | GI71: 0 | GJ71: 0 | GK71: 0 | GL71: 0
B72: 3kW uncontrolled charging | C72: 0.74626 | D72: 0.716325 | E72: 0.690435 | F72: 0.65054 | G72: 0.61248 | H72: 0.573625 | I72: 0.53082 | J72: 0.48781 | K72: 0.45146 | L72: 0.42124 | M72: 0.391255 | N72: 0.35867 | O72: 0.329445 | P72: 0.30458 | Q72: 0.285665 | R72: 0.25828 | S72: 0.24097 | T72: 0.22188 | U72: 0.205355 | V72: 0.18362 | W72: 0.166775 | X72: 0.14683 | Y72: 0.12969 | Z72: 0.11473 | AA72: 0.10047 | AB72: 0.08498 | AC72: 0.072505 | AD72: 0.06023 | AE72: 0.049565 | AF72: 0.040855 | AG72: 0.0327 | AH72: 0.024465 | AI72: 0.02201 | AJ72: 0.01886 | AK72: 0.0174 | AL72: 0.01489 | AM72: 0.01338 | AN72: 0.01535 | AO72: 0.016755 | AP72: 0.016855 | AQ72: 0.02276 | AR72: 0.026385 | AS72: 0.03188 | AT72: 0.03626 | AU72: 0.043735 | AV72: 0.051375 | AW72: 0.060005 | AX72: 0.06604 | AY72: 0.079835 | AZ72: 0.09158 | BA72: 0.092835 | BB72: 0.09078 | BC72: 0.09646 | BD72: 0.10477 | BE72: 0.11235 | BF72: 0.12155 | BG72: 0.13171 | BH72: 0.14677 | BI72: 0.164595 | BJ72: 0.187485 | BK72: 0.214725 | BL72: 0.25226 | BM72: 0.278815 | BN72: 0.31107 | BO72: 0.35143 | BP72: 0.414985 | BQ72: 0.47639 | BR72: 0.559595 | BS72: 0.64262 | BT72: 0.72667 | BU72: 0.790835 | BV72: 0.858535 | BW72: 0.900365 | BX72: 0.928035 | BY72: 0.915885 | BZ72: 0.89951 | CA72: 0.880685 | CB72: 0.87733 | CC72: 0.86152 | CD72: 0.86264 | CE72: 0.85197 | CF72: 0.850355 | CG72: 0.83773 | CH72: 0.834155 | CI72: 0.82014 | CJ72: 0.816575 | CK72: 0.809485 | CL72: 0.795755 | CM72: 0.804065 | CN72: 0.81668 | CO72: 0.812275 | CP72: 0.811505 | CQ72: 0.80768 | CR72: 0.802355 | CS72: 0.792785 | CT72: 0.75635 | CU72: 0.74626 | CV72: 0.716325 | CW72: 0.690435 | CX72: 0.65054 | CY72: 0.61248 | CZ72: 0.573625 | DA72: 0.53082 | DB72: 0.48781 | DC72: 0.45146 | DD72: 0.42124 | DE72: 0.391255 | DF72: 0.35867 | DG72: 0.329445 | DH72: 0.30458 | DI72: 0.285665 | DJ72: 0.25828 | DK72: 0.24097 | DL72: 0.22188 | DM72: 0.205355 | DN72: 0.18362 | DO72: 0.166775 | DP72: 0.14683 | DQ72: 0.12969 | DR72: 0.11473 | DS72: 0.10047 | DT72: 0.08498 | DU72: 0.072505 | DV72: 0.06023 | DW72: 0.049565 | DX72: 0.040855 | DY72: 0.0327 | DZ72: 0.024465 | EA72: 0.02201 | EB72: 0.01886 | EC72: 0.0174 | ED72: 0.01489 | EE72: 0.01338 | EF72: 0.01535 | EG72: 0.016755 | EH72: 0.016855 | EI72: 0.02276 | EJ72: 0.026385 | EK72: 0.03188 | EL72: 0.03626 | EM72: 0.043735 | EN72: 0.051375 | EO72: 0.060005 | EP72: 0.06604 | EQ72: 0.079835 | ER72: 0.09158 | ES72: 0.092835 | ET72: 0.09078 | EU72: 0.09646 | EV72: 0.10477 | EW72: 0.11235 | EX72: 0.12155 | EY72: 0.13171 | EZ72: 0.14677 | FA72: 0.164595 | FB72: 0.187485 | FC72: 0.214725 | FD72: 0.25226 | FE72: 0.278815 | FF72: 0.31107 | FG72: 0.35143 | FH72: 0.414985 | FI72: 0.47639 | FJ72: 0.559595 | FK72: 0.64262 | FL72: 0.72667 | FM72: 0.790835 | FN72: 0.858535 | FO72: 0.900365 | FP72: 0.928035 | FQ72: 0.915885 | FR72: 0.89951 | FS72: 0.880685 | FT72: 0.87733 | FU72: 0.86152 | FV72: 0.86264 | FW72: 0.85197 | FX72: 0.850355 | FY72: 0.83773 | FZ72: 0.834155 | GA72: 0.82014 | GB72: 0.816575 | GC72: 0.809485 | GD72: 0.795755 | GE72: 0.804065 | GF72: 0.81668 | GG72: 0.812275 | GH72: 0.811505 | GI72: 0.80768 | GJ72: 0.802355 | GK72: 0.792785 | GL72: 0.75635
B73: Electric boiler | C73: 0.1927762557 | D73: 0.1412420091 | E73: 0.1030684932 | F73: 0.07062100457 | G73: 0.03817351598 | H73: 0.03817351598 | I73: 0.03817351598 | J73: 0.03626484018 | K73: 0.03244748858 | L73: 0.03435616438 | M73: 0.03626484018 | N73: 0.03817351598 | O73: 0.04008219178 | P73: 0.03053881279 | Q73: 0.02672146119 | R73: 0.02290410959 | S73: 0.07634703196 | T73: 0.1202465753 | U73: 0.1622374429 | V73: 0.2175890411 | W73: 0.3569223744 | X73: 0.4905296804 | Y73: 0.6088675799 | Z73: 0.7272054795 | AA73: 0.8875342466 | AB73: 1.038319635 | AC73: 1.170018265 | AD73: 1.284538813 | AE73: 1.397150685 | AF73: 1.399059361 | AG73: 1.412420091 | AH73: 1.433415525 | AI73: 1.420054795 | AJ73: 1.366611872 | AK73: 1.259726027 | AL73: 1.152840183 | AM73: 1.059315068 | AN73: 0.9829680365 | AO73: 0.9180730594 | AP73: 0.8379086758 | AQ73: 0.769196347 | AR73: 0.7539269406 | AS73: 0.7520182648 | AT73: 0.7291141553 | AU73: 0.7577442922 | AV73: 0.7634703196 | AW73: 0.7386575342 | AX73: 0.759652968 | AY73: 0.7672876712 | AZ73: 0.7768310502 | BA73: 0.7539269406 | BB73: 0.74056621 | BC73: 0.7367488584 | BD73: 0.7233881279 | BE73: 0.7233881279 | BF73: 0.7329315068 | BG73: 0.7157534247 | BH73: 0.7195707763 | BI73: 0.7119360731 | BJ73: 0.7100273973 | BK73: 0.6947579909 | BL73: 0.7043013699 | BM73: 0.7176621005 | BN73: 0.7310228311 | BO73: 0.7252968037 | BP73: 0.7195707763 | BQ73: 0.7310228311 | BR73: 0.7482009132 | BS73: 0.7653789954 | BT73: 0.7940091324 | BU73: 0.788283105 | BV73: 0.7711050228 | BW73: 0.7921004566 | BX73: 0.8474520548 | BY73: 0.8894429224 | BZ73: 0.9390684932 | CA73: 1.00396347 | CB73: 1.036410959 | CC73: 1.059315068 | CD73: 1.112757991 | CE73: 1.12230137 | CF73: 1.12230137 | CG73: 1.074584475 | CH73: 1.045954338 | CI73: 0.9696073059 | CJ73: 0.8970776256 | CK73: 0.855086758 | CL73: 0.8054611872 | CM73: 0.7310228311 | CN73: 0.6775799087 | CO73: 0.6031415525 | CP73: 0.5630593607 | CQ73: 0.4809863014 | CR73: 0.4199086758 | CS73: 0.3397442922 | CT73: 0.2691232877 | CU73: 0.1927762557 | CV73: 0.1412420091 | CW73: 0.1030684932 | CX73: 0.07062100457 | CY73: 0.03817351598 | CZ73: 0.03817351598 | DA73: 0.03817351598 | DB73: 0.03626484018 | DC73: 0.03244748858 | DD73: 0.03435616438 | DE73: 0.03626484018 | DF73: 0.03817351598 | DG73: 0.04008219178 | DH73: 0.03053881279 | DI73: 0.02672146119 | DJ73: 0.02290410959 | DK73: 0.07634703196 | DL73: 0.1202465753 | DM73: 0.1622374429 | DN73: 0.2175890411 | DO73: 0.3569223744 | DP73: 0.4905296804 | DQ73: 0.6088675799 | DR73: 0.7272054795 | DS73: 0.8875342466 | DT73: 1.038319635 | DU73: 1.170018265 | DV73: 1.284538813 | DW73: 1.397150685 | DX73: 1.399059361 | DY73: 1.412420091 | DZ73: 1.433415525 | EA73: 1.420054795 | EB73: 1.366611872 | EC73: 1.259726027 | ED73: 1.152840183 | EE73: 1.059315068 | EF73: 0.9829680365 | EG73: 0.9180730594 | EH73: 0.8379086758 | EI73: 0.769196347 | EJ73: 0.7539269406 | EK73: 0.7520182648 | EL73: 0.7291141553 | EM73: 0.7577442922 | EN73: 0.7634703196 | EO73: 0.7386575342 | EP73: 0.759652968 | EQ73: 0.7672876712 | ER73: 0.7768310502 | ES73: 0.7539269406 | ET73: 0.74056621 | EU73: 0.7367488584 | EV73: 0.7233881279 | EW73: 0.7233881279 | EX73: 0.7329315068 | EY73: 0.7157534247 | EZ73: 0.7195707763 | FA73: 0.7119360731 | FB73: 0.7100273973 | FC73: 0.6947579909 | FD73: 0.7043013699 | FE73: 0.7176621005 | FF73: 0.7310228311 | FG73: 0.7252968037 | FH73: 0.7195707763 | FI73: 0.7310228311 | FJ73: 0.7482009132 | FK73: 0.7653789954 | FL73: 0.7940091324 | FM73: 0.788283105 | FN73: 0.7711050228 | FO73: 0.7921004566 | FP73: 0.8474520548 | FQ73: 0.8894429224 | FR73: 0.9390684932 | FS73: 1.00396347 | FT73: 1.036410959 | FU73: 1.059315068 | FV73: 1.112757991 | FW73: 1.12230137 | FX73: 1.12230137 | FY73: 1.074584475 | FZ73: 1.045954338 | GA73: 0.9696073059 | GB73: 0.8970776256 | GC73: 0.855086758 | GD73: 0.8054611872 | GE73: 0.7310228311 | GF73: 0.6775799087 | GG73: 0.6031415525 | GH73: 0.5630593607 | GI73: 0.4809863014 | GJ73: 0.4199086758 | GK73: 0.3397442922 | GL73: 0.2691232877
B74: Micro CHP | C74: -0.08697150735 | D74: -0.07526917017 | E74: -0.06541327468 | F74: -0.05983291754 | G74: -0.05843782826 | H74: -0.06075203519 | I74: -0.06487985819 | J74: -0.07088694853 | K74: -0.07687762605 | L74: -0.08173581933 | M74: -0.08429621849 | N74: -0.08342633929 | O74: -0.07933134191 | P74: -0.07262670693 | Q74: -0.06314009979 | R74: -0.05325958508 | S74: -0.04465926996 | T74: -0.03615743172 | U74: -0.02855829832 | V74: -0.0234375 | W74: -0.021484375 | X74: -0.02159926471 | Y74: -0.02198496586 | Z74: -0.02149258141 | AA74: -0.02062270221 | AB74: -0.01901424632 | AC74: -0.01862854517 | AD74: -0.01959690126 | AE74: -0.02205061712 | AF74: -0.02562861082 | AG74: -0.02946920956 | AH74: -0.03234965861 | AI74: -0.03378577994 | AJ74: -0.03195575105 | AK74: -0.02753249737 | AL74: -0.02132845326 | AM74: -0.01464023109 | AN74: -0.008247439601 | AO74: -0.003840598739 | AP74: -0.00164948792 | AQ74: -0.0007960215336 | AR74: -0.0004349396008 | AS74: -0.0003610819328 | AT74: -0.0008616727941 | AU74: -0.001936712185 | AV74: -0.002937893908 | AW74: -0.003922662815 | AX74: -0.004817161239 | AY74: -0.005243894433 | AZ74: -0.005334164916 | BA74: -0.004940257353 | BB74: -0.004037552521 | BC74: -0.003159466912 | BD74: -0.002330619748 | BE74: -0.001665900735 | BF74: -0.002051601891 | BG74: -0.003372833508 | BH74: -0.005063353466 | BI74: -0.007681197479 | BJ74: -0.0108488708 | BK74: -0.01357339811 | BL74: -0.01598608193 | BM74: -0.01871881565 | BN74: -0.02150078782 | BO74: -0.02393809086 | BP74: -0.02585018382 | BQ74: -0.02866498162 | BR74: -0.03352317489 | BS74: -0.03976825105 | BT74: -0.04731814601 | BU74: -0.05746126576 | BV74: -0.0713957458 | BW74: -0.09073824842 | BX74: -0.1150866597 | BY74: -0.1451303178 | BZ74: -0.1793182117 | CA74: -0.2123982405 | CB74: -0.2381253283 | CC74: -0.2551864496 | CD74: -0.2617433692 | CE74: -0.2576565783 | CF74: -0.2418838629 | CG74: -0.2200958508 | CH74: -0.1954191833 | CI74: -0.1747800683 | CJ74: -0.1591222426 | CK74: -0.1493484112 | CL74: -0.1435793067 | CM74: -0.1424386161 | CN74: -0.141068146 | CO74: -0.1399849002 | CP74: -0.1372685793 | CQ74: -0.1315897453 | CR74: -0.123005843 | CS74: -0.1123457195 | CT74: -0.09974067752 | CU74: -0.5546000744 | CV74: -0.5348614211 | CW74: -0.5127148438 | CX74: -0.4924139695 | CY74: -0.4919187128 | CZ74: -0.4918024554 | DA74: -0.4943373326 | DB74: -0.4993201265 | DC74: -0.5065034412 | DD74: -0.5188564918 | DE74: -0.5328715588 | DF74: -0.5467736235 | DG74: -0.5574079241 | DH74: -0.5667485119 | DI74: -0.5732133557 | DJ74: -0.5799832589 | DK74: -0.5893819754 | DL74: -0.6013471912 | DM74: -0.6123525856 | DN74: -0.6281524368 | DO74: -0.6498628162 | DP74: -0.6762560454 | DQ74: -0.7056380208 | DR74: -0.7364876302 | DS74: -0.7671754092 | DT74: -0.7984072731 | DU74: -0.8268391927 | DV74: -0.8498367746 | DW74: -0.8696884301 | DX74: -0.8847316778 | DY74: -0.8932259115 | DZ74: -0.8944275484 | EA74: -0.8891913132 | EB74: -0.879734468 | EC74: -0.8651767113 | ED74: -0.8478245908 | EE74: -0.8283244978 | EF74: -0.8090499442 | EG74: -0.7905603609 | EH74: -0.7747446987 | EI74: -0.7617378162 | EJ74: -0.7470907738 | EK74: -0.7282040551 | EL74: -0.7090252976 | EM74: -0.687500465 | EN74: -0.6616276042 | EO74: -0.6363792783 | EP74: -0.6127287946 | EQ74: -0.5951497396 | ER74: -0.5850041853 | ES74: -0.5847321429 | ET74: -0.591858724 | EU74: -0.6069740513 | EV74: -0.6244084821 | EW74: -0.6434230841 | EX74: -0.6648832775 | EY74: -0.688437965 | EZ74: -0.7082421875 | FA74: -0.7251320685 | FB74: -0.7382835751 | FC74: -0.7456119792 | FD74: -0.7506189546 | FE74: -0.7547088914 | FF74: -0.7582221912 | FG74: -0.7638299851 | FH74: -0.773280785 | FI74: -0.7845447359 | FJ74: -0.7981649926 | FK74: -0.8085216704 | FL74: -0.8157017299 | FM74: -0.8192708333 | FN74: -0.8231426711 | FO74: -0.8245972842 | FP74: -0.828140346 | FQ74: -0.8335295759 | FR74: -0.8421814546 | FS74: -0.8535770089 | FT74: -0.869499628 | FU74: -0.882734375 | FV74: -0.8932942708 | FW74: -0.8983607701 | FX74: -0.8985202753 | FY74: -0.8901376488 | FZ74: -0.8742675781 | GA74: -0.850030692 | GB74: -0.8231050037 | GC74: -0.7980910528 | GD74: -0.7772577195 | GE74: -0.7565053013 | GF74: -0.7383672805 | GG74: -0.7188299851 | GH74: -0.6997061012 | GI74: -0.6786923363 | GJ74: -0.6410412016 | GK74: -0.6069242932 | GL74: -0.5781738281
B75: Electric heater | C75: 0 | D75: 0 | E75: 0 | F75: 0 | G75: 0 | H75: 0 | I75: 0 | J75: 0 | K75: 0 | L75: 0 | M75: 0 | N75: 0 | O75: 0 | P75: 0 | Q75: 0 | R75: 0 | S75: 0 | T75: 0 | U75: 0 | V75: 0 | W75: 0 | X75: 0 | Y75: 0 | Z75: 0 | AA75: 0 | AB75: 0 | AC75: 0 | AD75: 0 | AE75: 0 | AF75: 0 | AG75: 0 | AH75: 0 | AI75: 0 | AJ75: 0 | AK75: 0 | AL75: 0 | AM75: 0 | AN75: 0 | AO75: 0 | AP75: 0 | AQ75: 0 | AR75: 0 | AS75: 0 | AT75: 0 | AU75: 0 | AV75: 0 | AW75: 0 | AX75: 0 | AY75: 0 | AZ75: 0 | BA75: 0 | BB75: 0 | BC75: 0 | BD75: 0 | BE75: 0 | BF75: 0 | BG75: 0 | BH75: 0 | BI75: 0 | BJ75: 0 | BK75: 0 | BL75: 0 | BM75: 0 | BN75: 0 | BO75: 0 | BP75: 0 | BQ75: 0 | BR75: 0 | BS75: 0 | BT75: 0 | BU75: 0 | BV75: 0 | BW75: 0 | BX75: 0 | BY75: 0 | BZ75: 0 | CA75: 0 | CB75: 0 | CC75: 0 | CD75: 0 | CE75: 0 | CF75: 0 | CG75: 0 | CH75: 0 | CI75: 0 | CJ75: 0 | CK75: 0 | CL75: 0 | CM75: 0 | CN75: 0 | CO75: 0 | CP75: 0 | CQ75: 0 | CR75: 0 | CS75: 0 | CT75: 0 | CU75: 3.164892113 | CV75: 3.236828497 | CW75: 3.188197545 | CX75: 3.160802641 | CY75: 3.263577009 | CZ75: 3.296546689 | DA75: 3.294516369 | DB75: 3.343632812 | DC75: 3.388978795 | DD75: 3.394915365 | DE75: 3.445096726 | DF75: 3.497007999 | DG75: 3.480146949 | DH75: 3.501080729 | DI75: 3.588258929 | DJ75: 3.535625 | DK75: 3.62359933 | DL75: 3.689872582 | DM75: 3.741664807 | DN75: 3.791797805 | DO75: 3.943298921 | DP75: 4.02640718 | DQ75: 4.163809524 | DR75: 4.313993676 | DS75: 4.461950335 | DT75: 4.555428757 | DU75: 4.770756138 | DV75: 4.859473586 | DW75: 4.896584821 | DX75: 4.982908296 | DY75: 4.95483817 | DZ75: 4.921057478 | EA75: 4.786898251 | EB75: 4.647884115 | EC75: 4.5470359 | ED75: 4.473534226 | EE75: 4.379260603 | EF75: 4.310845424 | EG75: 4.15234654 | EH75: 4.174972098 | EI75: 4.132721354 | EJ75: 4.02890346 | EK75: 3.893307292 | EL75: 3.746706659 | EM75: 3.662552083 | EN75: 3.632640439 | EO75: 3.440613839 | EP75: 3.165830543 | EQ75: 3.027845052 | ER75: 3.011835007 | ES75: 3.115838914 | ET75: 3.08968936 | EU75: 3.072281436 | EV75: 3.254621466 | EW75: 3.62031529 | EX75: 3.773113839 | EY75: 3.9065625 | EZ75: 3.941444382 | FA75: 4.07702753 | FB75: 4.273486793 | FC75: 4.351168155 | FD75: 4.377455357 | FE75: 4.526442522 | FF75: 4.606471354 | FG75: 4.766295573 | FH75: 4.880453869 | FI75: 4.978180804 | FJ75: 5.061658296 | FK75: 5.09344215 | FL75: 5.127781808 | FM75: 5.12905971 | FN75: 5.090070685 | FO75: 5.034324777 | FP75: 4.956348586 | FQ75: 4.898700707 | FR75: 4.866705729 | FS75: 4.864484747 | FT75: 4.874390811 | FU75: 4.893231957 | FV75: 4.914143415 | FW75: 4.889986049 | FX75: 4.820524554 | FY75: 4.679428013 | FZ75: 4.398836496 | GA75: 4.078411458 | GB75: 3.625581287 | GC75: 3.206203497 | GD75: 2.900448289 | GE75: 2.700371094 | GF75: 2.613018973 | GG75: 2.587274926 | GH75: 2.740888207 | GI75: 2.908710007 | GJ75: 3.013477493 | GK75: 3.123614211 | GL75: 3.18375186
B76: Ground source heat pump | C76: 0 | D76: 0 | E76: 0 | F76: 0 | G76: 0 | H76: 0 | I76: 0 | J76: 0 | K76: 0 | L76: 0 | M76: 0 | N76: 0 | O76: 0 | P76: 0 | Q76: 0 | R76: 0 | S76: 0 | T76: 0 | U76: 0 | V76: 0 | W76: 0 | X76: 0 | Y76: 0 | Z76: 0 | AA76: 0 | AB76: 0 | AC76: 0 | AD76: 0.0048585922 | AE76: 0.0378602043 | AF76: 0.1006527855 | AG76: 0.1866513207 | AH76: 0.3025580512 | AI76: 0.4374409025 | AJ76: 0.5898505317 | AK76: 0.7631593734 | AL76: 0.9030907041 | AM76: 1.00090487 | AN76: 1.082237607 | AO76: 1.135410854 | AP76: 1.184480213 | AQ76: 1.219496954 | AR76: 1.221811446 | AS76: 1.240448482 | AT76: 1.28533548 | AU76: 1.326332698 | AV76: 1.365728469 | AW76: 1.389665876 | AX76: 1.42012145 | AY76: 1.465830001 | AZ76: 1.500450498 | BA76: 1.521147228 | BB76: 1.514102996 | BC76: 1.498904274 | BD76: 1.473796542 | BE76: 1.41664729 | BF76: 1.341186523 | BG76: 1.243760851 | BH76: 1.128249395 | BI76: 1.049428788 | BJ76: 0.9638042147 | BK76: 0.8801288907 | BL76: 0.8062618195 | BM76: 0.7217668806 | BN76: 0.6475646004 | BO76: 0.5781153119 | BP76: 0.478062221 | BQ76: 0.3816741459 | BR76: 0.2825675843 | BS76: 0.1957019624 | BT76: 0.1294671922 | BU76: 0.0749046689 | BV76: 0.03367493645 | BW76: 0.01126437717 | BX76: 0 | BY76: 0 | BZ76: 0 | CA76: 0 | CB76: 0 | CC76: 0 | CD76: 0 | CE76: 0 | CF76: 0 | CG76: 0 | CH76: 0 | CI76: 0 | CJ76: 0 | CK76: 0 | CL76: 0 | CM76: 0 | CN76: 0 | CO76: 0 | CP76: 0 | CQ76: 0 | CR76: 0 | CS76: 0 | CT76: 0 | CU76: 1.239430339 | CV76: 1.259167597 | CW76: 1.267780878 | CX76: 1.278083612 | CY76: 1.290406901 | CZ76: 1.298932757 | DA76: 1.307005673 | DB76: 1.307685082 | DC76: 1.311130952 | DD76: 1.31600865 | DE76: 1.314662853 | DF76: 1.321197917 | DG76: 1.325159505 | DH76: 1.326509487 | DI76: 1.334733538 | DJ76: 1.337488374 | DK76: 1.340422247 | DL76: 1.348231492 | DM76: 1.355737072 | DN76: 1.360066499 | DO76: 1.372876209 | DP76: 1.379877232 | DQ76: 1.391296038 | DR76: 1.404003906 | DS76: 1.416309524 | DT76: 1.42460333 | DU76: 1.435011626 | DV76: 1.440536644 | DW76: 1.44430385 | DX76: 1.444122489 | DY76: 1.44406529 | DZ76: 1.439036923 | EA76: 1.434779111 | EB76: 1.428100353 | EC76: 1.419248977 | ED76: 1.408382161 | EE76: 1.395426432 | EF76: 1.382657645 | EG76: 1.374504743 | EH76: 1.368267764 | EI76: 1.36155971 | EJ76: 1.352043806 | EK76: 1.344355934 | EL76: 1.336068638 | EM76: 1.323859747 | EN76: 1.310186012 | EO76: 1.290884022 | EP76: 1.280813802 | EQ76: 1.279785156 | ER76: 1.290755208 | ES76: 1.308561663 | ET76: 1.332440941 | EU76: 1.345090216 | EV76: 1.361809431 | EW76: 1.366487165 | EX76: 1.374271298 | EY76: 1.374827474 | EZ76: 1.378837891 | FA76: 1.387215867 | FB76: 1.402067987 | FC76: 1.421713635 | FD76: 1.441234654 | FE76: 1.451557385 | FF76: 1.46218936 | FG76: 1.466187686 | FH76: 1.463516555 | FI76: 1.467520926 | FJ76: 1.466919178 | FK76: 1.468728144 | FL76: 1.473229632 | FM76: 1.473815569 | FN76: 1.475068824 | FO76: 1.472996652 | FP76: 1.467738095 | FQ76: 1.463202195 | FR76: 1.461383929 | FS76: 1.454600074 | FT76: 1.446427176 | FU76: 1.433887649 | FV76: 1.418815104 | FW76: 1.394828869 | FX76: 1.363262649 | FY76: 1.326845703 | FZ76: 1.285292504 | GA76: 1.237575335 | GB76: 1.197044736 | GC76: 1.15406715 | GD76: 1.122453962 | GE76: 1.103798828 | GF76: 1.095024647 | GG76: 1.100530134 | GH76: 1.121592262 | GI76: 1.143422154 | GJ76: 1.166271391 | GK76: 1.19296782 | GL76: 1.21500186
B77: Bivalent heat pump | C77: 0 | D77: 0 | E77: 0 | F77: 0 | G77: 0 | H77: 0 | I77: 0 | J77: 0 | K77: 0 | L77: 0 | M77: 0 | N77: 0 | O77: 0 | P77: 0 | Q77: 0 | R77: 0 | S77: 0 | T77: 0 | U77: 0 | V77: 0 | W77: 0 | X77: 0 | Y77: 0 | Z77: 0 | AA77: 0 | AB77: 0 | AC77: 0 | AD77: 0 | AE77: 0 | AF77: 0 | AG77: 0 | AH77: 0 | AI77: 0 | AJ77: 0 | AK77: 0 | AL77: 0 | AM77: 0 | AN77: 0 | AO77: 0 | AP77: 0 | AQ77: 0 | AR77: 0 | AS77: 0 | AT77: 0 | AU77: 0 | AV77: 0 | AW77: 0 | AX77: 0 | AY77: 0 | AZ77: 0 | BA77: 0 | BB77: 0 | BC77: 0 | BD77: 0 | BE77: 0 | BF77: 0 | BG77: 0 | BH77: 0 | BI77: 0 | BJ77: 0 | BK77: 0 | BL77: 0 | BM77: 0 | BN77: 0 | BO77: 0 | BP77: 0 | BQ77: 0 | BR77: 0 | BS77: 0 | BT77: 0 | BU77: 0 | BV77: 0 | BW77: 0 | BX77: 0 | BY77: 0 | BZ77: 0 | CA77: 0 | CB77: 0 | CC77: 0 | CD77: 0 | CE77: 0 | CF77: 0 | CG77: 0 | CH77: 0 | CI77: 0 | CJ77: 0 | CK77: 0 | CL77: 0 | CM77: 0 | CN77: 0 | CO77: 0 | CP77: 0 | CQ77: 0 | CR77: 0 | CS77: 0 | CT77: 0 | CU77: 0.9774827939 | CV77: 0.9218005952 | CW77: 0.8095861235 | CX77: 0.6680798921 | CY77: 0.5608045015 | CZ77: 0.4371823847 | DA77: 0.335249721 | DB77: 0.4128794643 | DC77: 0.6501832217 | DD77: 0.8785686384 | DE77: 1.086815476 | DF77: 1.189471726 | DG77: 1.276153739 | DH77: 1.353462147 | DI77: 1.308187314 | DJ77: 1.140197173 | DK77: 1.036898717 | DL77: 0.968234282 | DM77: 1.076888021 | DN77: 1.248850446 | DO77: 1.462291202 | DP77: 1.629988374 | DQ77: 1.793340774 | DR77: 1.914913039 | DS77: 2.015940755 | DT77: 2.048868118 | DU77: 2.015753813 | DV77: 1.957018694 | DW77: 1.927512091 | DX77: 1.854863281 | DY77: 1.779720982 | DZ77: 1.723995536 | EA77: 1.667115885 | EB77: 1.633994606 | EC77: 1.588924851 | ED77: 1.530617094 | EE77: 1.476546224 | EF77: 1.452580915 | EG77: 1.429871652 | EH77: 1.403148251 | EI77: 1.375629185 | EJ77: 1.333212891 | EK77: 1.299554036 | EL77: 1.288187314 | EM77: 1.299857236 | EN77: 1.300851004 | EO77: 1.289341518 | EP77: 1.244381975 | EQ77: 1.216625744 | ER77: 1.310772879 | ES77: 1.414562872 | ET77: 1.433394252 | EU77: 1.450235305 | EV77: 1.462058222 | EW77: 1.486883371 | EX77: 1.54031901 | EY77: 1.532678106 | EZ77: 1.548836496 | FA77: 1.602664156 | FB77: 1.654111328 | FC77: 1.706615513 | FD77: 1.776358817 | FE77: 1.817996652 | FF77: 1.797167969 | FG77: 1.762938058 | FH77: 1.724177827 | FI77: 1.702016369 | FJ77: 1.688211496 | FK77: 1.672861793 | FL77: 1.649311756 | FM77: 1.63445452 | FN77: 1.580953776 | FO77: 1.551283482 | FP77: 1.520263672 | FQ77: 1.496131417 | FR77: 1.486451823 | FS77: 1.482308873 | FT77: 1.485299014 | FU77: 1.483183594 | FV77: 1.454470796 | FW77: 1.423163132 | FX77: 1.38648949 | FY77: 1.331677827 | FZ77: 1.272703218 | GA77: 1.191066778 | GB77: 1.128852772 | GC77: 1.098006882 | GD77: 1.081016555 | GE77: 1.076568545 | GF77: 1.06374256 | GG77: 1.043277065 | GH77: 1.069177827 | GI77: 1.106886161 | GJ77: 1.091123977 | GK77: 1.075619885 | GL77: 1.04062965
B78: Air conditioning | C78: 0 | D78: 0 | E78: 0 | F78: 0 | G78: 0 | H78: 0 | I78: 0 | J78: 0 | K78: 0 | L78: 0 | M78: 0 | N78: 0 | O78: 0 | P78: 0 | Q78: 0 | R78: 0 | S78: 0 | T78: 0 | U78: 0 | V78: 0 | W78: 0 | X78: 0 | Y78: 0 | Z78: 0 | AA78: 0 | AB78: 0 | AC78: 0 | AD78: 0.0048585922 | AE78: 0.0378602043 | AF78: 0.1006527855 | AG78: 0.1866513207 | AH78: 0.3025580512 | AI78: 0.4374409025 | AJ78: 0.5898505317 | AK78: 0.7631593734 | AL78: 0.9030907041 | AM78: 1.00090487 | AN78: 1.082237607 | AO78: 1.135410854 | AP78: 1.184480213 | AQ78: 1.219496954 | AR78: 1.221811446 | AS78: 1.240448482 | AT78: 1.28533548 | AU78: 1.326332698 | AV78: 1.365728469 | AW78: 1.389665876 | AX78: 1.42012145 | AY78: 1.465830001 | AZ78: 1.500450498 | BA78: 1.521147228 | BB78: 1.514102996 | BC78: 1.498904274 | BD78: 1.473796542 | BE78: 1.41664729 | BF78: 1.341186523 | BG78: 1.243760851 | BH78: 1.128249395 | BI78: 1.049428788 | BJ78: 0.9638042147 | BK78: 0.8801288907 | BL78: 0.8062618195 | BM78: 0.7217668806 | BN78: 0.6475646004 | BO78: 0.5781153119 | BP78: 0.478062221 | BQ78: 0.3816741459 | BR78: 0.2825675843 | BS78: 0.1957019624 | BT78: 0.1294671922 | BU78: 0.0749046689 | BV78: 0.03367493645 | BW78: 0.01126437717 | BX78: 0 | BY78: 0 | BZ78: 0 | CA78: 0 | CB78: 0 | CC78: 0 | CD78: 0 | CE78: 0 | CF78: 0 | CG78: 0 | CH78: 0 | CI78: 0 | CJ78: 0 | CK78: 0 | CL78: 0 | CM78: 0 | CN78: 0 | CO78: 0 | CP78: 0 | CQ78: 0 | CR78: 0 | CS78: 0 | CT78: 0 | CU78: 0 | CV78: 0 | CW78: 0 | CX78: 0 | CY78: 0 | CZ78: 0 | DA78: 0 | DB78: 0 | DC78: 0 | DD78: 0 | DE78: 0 | DF78: 0 | DG78: 0 | DH78: 0 | DI78: 0 | DJ78: 0 | DK78: 0 | DL78: 0 | DM78: 0 | DN78: 0 | DO78: 0 | DP78: 0 | DQ78: 0 | DR78: 0 | DS78: 0 | DT78: 0 | DU78: 0 | DV78: 0 | DW78: 0 | DX78: 0 | DY78: 0 | DZ78: 0 | EA78: 0 | EB78: 0 | EC78: 0 | ED78: 0 | EE78: 0 | EF78: 0 | EG78: 0 | EH78: 0 | EI78: 0 | EJ78: 0 | EK78: 0 | EL78: 0 | EM78: 0 | EN78: 0 | EO78: 0 | EP78: 0 | EQ78: 0 | ER78: 0 | ES78: 0 | ET78: 0 | EU78: 0 | EV78: 0 | EW78: 0 | EX78: 0 | EY78: 0 | EZ78: 0 | FA78: 0 | FB78: 0 | FC78: 0 | FD78: 0 | FE78: 0 | FF78: 0 | FG78: 0 | FH78: 0 | FI78: 0 | FJ78: 0 | FK78: 0 | FL78: 0 | FM78: 0 | FN78: 0 | FO78: 0 | FP78: 0 | FQ78: 0 | FR78: 0 | FS78: 0 | FT78: 0 | FU78: 0 | FV78: 0 | FW78: 0 | FX78: 0 | FY78: 0 | FZ78: 0 | GA78: 0 | GB78: 0 | GC78: 0 | GD78: 0 | GE78: 0 | GF78: 0 | GG78: 0 | GH78: 0 | GI78: 0 | GJ78: 0 | GK78: 0 | GL78: 0
A80: Calculations
B82: Adjusted load profiles [kW] | E82: (currently on the Solar PV profile is adjusted to take into account efficiency and area. Other possibilities would be to scale the heating technologies based on household type.)
C83: 00:00:00 | D83: 00:15:00 | E83: 00:30:00 | F83: 00:45:00 | G83: 01:00:00 | H83: 01:15:00 | I83: 01:30:00 | J83: 01:45:00 | K83: 02:00:00 | L83: 02:15:00 | M83: 02:30:00 | N83: 02:45:00 | O83: 03:00:00 | P83: 03:15:00 | Q83: 03:30:00 | R83: 03:45:00 | S83: 04:00:00 | T83: 04:15:00 | U83: 04:30:00 | V83: 04:45:00 | W83: 05:00:00 | X83: 05:15:00 | Y83: 05:30:00 | Z83: 05:45:00 | AA83: 06:00:00 | AB83: 06:15:00 | AC83: 06:30:00 | AD83: 06:45:00 | AE83: 07:00:00 | AF83: 07:15:00 | AG83: 07:30:00 | AH83: 07:45:00 | AI83: 08:00:00 | AJ83: 08:15:00 | AK83: 08:30:00 | AL83: 08:45:00 | AM83: 09:00:00 | AN83: 09:15:00 | AO83: 09:30:00 | AP83: 09:45:00 | AQ83: 10:00:00 | AR83: 10:15:00 | AS83: 10:30:00 | AT83: 10:45:00 | AU83: 11:00:00 | AV83: 11:15:00 | AW83: 11:30:00 | AX83: 11:45:00 | AY83: 12:00:00 | AZ83: 12:15:00 | BA83: 12:30:00 | BB83: 12:45:00 | BC83: 13:00:00 | BD83: 13:15:00 | BE83: 13:30:00 | BF83: 13:45:00 | BG83: 14:00:00 | BH83: 14:15:00 | BI83: 14:30:00 | BJ83: 14:45:00 | BK83: 15:00:00 | BL83: 15:15:00 | BM83: 15:30:00 | BN83: 15:45:00 | BO83: 16:00:00 | BP83: 16:15:00 | BQ83: 16:30:00 | BR83: 16:45:00 | BS83: 17:00:00 | BT83: 17:15:00 | BU83: 17:30:00 | BV83: 17:45:00 | BW83: 18:00:00 | BX83: 18:15:00 | BY83: 18:30:00 | BZ83: 18:45:00 | CA83: 19:00:00 | CB83: 19:15:00 | CC83: 19:30:00 | CD83: 19:45:00 | CE83: 20:00:00 | CF83: 20:15:00 | CG83: 20:30:00 | CH83: 20:45:00 | CI83: 21:00:00 | CJ83: 21:15:00 | CK83: 21:30:00 | CL83: 21:45:00 | CM83: 22:00:00 | CN83: 22:15:00 | CO83: 22:30:00 | CP83: 22:45:00 | CQ83: 23:00:00 | CR83: 23:15:00 | CS83: 23:30:00 | CT83: 23:45:00 | CU83: 00:00:00 | CV83: 00:15:00 | CW83: 00:30:00 | CX83: 00:45:00 | CY83: 01:00:00 | CZ83: 01:15:00 | DA83: 01:30:00 | DB83: 01:45:00 | DC83: 02:00:00 | DD83: 02:15:00 | DE83: 02:30:00 | DF83: 02:45:00 | DG83: 03:00:00 | DH83: 03:15:00 | DI83: 03:30:00 | DJ83: 03:45:00 | DK83: 04:00:00 | DL83: 04:15:00 | DM83: 04:30:00 | DN83: 04:45:00 | DO83: 05:00:00 | DP83: 05:15:00 | DQ83: 05:30:00 | DR83: 05:45:00 | DS83: 06:00:00 | DT83: 06:15:00 | DU83: 06:30:00 | DV83: 06:45:00 | DW83: 07:00:00 | DX83: 07:15:00 | DY83: 07:30:00 | DZ83: 07:45:00 | EA83: 08:00:00 | EB83: 08:15:00 | EC83: 08:30:00 | ED83: 08:45:00 | EE83: 09:00:00 | EF83: 09:15:00 | EG83: 09:30:00 | EH83: 09:45:00 | EI83: 10:00:00 | EJ83: 10:15:00 | EK83: 10:30:00 | EL83: 10:45:00 | EM83: 11:00:00 | EN83: 11:15:00 | EO83: 11:30:00 | EP83: 11:45:00 | EQ83: 12:00:00 | ER83: 12:15:00 | ES83: 12:30:00 | ET83: 12:45:00 | EU83: 13:00:00 | EV83: 13:15:00 | EW83: 13:30:00 | EX83: 13:45:00 | EY83: 14:00:00 | EZ83: 14:15:00 | FA83: 14:30:00 | FB83: 14:45:00 | FC83: 15:00:00 | FD83: 15:15:00 | FE83: 15:30:00 | FF83: 15:45:00 | FG83: 16:00:00 | FH83: 16:15:00 | FI83: 16:30:00 | FJ83: 16:45:00 | FK83: 17:00:00 | FL83: 17:15:00 | FM83: 17:30:00 | FN83: 17:45:00 | FO83: 18:00:00 | FP83: 18:15:00 | FQ83: 18:30:00 | FR83: 18:45:00 | FS83: 19:00:00 | FT83: 19:15:00 | FU83: 19:30:00 | FV83: 19:45:00 | FW83: 20:00:00 | FX83: 20:15:00 | FY83: 20:30:00 | FZ83: 20:45:00 | GA83: 21:00:00 | GB83: 21:15:00 | GC83: 21:30:00 | GD83: 21:45:00 | GE83: 22:00:00 | GF83: 22:15:00 | GG83: 22:30:00 | GH83: 22:45:00 | GI83: 23:00:00 | GJ83: 23:15:00 | GK83: 23:30:00 | GL83: 23:45:00
B84: Household load | C84: =C70 -> 0.4780890514 | D84: =D70 -> 0.4463766514 | E84: 0.3997206857 | F84: 0.3778174629 | G84: 0.3431767543 | H84: 0.3276751029 | I84: 0.3048329829 | J84: 0.2959889657 | K84: 0.2789640686 | L84: 0.27102612 | M84: 0.2615517943 | N84: 0.2585775257 | O84: 0.2529375771 | P84: 0.25016028 | Q84: 0.2476062171 | R84: 0.2477244 | S84: 0.2488143086 | T84: 0.2461551943 | U84: 0.2433778971 | V84: 0.2442248743 | W84: 0.2454001371 | X84: 0.2471925771 | Y84: 0.2439031543 | Z84: 0.2501471486 | AA84: 0.2550386057 | AB84: 0.2634098914 | AC84: 0.2695882286 | AD84: 0.2765216229 | AE84: 0.2895742629 | AF84: 0.2992061657 | AG84: 0.3258432686 | AH84: 0.3440631257 | AI84: 0.3817568914 | AJ84: 0.4017100971 | AK84: 0.4354644343 | AL84: 0.4528373143 | AM84: 0.4908528 | AN84: 0.5060983886 | AO84: 0.5256510857 | AP84: 0.5276798914 | AQ84: 0.5347117714 | AR84: 0.5365633029 | AS84: 0.5395704 | AT84: 0.5419734514 | AU84: 0.54710784 | AV84: 0.5492351314 | AW84: 0.5530432457 | AX84: 0.5609024057 | AY84: 0.5711120914 | AZ84: 0.5779076057 | BA84: 0.5791222629 | BB84: 0.5825692629 | BC84: 0.5798050971 | BD84: 0.5767914343 | BE84: 0.5649140571 | BF84: 0.5611322057 | BG84: 0.5602392686 | BH84: 0.5528922343 | BI84: 0.542328 | BJ84: 0.5362021886 | BK84: 0.5336612571 | BL84: 0.5332476171 | BM84: 0.5365764343 | BN84: 0.5372855314 | BO84: 0.5337400457 | BP84: =BP70 -> 0.5322430629 | BQ84: 0.5413562743 | BR84: 0.5514018171 | BS84: 0.5667524571 | BT84: 0.5768570914 | BU84: 0.5973486857 | BV84: 0.6099548571 | BW84: 0.6256600457 | BX84: 0.62307972 | BY84: 0.6168357257 | BZ84: 0.6136053943 | CA84: 0.61917312 | CB84: 0.6188382686 | CC84: 0.61659936 | CD84: 0.6151220743 | CE84: 0.6094821257 | CF84: 0.6039275314 | CG84: 0.5901526629 | CH84: 0.5838101829 | CI84: 0.5738434286 | CJ84: 0.5700024857 | CK84: 0.5682757029 | CL84: 0.5733378686 | CM84: 0.5865546514 | CN84: 0.5974274743 | CO84: 0.6136841829 | CP84: 0.6163629943 | CQ84: 0.61623168 | CR84: 0.5997648686 | CS84: 0.5638635429 | CT84: 0.5318162914 | CU84: 0.5294592 | CV84: 0.4993816629 | CW84: 0.4603090971 | CX84: 0.4360028229 | CY84: 0.3971206629 | CZ84: 0.3786053486 | DA84: 0.3535768457 | DB84: 0.3417782571 | DC84: 0.32392608 | DD84: 0.3131320457 | DE84: 0.3027319543 | DF84: 0.2960940171 | DG84: 0.2863439314 | DH84: 0.2799620571 | DI84: 0.27539232 | DJ84: 0.2726544171 | DK84: 0.2677760914 | DL84: 0.2615517943 | DM84: 0.2559840686 | DN84: 0.25287192 | DO84: 0.2539093029 | DP84: 0.2565684171 | DQ84: 0.2611841143 | DR84: 0.2674478057 | DS84: 0.2727660343 | DT84: 0.2783600229 | DU84: 0.2851621029 | DV84: 0.2976500914 | DW84: 0.3234796114 | DX84: 0.34299948 | DY84: 0.3750073371 | DZ84: 0.3969893486 | EA84: 0.43184016 | EB84: =EB70 -> 0.4577222057 | EC84: 0.4988629714 | ED84: 0.52872384 | EE84: 0.5772576 | EF84: 0.5982744514 | EG84: 0.6310964571 | EH84: 0.6488041886 | EI84: 0.6771615086 | EJ84: 0.6868918971 | EK84: 0.6901090971 | EL84: 0.6879424114 | EM84: 0.6853292571 | EN84: 0.6860580514 | EO84: 0.6977515886 | EP84: 0.7071077314 | EQ84: 0.7282427657 | ER84: 0.7288533771 | ES84: 0.7215457371 | ET84: 0.7099244229 | EU84: 0.7035294171 | EV84: 0.7036672971 | EW84: 0.70851936 | EX84: 0.70782996 | EY84: 0.7028728457 | EZ84: 0.7004500971 | FA84: 0.6975940114 | FB84: 0.6969440057 | FC84: 0.6881919086 | FD84: 0.67846152 | FE84: 0.6780281829 | FF84: 0.6849812743 | FG84: 0.7166345829 | FH84: 0.7430681486 | FI84: 0.80944752 | FJ84: 0.8639298171 | FK84: 0.95468112 | FL84: 1.000536069 | FM84: 1.055005234 | FN84: 1.066370486 | FO84: 1.064013394 | FP84: 1.054361794 | FQ84: 1.043738469 | FR84: 1.04324604 | FS84: 1.042083909 | FT84: 1.038735394 | FU84: 1.037750537 | FV84: 1.029694406 | FW84: 1.010358377 | FX84: 0.9846733029 | FY84: 0.9479053029 | FZ84: 0.9299612057 | GA84: 0.9058059429 | GB84: 0.8925300686 | GC84: 0.8662015543 | GD84: 0.8516256686 | GE84: 0.82507392 | GF84: 0.8091980229 | GG84: 0.7814775771 | GH84: 0.7568364514 | GI84: 0.70300416 | GJ84: 0.6626644114 | GK84: 0.5971911086 | GL84: 0.5561422629
B85: Solar PV | C85: =-$C$42*$C$43*C71 -> 0 | D85: =-$C$42*$C$43*D71 -> 0 | E85: 0 | F85: 0 | G85: 0 | H85: 0 | I85: 0 | J85: 0 | K85: 0 | L85: 0 | M85: 0 | N85: 0 | O85: 0 | P85: -0.0034626 | Q85: -0.01760155 | R85: -0.0473222 | S85: -0.0877192 | T85: -0.1333101 | U85: -0.17976665 | V85: -0.225069 | W85: -0.29403245 | X85: -0.3681898 | Y85: -0.4380189 | Z85: -0.4986144 | AA85: -0.5690206 | AB85: -0.6428894 | AC85: -0.7132956 | AD85: -0.7813934 | AE85: -0.8494912 | AF85: -0.9193203 | AG85: -0.9856868 | AH85: -1.0526304 | AI85: -1.1149572 | AJ85: -1.1709359 | AK85: -1.22778025 | AL85: -1.2776994 | AM85: -1.32300175 | AN85: -1.3671499 | AO85: -1.41245225 | AP85: -1.4421729 | AQ85: -1.45746605 | AR85: -1.5050768 | AS85: -1.5079623 | AT85: -1.5327776 | AU85: -1.5385486 | AV85: -1.5437425 | AW85: -1.5437425 | AX85: -1.5397028 | AY85: -1.5362402 | AZ85: -1.5218127 | BA85: -1.506231 | BB85: -1.4802615 | BC85: -1.45054085 | BD85: -1.4150492 | BE85: -1.38359725 | BF85: -1.3423346 | BG85: -1.2955895 | BH85: -1.2528841 | BI85: -1.1997909 | BJ85: -1.1420809 | BK85: -1.0843709 | BL85: -1.0278151 | BM85: -0.9614486 | BN85: -0.8996989 | BO85: -0.8327553 | BP85: =-$C$42*$C$43*BP71 -> -0.7692743 | BQ85: -0.6977139 | BR85: -0.6307703 | BS85: -0.5626725 | BT85: -0.4899579 | BU85: -0.4241685 | BV85: -0.3583791 | BW85: -0.29114695 | BX85: -0.2221835 | BY85: -0.1667819 | BZ85: -0.109649 | CA85: -0.0640581 | CB85: -0.0328947 | CC85: -0.01183055 | CD85: 0 | CE85: 0 | CF85: 0 | CG85: 0 | CH85: 0 | CI85: 0 | CJ85: 0 | CK85: 0 | CL85: 0 | CM85: 0 | CN85: 0 | CO85: 0 | CP85: 0 | CQ85: 0 | CR85: 0 | CS85: 0 | CT85: 0 | CU85: 0 | CV85: 0 | CW85: 0 | CX85: 0 | CY85: 0 | CZ85: 0 | DA85: 0 | DB85: 0 | DC85: 0 | DD85: 0 | DE85: 0 | DF85: 0 | DG85: 0 | DH85: 0 | DI85: 0 | DJ85: 0 | DK85: 0 | DL85: 0 | DM85: 0 | DN85: 0 | DO85: 0 | DP85: 0 | DQ85: 0 | DR85: 0 | DS85: 0 | DT85: 0 | DU85: 0 | DV85: 0 | DW85: 0 | DX85: 0 | DY85: -0.0080794 | DZ85: -0.0415512 | EA85: -0.10358945 | EB85: =-$C$42*$C$43*EB71 -> -0.1656277 | EC85: -0.23285985 | ED85: -0.2977836 | EE85: -0.3589562 | EF85: -0.4160891 | EG85: -0.46716245 | EH85: -0.5118877 | EI85: -0.5465137 | EJ85: -0.5747916 | EK85: -0.5874878 | EL85: -0.5863336 | EM85: -0.5776771 | EN85: -0.5638267 | EO85: -0.54160835 | EP85: -0.5188129 | EQ85: -0.49544035 | ER85: -0.4657197 | ES85: -0.43369065 | ET85: -0.3976219 | EU85: -0.3595333 | EV85: -0.3150966 | EW85: -0.259695 | EX85: -0.1760155 | EY85: -0.1379269 | EZ85: -0.1321559 | FA85: -0.1194597 | FB85: -0.0784856 | FC85: -0.0392428 | FD85: -0.0103878 | FE85: -0.0011542 | FF85: 0 | FG85: 0 | FH85: 0 | FI85: 0 | FJ85: 0 | FK85: 0 | FL85: 0 | FM85: 0 | FN85: 0 | FO85: 0 | FP85: 0 | FQ85: 0 | FR85: 0 | FS85: 0 | FT85: 0 | FU85: 0 | FV85: 0 | FW85: 0 | FX85: 0 | FY85: 0 | FZ85: 0 | GA85: 0 | GB85: 0 | GC85: 0 | GD85: 0 | GE85: 0 | GF85: 0 | GG85: 0 | GH85: 0 | GI85: 0 | GJ85: 0 | GK85: 0 | GL85: 0
B86: 3kW uncontrolled charging | C86: =C72 -> 0.74626 | D86: 0.716325 | E86: 0.690435 | F86: 0.65054 | G86: 0.61248 | H86: 0.573625 | I86: 0.53082 | J86: 0.48781 | K86: 0.45146 | L86: 0.42124 | M86: 0.391255 | N86: 0.35867 | O86: 0.329445 | P86: 0.30458 | Q86: 0.285665 | R86: 0.25828 | S86: =S72 -> 0.24097 | T86: 0.22188 | U86: 0.205355 | V86: 0.18362 | W86: 0.166775 | X86: 0.14683 | Y86: 0.12969 | Z86: 0.11473 | AA86: 0.10047 | AB86: 0.08498 | AC86: 0.072505 | AD86: 0.06023 | AE86: 0.049565 | AF86: 0.040855 | AG86: 0.0327 | AH86: 0.024465 | AI86: 0.02201 | AJ86: 0.01886 | AK86: 0.0174 | AL86: 0.01489 | AM86: 0.01338 | AN86: 0.01535 | AO86: 0.016755 | AP86: 0.016855 | AQ86: 0.02276 | AR86: 0.026385 | AS86: 0.03188 | AT86: 0.03626 | AU86: 0.043735 | AV86: 0.051375 | AW86: 0.060005 | AX86: 0.06604 | AY86: 0.079835 | AZ86: 0.09158 | BA86: 0.092835 | BB86: 0.09078 | BC86: 0.09646 | BD86: 0.10477 | BE86: 0.11235 | BF86: 0.12155 | BG86: 0.13171 | BH86: 0.14677 | BI86: 0.164595 | BJ86: 0.187485 | BK86: 0.214725 | BL86: 0.25226 | BM86: 0.278815 | BN86: 0.31107 | BO86: 0.35143 | BP86: 0.414985 | BQ86: 0.47639 | BR86: 0.559595 | BS86: 0.64262 | BT86: 0.72667 | BU86: 0.790835 | BV86: 0.858535 | BW86: 0.900365 | BX86: 0.928035 | BY86: 0.915885 | BZ86: 0.89951 | CA86: 0.880685 | CB86: 0.87733 | CC86: 0.86152 | CD86: 0.86264 | CE86: =CE72 -> 0.85197 | CF86: 0.850355 | CG86: 0.83773 | CH86: 0.834155 | CI86: 0.82014 | CJ86: 0.816575 | CK86: 0.809485 | CL86: 0.795755 | CM86: 0.804065 | CN86: 0.81668 | CO86: 0.812275 | CP86: 0.811505 | CQ86: 0.80768 | CR86: 0.802355 | CS86: 0.792785 | CT86: 0.75635 | CU86: 0.74626 | CV86: 0.716325 | CW86: 0.690435 | CX86: 0.65054 | CY86: 0.61248 | CZ86: 0.573625 | DA86: 0.53082 | DB86: 0.48781 | DC86: 0.45146 | DD86: 0.42124 | DE86: 0.391255 | DF86: 0.35867 | DG86: 0.329445 | DH86: 0.30458 | DI86: 0.285665 | DJ86: 0.25828 | DK86: 0.24097 | DL86: 0.22188 | DM86: 0.205355 | DN86: 0.18362 | DO86: 0.166775 | DP86: 0.14683 | DQ86: 0.12969 | DR86: 0.11473 | DS86: 0.10047 | DT86: 0.08498 | DU86: 0.072505 | DV86: 0.06023 | DW86: 0.049565 | DX86: 0.040855 | DY86: 0.0327 | DZ86: 0.024465 | EA86: 0.02201 | EB86: 0.01886 | EC86: 0.0174 | ED86: 0.01489 | EE86: 0.01338 | EF86: 0.01535 | EG86: 0.016755 | EH86: 0.016855 | EI86: 0.02276 | EJ86: 0.026385 | EK86: 0.03188 | EL86: 0.03626 | EM86: 0.043735 | EN86: 0.051375 | EO86: 0.060005 | EP86: 0.06604 | EQ86: =EQ72 -> 0.079835 | ER86: 0.09158 | ES86: 0.092835 | ET86: 0.09078 | EU86: 0.09646 | EV86: 0.10477 | EW86: 0.11235 | EX86: 0.12155 | EY86: 0.13171 | EZ86: 0.14677 | FA86: 0.164595 | FB86: 0.187485 | FC86: 0.214725 | FD86: 0.25226 | FE86: 0.278815 | FF86: 0.31107 | FG86: 0.35143 | FH86: 0.414985 | FI86: 0.47639 | FJ86: 0.559595 | FK86: 0.64262 | FL86: 0.72667 | FM86: 0.790835 | FN86: 0.858535 | FO86: 0.900365 | FP86: 0.928035 | FQ86: 0.915885 | FR86: 0.89951 | FS86: 0.880685 | FT86: 0.87733 | FU86: 0.86152 | FV86: 0.86264 | FW86: 0.85197 | FX86: 0.850355 | FY86: 0.83773 | FZ86: 0.834155 | GA86: 0.82014 | GB86: 0.816575 | GC86: 0.809485 | GD86: 0.795755 | GE86: 0.804065 | GF86: 0.81668 | GG86: 0.812275 | GH86: 0.811505 | GI86: 0.80768 | GJ86: 0.802355 | GK86: 0.792785 | GL86: 0.75635
B87: Electric boiler | C87: 0.1927762557 | D87: =D73 -> 0.1412420091 | E87: 0.1030684932 | F87: 0.07062100457 | G87: 0.03817351598 | H87: 0.03817351598 | I87: 0.03817351598 | J87: 0.03626484018 | K87: 0.03244748858 | L87: 0.03435616438 | M87: 0.03626484018 | N87: 0.03817351598 | O87: 0.04008219178 | P87: 0.03053881279 | Q87: 0.02672146119 | R87: 0.02290410959 | S87: 0.07634703196 | T87: 0.1202465753 | U87: 0.1622374429 | V87: 0.2175890411 | W87: 0.3569223744 | X87: 0.4905296804 | Y87: 0.6088675799 | Z87: 0.7272054795 | AA87: 0.8875342466 | AB87: 1.038319635 | AC87: 1.170018265 | AD87: 1.284538813 | AE87: 1.397150685 | AF87: 1.399059361 | AG87: 1.412420091 | AH87: 1.433415525 | AI87: 1.420054795 | AJ87: 1.366611872 | AK87: 1.259726027 | AL87: 1.152840183 | AM87: 1.059315068 | AN87: 0.9829680365 | AO87: 0.9180730594 | AP87: 0.8379086758 | AQ87: 0.769196347 | AR87: 0.7539269406 | AS87: 0.7520182648 | AT87: 0.7291141553 | AU87: 0.7577442922 | AV87: 0.7634703196 | AW87: 0.7386575342 | AX87: 0.759652968 | AY87: 0.7672876712 | AZ87: 0.7768310502 | BA87: 0.7539269406 | BB87: 0.74056621 | BC87: 0.7367488584 | BD87: 0.7233881279 | BE87: 0.7233881279 | BF87: 0.7329315068 | BG87: 0.7157534247 | BH87: 0.7195707763 | BI87: 0.7119360731 | BJ87: 0.7100273973 | BK87: 0.6947579909 | BL87: 0.7043013699 | BM87: 0.7176621005 | BN87: 0.7310228311 | BO87: 0.7252968037 | BP87: 0.7195707763 | BQ87: 0.7310228311 | BR87: 0.7482009132 | BS87: 0.7653789954 | BT87: 0.7940091324 | BU87: 0.788283105 | BV87: 0.7711050228 | BW87: 0.7921004566 | BX87: 0.8474520548 | BY87: 0.8894429224 | BZ87: 0.9390684932 | CA87: 1.00396347 | CB87: 1.036410959 | CC87: 1.059315068 | CD87: 1.112757991 | CE87: 1.12230137 | CF87: 1.12230137 | CG87: 1.074584475 | CH87: 1.045954338 | CI87: 0.9696073059 | CJ87: 0.8970776256 | CK87: 0.855086758 | CL87: 0.8054611872 | CM87: 0.7310228311 | CN87: 0.6775799087 | CO87: 0.6031415525 | CP87: 0.5630593607 | CQ87: 0.4809863014 | CR87: 0.4199086758 | CS87: 0.3397442922 | CT87: 0.2691232877 | CU87: 0.1927762557 | CV87: 0.1412420091 | CW87: 0.1030684932 | CX87: 0.07062100457 | CY87: 0.03817351598 | CZ87: 0.03817351598 | DA87: 0.03817351598 | DB87: 0.03626484018 | DC87: 0.03244748858 | DD87: 0.03435616438 | DE87: 0.03626484018 | DF87: 0.03817351598 | DG87: 0.04008219178 | DH87: 0.03053881279 | DI87: 0.02672146119 | DJ87: 0.02290410959 | DK87: 0.07634703196 | DL87: 0.1202465753 | DM87: 0.1622374429 | DN87: 0.2175890411 | DO87: 0.3569223744 | DP87: 0.4905296804 | DQ87: 0.6088675799 | DR87: 0.7272054795 | DS87: 0.8875342466 | DT87: 1.038319635 | DU87: 1.170018265 | DV87: 1.284538813 | DW87: 1.397150685 | DX87: 1.399059361 | DY87: 1.412420091 | DZ87: 1.433415525 | EA87: 1.420054795 | EB87: 1.366611872 | EC87: 1.259726027 | ED87: 1.152840183 | EE87: 1.059315068 | EF87: 0.9829680365 | EG87: 0.9180730594 | EH87: 0.8379086758 | EI87: 0.769196347 | EJ87: 0.7539269406 | EK87: 0.7520182648 | EL87: 0.7291141553 | EM87: 0.7577442922 | EN87: 0.7634703196 | EO87: 0.7386575342 | EP87: 0.759652968 | EQ87: 0.7672876712 | ER87: 0.7768310502 | ES87: 0.7539269406 | ET87: 0.74056621 | EU87: 0.7367488584 | EV87: 0.7233881279 | EW87: 0.7233881279 | EX87: 0.7329315068 | EY87: 0.7157534247 | EZ87: 0.7195707763 | FA87: 0.7119360731 | FB87: 0.7100273973 | FC87: 0.6947579909 | FD87: 0.7043013699 | FE87: 0.7176621005 | FF87: 0.7310228311 | FG87: 0.7252968037 | FH87: 0.7195707763 | FI87: 0.7310228311 | FJ87: 0.7482009132 | FK87: 0.7653789954 | FL87: 0.7940091324 | FM87: 0.788283105 | FN87: 0.7711050228 | FO87: 0.7921004566 | FP87: 0.8474520548 | FQ87: 0.8894429224 | FR87: 0.9390684932 | FS87: 1.00396347 | FT87: 1.036410959 | FU87: 1.059315068 | FV87: 1.112757991 | FW87: 1.12230137 | FX87: 1.12230137 | FY87: 1.074584475 | FZ87: 1.045954338 | GA87: 0.9696073059 | GB87: 0.8970776256 | GC87: 0.855086758 | GD87: 0.8054611872 | GE87: 0.7310228311 | GF87: 0.6775799087 | GG87: 0.6031415525 | GH87: 0.5630593607 | GI87: 0.4809863014 | GJ87: 0.4199086758 | GK87: 0.3397442922 | GL87: 0.2691232877
B88: Micro CHP | C88: -0.08697150735 | D88: -0.07526917017 | E88: -0.06541327468 | F88: -0.05983291754 | G88: -0.05843782826 | H88: -0.06075203519 | I88: -0.06487985819 | J88: -0.07088694853 | K88: -0.07687762605 | L88: -0.08173581933 | M88: -0.08429621849 | N88: -0.08342633929 | O88: -0.07933134191 | P88: -0.07262670693 | Q88: -0.06314009979 | R88: -0.05325958508 | S88: -0.04465926996 | T88: -0.03615743172 | U88: -0.02855829832 | V88: -0.0234375 | W88: -0.021484375 | X88: -0.02159926471 | Y88: -0.02198496586 | Z88: -0.02149258141 | AA88: -0.02062270221 | AB88: -0.01901424632 | AC88: -0.01862854517 | AD88: -0.01959690126 | AE88: -0.02205061712 | AF88: -0.02562861082 | AG88: -0.02946920956 | AH88: -0.03234965861 | AI88: -0.03378577994 | AJ88: -0.03195575105 | AK88: -0.02753249737 | AL88: -0.02132845326 | AM88: -0.01464023109 | AN88: -0.008247439601 | AO88: -0.003840598739 | AP88: -0.00164948792 | AQ88: -0.0007960215336 | AR88: -0.0004349396008 | AS88: -0.0003610819328 | AT88: -0.0008616727941 | AU88: -0.001936712185 | AV88: -0.002937893908 | AW88: -0.003922662815 | AX88: -0.004817161239 | AY88: -0.005243894433 | AZ88: -0.005334164916 | BA88: -0.004940257353 | BB88: -0.004037552521 | BC88: -0.003159466912 | BD88: -0.002330619748 | BE88: -0.001665900735 | BF88: -0.002051601891 | BG88: -0.003372833508 | BH88: -0.005063353466 | BI88: -0.007681197479 | BJ88: -0.0108488708 | BK88: -0.01357339811 | BL88: -0.01598608193 | BM88: -0.01871881565 | BN88: -0.02150078782 | BO88: -0.02393809086 | BP88: -0.02585018382 | BQ88: -0.02866498162 | BR88: -0.03352317489 | BS88: -0.03976825105 | BT88: -0.04731814601 | BU88: -0.05746126576 | BV88: -0.0713957458 | BW88: -0.09073824842 | BX88: -0.1150866597 | BY88: -0.1451303178 | BZ88: -0.1793182117 | CA88: -0.2123982405 | CB88: -0.2381253283 | CC88: -0.2551864496 | CD88: -0.2617433692 | CE88: -0.2576565783 | CF88: -0.2418838629 | CG88: -0.2200958508 | CH88: -0.1954191833 | CI88: -0.1747800683 | CJ88: -0.1591222426 | CK88: -0.1493484112 | CL88: -0.1435793067 | CM88: -0.1424386161 | CN88: -0.141068146 | CO88: -0.1399849002 | CP88: -0.1372685793 | CQ88: -0.1315897453 | CR88: -0.123005843 | CS88: -0.1123457195 | CT88: -0.09974067752 | CU88: -0.5546000744 | CV88: -0.5348614211 | CW88: -0.5127148438 | CX88: -0.4924139695 | CY88: -0.4919187128 | CZ88: -0.4918024554 | DA88: -0.4943373326 | DB88: -0.4993201265 | DC88: -0.5065034412 | DD88: -0.5188564918 | DE88: -0.5328715588 | DF88: -0.5467736235 | DG88: -0.5574079241 | DH88: -0.5667485119 | DI88: -0.5732133557 | DJ88: -0.5799832589 | DK88: -0.5893819754 | DL88: -0.6013471912 | DM88: -0.6123525856 | DN88: -0.6281524368 | DO88: -0.6498628162 | DP88: -0.6762560454 | DQ88: -0.7056380208 | DR88: -0.7364876302 | DS88: -0.7671754092 | DT88: -0.7984072731 | DU88: -0.8268391927 | DV88: -0.8498367746 | DW88: -0.8696884301 | DX88: -0.8847316778 | DY88: -0.8932259115 | DZ88: -0.8944275484 | EA88: -0.8891913132 | EB88: -0.879734468 | EC88: -0.8651767113 | ED88: -0.8478245908 | EE88: -0.8283244978 | EF88: -0.8090499442 | EG88: -0.7905603609 | EH88: -0.7747446987 | EI88: -0.7617378162 | EJ88: -0.7470907738 | EK88: -0.7282040551 | EL88: -0.7090252976 | EM88: -0.687500465 | EN88: -0.6616276042 | EO88: -0.6363792783 | EP88: -0.6127287946 | EQ88: -0.5951497396 | ER88: -0.5850041853 | ES88: -0.5847321429 | ET88: -0.591858724 | EU88: -0.6069740513 | EV88: -0.6244084821 | EW88: -0.6434230841 | EX88: -0.6648832775 | EY88: -0.688437965 | EZ88: -0.7082421875 | FA88: -0.7251320685 | FB88: -0.7382835751 | FC88: -0.7456119792 | FD88: -0.7506189546 | FE88: -0.7547088914 | FF88: -0.7582221912 | FG88: -0.7638299851 | FH88: -0.773280785 | FI88: -0.7845447359 | FJ88: -0.7981649926 | FK88: -0.8085216704 | FL88: -0.8157017299 | FM88: -0.8192708333 | FN88: -0.8231426711 | FO88: -0.8245972842 | FP88: -0.828140346 | FQ88: -0.8335295759 | FR88: -0.8421814546 | FS88: -0.8535770089 | FT88: -0.869499628 | FU88: -0.882734375 | FV88: -0.8932942708 | FW88: -0.8983607701 | FX88: -0.8985202753 | FY88: -0.8901376488 | FZ88: -0.8742675781 | GA88: -0.850030692 | GB88: -0.8231050037 | GC88: -0.7980910528 | GD88: -0.7772577195 | GE88: -0.7565053013 | GF88: -0.7383672805 | GG88: -0.7188299851 | GH88: -0.6997061012 | GI88: -0.6786923363 | GJ88: -0.6410412016 | GK88: -0.6069242932 | GL88: -0.5781738281
B89: Electric heater | C89: 0 | D89: 0 | E89: 0 | F89: 0 | G89: 0 | H89: 0 | I89: 0 | J89: 0 | K89: 0 | L89: 0 | M89: 0 | N89: 0 | O89: 0 | P89: 0 | Q89: 0 | R89: 0 | S89: 0 | T89: 0 | U89: 0 | V89: 0 | W89: 0 | X89: 0 | Y89: 0 | Z89: 0 | AA89: 0 | AB89: 0 | AC89: 0 | AD89: 0 | AE89: 0 | AF89: 0 | AG89: 0 | AH89: 0 | AI89: 0 | AJ89: 0 | AK89: 0 | AL89: 0 | AM89: 0 | AN89: 0 | AO89: 0 | AP89: 0 | AQ89: 0 | AR89: 0 | AS89: 0 | AT89: 0 | AU89: 0 | AV89: 0 | AW89: 0 | AX89: 0 | AY89: 0 | AZ89: 0 | BA89: 0 | BB89: 0 | BC89: 0 | BD89: 0 | BE89: 0 | BF89: 0 | BG89: 0 | BH89: 0 | BI89: 0 | BJ89: 0 | BK89: 0 | BL89: 0 | BM89: 0 | BN89: 0 | BO89: 0 | BP89: 0 | BQ89: 0 | BR89: 0 | BS89: 0 | BT89: 0 | BU89: 0 | BV89: 0 | BW89: 0 | BX89: 0 | BY89: 0 | BZ89: 0 | CA89: 0 | CB89: 0 | CC89: 0 | CD89: 0 | CE89: 0 | CF89: 0 | CG89: 0 | CH89: 0 | CI89: 0 | CJ89: 0 | CK89: 0 | CL89: 0 | CM89: 0 | CN89: 0 | CO89: 0 | CP89: 0 | CQ89: 0 | CR89: 0 | CS89: 0 | CT89: 0 | CU89: 3.164892113 | CV89: 3.236828497 | CW89: 3.188197545 | CX89: 3.160802641 | CY89: 3.263577009 | CZ89: 3.296546689 | DA89: 3.294516369 | DB89: 3.343632812 | DC89: 3.388978795 | DD89: 3.394915365 | DE89: 3.445096726 | DF89: 3.497007999 | DG89: 3.480146949 | DH89: 3.501080729 | DI89: 3.588258929 | DJ89: 3.535625 | DK89: 3.62359933 | DL89: 3.689872582 | DM89: 3.741664807 | DN89: 3.791797805 | DO89: 3.943298921 | DP89: 4.02640718 | DQ89: 4.163809524 | DR89: 4.313993676 | DS89: 4.461950335 | DT89: 4.555428757 | DU89: 4.770756138 | DV89: 4.859473586 | DW89: 4.896584821 | DX89: 4.982908296 | DY89: 4.95483817 | DZ89: 4.921057478 | EA89: 4.786898251 | EB89: 4.647884115 | EC89: 4.5470359 | ED89: 4.473534226 | EE89: 4.379260603 | EF89: 4.310845424 | EG89: 4.15234654 | EH89: 4.174972098 | EI89: 4.132721354 | EJ89: 4.02890346 | EK89: 3.893307292 | EL89: 3.746706659 | EM89: 3.662552083 | EN89: 3.632640439 | EO89: 3.440613839 | EP89: =EP75 -> 3.165830543 | EQ89: 3.027845052 | ER89: 3.011835007 | ES89: 3.115838914 | ET89: 3.08968936 | EU89: 3.072281436 | EV89: 3.254621466 | EW89: 3.62031529 | EX89: 3.773113839 | EY89: 3.9065625 | EZ89: 3.941444382 | FA89: 4.07702753 | FB89: 4.273486793 | FC89: 4.351168155 | FD89: 4.377455357 | FE89: 4.526442522 | FF89: 4.606471354 | FG89: 4.766295573 | FH89: 4.880453869 | FI89: 4.978180804 | FJ89: 5.061658296 | FK89: 5.09344215 | FL89: 5.127781808 | FM89: 5.12905971 | FN89: 5.090070685 | FO89: 5.034324777 | FP89: 4.956348586 | FQ89: 4.898700707 | FR89: 4.866705729 | FS89: 4.864484747 | FT89: 4.874390811 | FU89: 4.893231957 | FV89: 4.914143415 | FW89: 4.889986049 | FX89: 4.820524554 | FY89: 4.679428013 | FZ89: 4.398836496 | GA89: 4.078411458 | GB89: 3.625581287 | GC89: 3.206203497 | GD89: 2.900448289 | GE89: 2.700371094 | GF89: 2.613018973 | GG89: 2.587274926 | GH89: 2.740888207 | GI89: 2.908710007 | GJ89: 3.013477493 | GK89: 3.123614211 | GL89: 3.18375186
B90: Ground source heat pump | C90: 0 | D90: 0 | E90: 0 | F90: 0 | G90: 0 | H90: 0 | I90: 0 | J90: 0 | K90: 0 | L90: 0 | M90: 0 | N90: 0 | O90: 0 | P90: 0 | Q90: 0 | R90: 0 | S90: 0 | T90: 0 | U90: 0 | V90: 0 | W90: 0 | X90: 0 | Y90: 0 | Z90: 0 | AA90: 0 | AB90: 0 | AC90: 0 | AD90: 0.0048585922 | AE90: 0.0378602043 | AF90: 0.1006527855 | AG90: 0.1866513207 | AH90: 0.3025580512 | AI90: 0.4374409025 | AJ90: 0.5898505317 | AK90: 0.7631593734 | AL90: 0.9030907041 | AM90: 1.00090487 | AN90: 1.082237607 | AO90: 1.135410854 | AP90: 1.184480213 | AQ90: 1.219496954 | AR90: 1.221811446 | AS90: 1.240448482 | AT90: 1.28533548 | AU90: 1.326332698 | AV90: 1.365728469 | AW90: 1.389665876 | AX90: 1.42012145 | AY90: 1.465830001 | AZ90: 1.500450498 | BA90: 1.521147228 | BB90: 1.514102996 | BC90: 1.498904274 | BD90: 1.473796542 | BE90: 1.41664729 | BF90: 1.341186523 | BG90: 1.243760851 | BH90: 1.128249395 | BI90: 1.049428788 | BJ90: 0.9638042147 | BK90: 0.8801288907 | BL90: 0.8062618195 | BM90: 0.7217668806 | BN90: 0.6475646004 | BO90: =BO76 -> 0.5781153119 | BP90: 0.478062221 | BQ90: 0.3816741459 | BR90: 0.2825675843 | BS90: 0.1957019624 | BT90: 0.1294671922 | BU90: 0.0749046689 | BV90: 0.03367493645 | BW90: 0.01126437717 | BX90: 0 | BY90: 0 | BZ90: 0 | CA90: 0 | CB90: 0 | CC90: 0 | CD90: 0 | CE90: 0 | CF90: 0 | CG90: 0 | CH90: 0 | CI90: 0 | CJ90: 0 | CK90: 0 | CL90: 0 | CM90: 0 | CN90: 0 | CO90: 0 | CP90: 0 | CQ90: 0 | CR90: 0 | CS90: 0 | CT90: 0 | CU90: 1.239430339 | CV90: 1.259167597 | CW90: 1.267780878 | CX90: 1.278083612 | CY90: 1.290406901 | CZ90: 1.298932757 | DA90: 1.307005673 | DB90: 1.307685082 | DC90: 1.311130952 | DD90: 1.31600865 | DE90: 1.314662853 | DF90: 1.321197917 | DG90: 1.325159505 | DH90: 1.326509487 | DI90: 1.334733538 | DJ90: 1.337488374 | DK90: 1.340422247 | DL90: 1.348231492 | DM90: 1.355737072 | DN90: 1.360066499 | DO90: 1.372876209 | DP90: 1.379877232 | DQ90: 1.391296038 | DR90: 1.404003906 | DS90: 1.416309524 | DT90: 1.42460333 | DU90: 1.435011626 | DV90: 1.440536644 | DW90: 1.44430385 | DX90: 1.444122489 | DY90: 1.44406529 | DZ90: 1.439036923 | EA90: =EA76 -> 1.434779111 | EB90: 1.428100353 | EC90: 1.419248977 | ED90: 1.408382161 | EE90: 1.395426432 | EF90: 1.382657645 | EG90: 1.374504743 | EH90: 1.368267764 | EI90: 1.36155971 | EJ90: 1.352043806 | EK90: 1.344355934 | EL90: 1.336068638 | EM90: 1.323859747 | EN90: 1.310186012 | EO90: 1.290884022 | EP90: 1.280813802 | EQ90: 1.279785156 | ER90: 1.290755208 | ES90: 1.308561663 | ET90: 1.332440941 | EU90: 1.345090216 | EV90: 1.361809431 | EW90: 1.366487165 | EX90: 1.374271298 | EY90: 1.374827474 | EZ90: 1.378837891 | FA90: 1.387215867 | FB90: 1.402067987 | FC90: 1.421713635 | FD90: 1.441234654 | FE90: 1.451557385 | FF90: 1.46218936 | FG90: 1.466187686 | FH90: 1.463516555 | FI90: 1.467520926 | FJ90: 1.466919178 | FK90: 1.468728144 | FL90: 1.473229632 | FM90: 1.473815569 | FN90: 1.475068824 | FO90: 1.472996652 | FP90: 1.467738095 | FQ90: 1.463202195 | FR90: 1.461383929 | FS90: 1.454600074 | FT90: 1.446427176 | FU90: 1.433887649 | FV90: 1.418815104 | FW90: 1.394828869 | FX90: 1.363262649 | FY90: 1.326845703 | FZ90: 1.285292504 | GA90: 1.237575335 | GB90: 1.197044736 | GC90: 1.15406715 | GD90: 1.122453962 | GE90: 1.103798828 | GF90: 1.095024647 | GG90: 1.100530134 | GH90: 1.121592262 | GI90: 1.143422154 | GJ90: 1.166271391 | GK90: 1.19296782 | GL90: 1.21500186
B91: Bivalent heat pump | C91: 0 | D91: =D77 -> 0 | E91: 0 | F91: 0 | G91: 0 | H91: 0 | I91: 0 | J91: 0 | K91: 0 | L91: 0 | M91: 0 | N91: 0 | O91: 0 | P91: 0 | Q91: 0 | R91: 0 | S91: 0 | T91: 0 | U91: 0 | V91: 0 | W91: 0 | X91: 0 | Y91: 0 | Z91: 0 | AA91: 0 | AB91: 0 | AC91: 0 | AD91: 0 | AE91: 0 | AF91: 0 | AG91: 0 | AH91: 0 | AI91: 0 | AJ91: 0 | AK91: 0 | AL91: 0 | AM91: 0 | AN91: 0 | AO91: 0 | AP91: 0 | AQ91: 0 | AR91: 0 | AS91: 0 | AT91: 0 | AU91: 0 | AV91: 0 | AW91: 0 | AX91: 0 | AY91: 0 | AZ91: 0 | BA91: 0 | BB91: 0 | BC91: 0 | BD91: 0 | BE91: 0 | BF91: 0 | BG91: 0 | BH91: 0 | BI91: 0 | BJ91: 0 | BK91: 0 | BL91: 0 | BM91: 0 | BN91: 0 | BO91: 0 | BP91: 0 | BQ91: 0 | BR91: 0 | BS91: 0 | BT91: 0 | BU91: 0 | BV91: 0 | BW91: 0 | BX91: 0 | BY91: 0 | BZ91: 0 | CA91: 0 | CB91: 0 | CC91: 0 | CD91: 0 | CE91: 0 | CF91: 0 | CG91: 0 | CH91: 0 | CI91: 0 | CJ91: 0 | CK91: 0 | CL91: 0 | CM91: 0 | CN91: 0 | CO91: 0 | CP91: 0 | CQ91: 0 | CR91: 0 | CS91: 0 | CT91: 0 | CU91: 0.9774827939 | CV91: 0.9218005952 | CW91: 0.8095861235 | CX91: 0.6680798921 | CY91: 0.5608045015 | CZ91: 0.4371823847 | DA91: 0.335249721 | DB91: 0.4128794643 | DC91: 0.6501832217 | DD91: 0.8785686384 | DE91: 1.086815476 | DF91: 1.189471726 | DG91: 1.276153739 | DH91: 1.353462147 | DI91: 1.308187314 | DJ91: 1.140197173 | DK91: 1.036898717 | DL91: 0.968234282 | DM91: 1.076888021 | DN91: 1.248850446 | DO91: 1.462291202 | DP91: 1.629988374 | DQ91: 1.793340774 | DR91: 1.914913039 | DS91: 2.015940755 | DT91: 2.048868118 | DU91: 2.015753813 | DV91: 1.957018694 | DW91: 1.927512091 | DX91: 1.854863281 | DY91: 1.779720982 | DZ91: 1.723995536 | EA91: 1.667115885 | EB91: 1.633994606 | EC91: 1.588924851 | ED91: 1.530617094 | EE91: 1.476546224 | EF91: 1.452580915 | EG91: 1.429871652 | EH91: 1.403148251 | EI91: 1.375629185 | EJ91: 1.333212891 | EK91: 1.299554036 | EL91: 1.288187314 | EM91: 1.299857236 | EN91: 1.300851004 | EO91: 1.289341518 | EP91: 1.244381975 | EQ91: 1.216625744 | ER91: 1.310772879 | ES91: 1.414562872 | ET91: 1.433394252 | EU91: 1.450235305 | EV91: 1.462058222 | EW91: 1.486883371 | EX91: 1.54031901 | EY91: 1.532678106 | EZ91: 1.548836496 | FA91: 1.602664156 | FB91: 1.654111328 | FC91: 1.706615513 | FD91: 1.776358817 | FE91: 1.817996652 | FF91: 1.797167969 | FG91: 1.762938058 | FH91: 1.724177827 | FI91: 1.702016369 | FJ91: 1.688211496 | FK91: 1.672861793 | FL91: 1.649311756 | FM91: 1.63445452 | FN91: 1.580953776 | FO91: 1.551283482 | FP91: 1.520263672 | FQ91: 1.496131417 | FR91: 1.486451823 | FS91: 1.482308873 | FT91: 1.485299014 | FU91: 1.483183594 | FV91: 1.454470796 | FW91: 1.423163132 | FX91: 1.38648949 | FY91: 1.331677827 | FZ91: 1.272703218 | GA91: 1.191066778 | GB91: 1.128852772 | GC91: 1.098006882 | GD91: 1.081016555 | GE91: 1.076568545 | GF91: 1.06374256 | GG91: 1.043277065 | GH91: 1.069177827 | GI91: 1.106886161 | GJ91: 1.091123977 | GK91: 1.075619885 | GL91: 1.04062965
B92: Air conditioning | C92: 0 | D92: 0 | E92: 0 | F92: 0 | G92: 0 | H92: 0 | I92: 0 | J92: 0 | K92: 0 | L92: 0 | M92: 0 | N92: 0 | O92: 0 | P92: 0 | Q92: 0 | R92: 0 | S92: 0 | T92: 0 | U92: 0 | V92: 0 | W92: 0 | X92: 0 | Y92: 0 | Z92: 0 | AA92: 0 | AB92: 0 | AC92: 0 | AD92: 0.0048585922 | AE92: 0.0378602043 | AF92: 0.1006527855 | AG92: 0.1866513207 | AH92: 0.3025580512 | AI92: 0.4374409025 | AJ92: 0.5898505317 | AK92: 0.7631593734 | AL92: 0.9030907041 | AM92: 1.00090487 | AN92: 1.082237607 | AO92: 1.135410854 | AP92: 1.184480213 | AQ92: 1.219496954 | AR92: 1.221811446 | AS92: 1.240448482 | AT92: 1.28533548 | AU92: 1.326332698 | AV92: 1.365728469 | AW92: 1.389665876 | AX92: 1.42012145 | AY92: 1.465830001 | AZ92: 1.500450498 | BA92: 1.521147228 | BB92: 1.514102996 | BC92: 1.498904274 | BD92: 1.473796542 | BE92: 1.41664729 | BF92: 1.341186523 | BG92: 1.243760851 | BH92: 1.128249395 | BI92: 1.049428788 | BJ92: 0.9638042147 | BK92: 0.8801288907 | BL92: 0.8062618195 | BM92: 0.7217668806 | BN92: 0.6475646004 | BO92: 0.5781153119 | BP92: 0.478062221 | BQ92: 0.3816741459 | BR92: 0.2825675843 | BS92: 0.1957019624 | BT92: 0.1294671922 | BU92: 0.0749046689 | BV92: 0.03367493645 | BW92: 0.01126437717 | BX92: 0 | BY92: 0 | BZ92: 0 | CA92: 0 | CB92: 0 | CC92: 0 | CD92: 0 | CE92: 0 | CF92: 0 | CG92: 0 | CH92: 0 | CI92: 0 | CJ92: 0 | CK92: 0 | CL92: 0 | CM92: 0 | CN92: 0 | CO92: 0 | CP92: 0 | CQ92: 0 | CR92: 0 | CS92: 0 | CT92: 0 | CU92: 0 | CV92: 0 | CW92: 0 | CX92: 0 | CY92: 0 | CZ92: 0 | DA92: 0 | DB92: 0 | DC92: 0 | DD92: 0 | DE92: 0 | DF92: 0 | DG92: 0 | DH92: 0 | DI92: 0 | DJ92: 0 | DK92: 0 | DL92: 0 | DM92: 0 | DN92: 0 | DO92: 0 | DP92: 0 | DQ92: 0 | DR92: 0 | DS92: 0 | DT92: 0 | DU92: 0 | DV92: 0 | DW92: 0 | DX92: 0 | DY92: 0 | DZ92: 0 | EA92: 0 | EB92: 0 | EC92: 0 | ED92: 0 | EE92: 0 | EF92: 0 | EG92: 0 | EH92: 0 | EI92: 0 | EJ92: 0 | EK92: 0 | EL92: 0 | EM92: 0 | EN92: 0 | EO92: 0 | EP92: 0 | EQ92: 0 | ER92: 0 | ES92: 0 | ET92: 0 | EU92: 0 | EV92: 0 | EW92: 0 | EX92: 0 | EY92: 0 | EZ92: 0 | FA92: 0 | FB92: 0 | FC92: 0 | FD92: 0 | FE92: 0 | FF92: 0 | FG92: 0 | FH92: 0 | FI92: 0 | FJ92: 0 | FK92: 0 | FL92: 0 | FM92: 0 | FN92: 0 | FO92: 0 | FP92: 0 | FQ92: 0 | FR92: 0 | FS92: 0 | FT92: 0 | FU92: 0 | FV92: 0 | FW92: 0 | FX92: 0 | FY92: 0 | FZ92: 0 | GA92: 0 | GB92: 0 | GC92: 0 | GD92: 0 | GE92: 0 | GF92: 0 | GG92: 0 | GH92: 0 | GI92: 0 | GJ92: 0 | GK92: 0 | GL92: 0
E94: (the equation used here:
B95: Transformer power [kW]
C96: 00:00:00 | D96: 00:15:00 | E96: 00:30:00 | F96: 00:45:00 | G96: 01:00:00 | H96: 01:15:00 | I96: 01:30:00 | J96: 01:45:00 | K96: 02:00:00 | L96: 02:15:00 | M96: 02:30:00 | N96: 02:45:00 | O96: 03:00:00 | P96: 03:15:00 | Q96: 03:30:00 | R96: 03:45:00 | S96: 04:00:00 | T96: 04:15:00 | U96: 04:30:00 | V96: 04:45:00 | W96: 05:00:00 | X96: 05:15:00 | Y96: 05:30:00 | Z96: 05:45:00 | AA96: 06:00:00 | AB96: 06:15:00 | AC96: 06:30:00 | AD96: 06:45:00 | AE96: 07:00:00 | AF96: 07:15:00 | AG96: 07:30:00 | AH96: 07:45:00 | AI96: 08:00:00 | AJ96: 08:15:00 | AK96: 08:30:00 | AL96: 08:45:00 | AM96: 09:00:00 | AN96: 09:15:00 | AO96: 09:30:00 | AP96: 09:45:00 | AQ96: 10:00:00 | AR96: 10:15:00 | AS96: 10:30:00 | AT96: 10:45:00 | AU96: 11:00:00 | AV96: 11:15:00 | AW96: 11:30:00 | AX96: 11:45:00 | AY96: 12:00:00 | AZ96: 12:15:00 | BA96: 12:30:00 | BB96: 12:45:00 | BC96: 13:00:00 | BD96: 13:15:00 | BE96: 13:30:00 | BF96: 13:45:00 | BG96: 14:00:00 | BH96: 14:15:00 | BI96: 14:30:00 | BJ96: 14:45:00 | BK96: 15:00:00 | BL96: 15:15:00 | BM96: 15:30:00 | BN96: 15:45:00 | BO96: 16:00:00 | BP96: 16:15:00 | BQ96: 16:30:00 | BR96: 16:45:00 | BS96: 17:00:00 | BT96: 17:15:00 | BU96: 17:30:00 | BV96: 17:45:00 | BW96: 18:00:00 | BX96: 18:15:00 | BY96: 18:30:00 | BZ96: 18:45:00 | CA96: 19:00:00 | CB96: 19:15:00 | CC96: 19:30:00 | CD96: 19:45:00 | CE96: 20:00:00 | CF96: 20:15:00 | CG96: 20:30:00 | CH96: 20:45:00 | CI96: 21:00:00 | CJ96: 21:15:00 | CK96: 21:30:00 | CL96: 21:45:00 | CM96: 22:00:00 | CN96: 22:15:00 | CO96: 22:30:00 | CP96: 22:45:00 | CQ96: 23:00:00 | CR96: 23:15:00 | CS96: 23:30:00 | CT96: 23:45:00 | CU96: 00:00:00 | CV96: 00:15:00 | CW96: 00:30:00 | CX96: 00:45:00 | CY96: 01:00:00 | CZ96: 01:15:00 | DA96: 01:30:00 | DB96: 01:45:00 | DC96: 02:00:00 | DD96: 02:15:00 | DE96: 02:30:00 | DF96: 02:45:00 | DG96: 03:00:00 | DH96: 03:15:00 | DI96: 03:30:00 | DJ96: 03:45:00 | DK96: 04:00:00 | DL96: 04:15:00 | DM96: 04:30:00 | DN96: 04:45:00 | DO96: 05:00:00 | DP96: 05:15:00 | DQ96: 05:30:00 | DR96: 05:45:00 | DS96: 06:00:00 | DT96: 06:15:00 | DU96: 06:30:00 | DV96: 06:45:00 | DW96: 07:00:00 | DX96: 07:15:00 | DY96: 07:30:00 | DZ96: 07:45:00 | EA96: 08:00:00 | EB96: 08:15:00 | EC96: 08:30:00 | ED96: 08:45:00 | EE96: 09:00:00 | EF96: 09:15:00 | EG96: 09:30:00 | EH96: 09:45:00 | EI96: 10:00:00 | EJ96: 10:15:00 | EK96: 10:30:00 | EL96: 10:45:00 | EM96: 11:00:00 | EN96: 11:15:00 | EO96: 11:30:00 | EP96: 11:45:00 | EQ96: 12:00:00 | ER96: 12:15:00 | ES96: 12:30:00 | ET96: 12:45:00 | EU96: 13:00:00 | EV96: 13:15:00 | EW96: 13:30:00 | EX96: 13:45:00 | EY96: 14:00:00 | EZ96: 14:15:00 | FA96: 14:30:00 | FB96: 14:45:00 | FC96: 15:00:00 | FD96: 15:15:00 | FE96: 15:30:00 | FF96: 15:45:00 | FG96: 16:00:00 | FH96: 16:15:00 | FI96: 16:30:00 | FJ96: 16:45:00 | FK96: 17:00:00 | FL96: 17:15:00 | FM96: 17:30:00 | FN96: 17:45:00 | FO96: 18:00:00 | FP96: 18:15:00 | FQ96: 18:30:00 | FR96: 18:45:00 | FS96: 19:00:00 | FT96: 19:15:00 | FU96: 19:30:00 | FV96: 19:45:00 | FW96: 20:00:00 | FX96: 20:15:00 | FY96: 20:30:00 | FZ96: 20:45:00 | GA96: 21:00:00 | GB96: 21:15:00 | GC96: 21:30:00 | GD96: 21:45:00 | GE96: 22:00:00 | GF96: 22:15:00 | GG96: 22:30:00 | GH96: 22:45:00 | GI96: 23:00:00 | GJ96: 23:15:00 | GK96: 23:30:00 | GL96: 23:45:00
B97: Household load | C97: =($C$38*$D58-SQRT($C$38)*($D58-$C58))/$D58*C84 -> 33.55237491 | D97: =($C$38*$D58-SQRT($C$38)*($D58-$C58))/$D58*D84 -> 31.32679302 | E97: 28.05246903 | F97: 26.51529694 | G97: 24.08420583 | H97: 22.99629717 | I97: 21.39323311 | J97: 20.77255841 | K97: 19.57774809 | L97: 19.02066145 | M97: 18.35575158 | N97: 18.14701688 | O97: 17.75120428 | P97: 17.55629307 | Q97: 17.37704849 | R97: 17.38534258 | S97: 17.46183256 | T97: 17.27521544 | U97: 17.08030424 | V97: 17.13974524 | W97: 17.2222254 | X97: 17.34801916 | Y97: 17.11716688 | Z97: 17.55537151 | AA97: 17.89865484 | AB97: 18.48615317 | AC97: 18.91974997 | AD97: 19.40633682 | AE97: 20.32237342 | AF97: 20.99834208 | AG97: 22.86773871 | AH97: 24.14641154 | AI97: 26.79176674 | AJ97: 28.19208628 | AK97: 30.56097168 | AL97: 31.78020349 | AM97: 34.44813706 | AN97: 35.51807519 | AO97: 36.89028696 | AP97: 37.03266891 | AQ97: 37.5261675 | AR97: 37.65610831 | AS97: 37.86714692 | AT97: 38.0357935 | AU97: 38.39612581 | AV97: 38.5454195 | AW97: 38.81267364 | AX97: 39.36423089 | AY97: 40.08074845 | AZ97: 40.55765886 | BA97: 40.64290371 | BB97: 40.88481479 | BC97: 40.69082514 | BD97: 40.47932575 | BE97: 39.6457693 | BF97: 39.38035829 | BG97: 39.31769181 | BH97: 38.80207563 | BI97: 38.06067578 | BJ97: 37.63076524 | BK97: 37.45244222 | BL97: 37.42341289 | BM97: 37.65702987 | BN97: 37.70679444 | BO97: 37.45797162 | BP97: =($C$38*$D58-SQRT($C$38)*($D58-$C58))/$D58*BP84 -> 37.35291309 | BQ97: 37.9924799 | BR97: 38.69747789 | BS97: 39.77478854 | BT97: 40.48393358 | BU97: 41.92203732 | BV97: 42.80674068 | BW97: 43.90893361 | BX97: 43.7278459 | BY97: 43.28964126 | BZ97: 43.06293603 | CA97: 43.45368001 | CB97: 43.43018008 | CC97: 43.27305308 | CD97: 43.1693769 | CE97: 42.7735643 | CF97: 42.38374189 | CG97: 41.41701915 | CH97: 40.97190277 | CI97: 40.27243418 | CJ97: 40.00287613 | CK97: 39.8816902 | CL97: 40.23695389 | CM97: 41.16451007 | CN97: 41.92756672 | CO97: 43.06846542 | CP97: 43.25646489 | CQ97: 43.24724923 | CR97: 42.09160546 | CS97: 39.57204402 | CT97: 37.3229622 | CU97: 37.1575411 | CV97: 35.04669418 | CW97: 32.30457455 | CX97: 30.59875588 | CY97: 27.86999896 | CZ97: 26.5705909 | DA97: 24.8140861 | DB97: 23.98605905 | DC97: 22.73319008 | DD97: 21.97566283 | DE97: 21.24578255 | DF97: 20.77993094 | DG97: 20.09566819 | DH97: 19.64778711 | DI97: 19.32708214 | DJ97: 19.13493563 | DK97: 18.79257386 | DL97: 18.35575158 | DM97: 17.9650076 | DN97: 17.74659645 | DO97: 17.81940017 | DP97: 18.00601728 | DQ97: 18.32994773 | DR97: 18.76953471 | DS97: 19.14276894 | DT97: 19.53535606 | DU97: 20.01272725 | DV97: 20.88913651 | DW97: 22.70185683 | DX97: 24.07176469 | DY97: 26.31808182 | DZ97: 27.8607833 | EA97: 30.30661946 | EB97: =($C$38*$D58-SQRT($C$38)*($D58-$C58))/$D58*EB84 -> 32.12302605 | EC97: 35.01029232 | ED97: 37.10593341 | EE97: 40.51204134 | EF97: 41.98700772 | EG97: 44.29046194 | EH97: 45.53319369 | EI97: 47.52331547 | EJ97: 48.20619587 | EK97: 48.43197954 | EL97: 48.27992115 | EM97: 48.09652952 | EN97: 48.14767643 | EO97: 48.96833095 | EP97: 49.62494673 | EQ97: 51.1082072 | ER97: 51.15106002 | ES97: 50.63820854 | ET97: 49.82262263 | EU97: 49.37381999 | EV97: 49.38349644 | EW97: 49.72401507 | EX97: 49.67563286 | EY97: 49.32774169 | EZ97: 49.15771277 | FA97: 48.95727216 | FB97: 48.91165464 | FC97: 48.2974309 | FD97: 47.6145505 | FE97: 47.58413882 | FF97: 48.07210802 | FG97: 50.29354286 | FH97: 52.14865522 | FI97: 56.80717134 | FJ97: 60.63074868 | FK97: 66.9996913 | FL97: 70.21779977 | FM97: 74.04045554 | FN97: 74.83807091 | FO97: 74.67264981 | FP97: 73.9952988 | FQ97: 73.24975191 | FR97: 73.21519318 | FS97: 73.13363459 | FT97: 72.89863526 | FU97: 72.82951781 | FV97: 72.26413707 | FW97: 70.90713114 | FX97: 69.10454804 | FY97: 66.52416324 | FZ97: 65.26484331 | GA97: 63.56962265 | GB97: 62.63791942 | GC97: 60.79017959 | GD97: 59.76724134 | GE97: 57.90383488 | GF97: 56.78966159 | GG97: 54.84423577 | GH97: 53.11491717 | GI97: 49.33695735 | GJ97: 46.5059066 | GK97: 41.91097853 | GL97: 39.03016321
B98: Solar PV | C98: =($C$38*$C7*$D59-SQRT($C$38*$C7)*($D59-$C59))/$D59*C85 -> 0 | D98: =($C$38*$C7*$D59-SQRT($C$38*$C7)*($D59-$C59))/$D59*D85 -> 0 | E98: 0 | F98: 0 | G98: 0 | H98: 0 | I98: 0 | J98: 0 | K98: 0 | L98: 0 | M98: 0 | N98: 0 | O98: 0 | P98: -0.1765926 | Q98: -0.89767905 | R98: -2.4134322 | S98: -4.4736792 | T98: -6.7988151 | U98: -9.16809915 | V98: -11.478519 | W98: -14.99565495 | X98: -18.7776798 | Y98: -22.3389639 | Z98: -25.4293344 | AA98: -29.0200506 | AB98: -32.7873594 | AC98: -36.3780756 | AD98: -39.8510634 | AE98: -43.3240512 | AF98: -46.8853353 | AG98: -50.2700268 | AH98: -53.6841504 | AI98: -56.8628172 | AJ98: -59.7177309 | AK98: -62.61679275 | AL98: -65.1626694 | AM98: -67.47308925 | AN98: -69.7246449 | AO98: -72.03506475 | AP98: -73.5508179 | AQ98: -74.33076855 | AR98: -76.7589168 | AS98: -76.9060773 | AT98: -78.1716576 | AU98: -78.4659786 | AV98: -78.7308675 | AW98: -78.7308675 | AX98: -78.5248428 | AY98: -78.3482502 | AZ98: -77.6124477 | BA98: -76.817781 | BB98: -75.4933365 | BC98: -73.97758335 | BD98: -72.1675092 | BE98: -70.56345975 | BF98: -68.4590646 | BG98: -66.0750645 | BH98: -63.8970891 | BI98: -61.1893359 | BJ98: -58.2461259 | BK98: -55.3029159 | BL98: -52.4185701 | BM98: -49.0338786 | BN98: -45.8846439 | BO98: -42.4705203 | BP98: =($C$38*$C7*$D59-SQRT($C$38*$C7)*($D59-$C59))/$D59*BP85 -> -39.2329893 | BQ98: -35.5834089 | BR98: -32.1692853 | BS98: -28.6962975 | BT98: -24.9878529 | BU98: -21.6325935 | BV98: -18.2773341 | BW98: -14.84849445 | BX98: -11.3313585 | BY98: -8.5058769 | BZ98: -5.592099 | CA98: -3.2669631 | CB98: -1.6776297 | CC98: -0.60335805 | CD98: 0 | CE98: 0 | CF98: 0 | CG98: 0 | CH98: 0 | CI98: 0 | CJ98: 0 | CK98: 0 | CL98: 0 | CM98: 0 | CN98: 0 | CO98: 0 | CP98: 0 | CQ98: 0 | CR98: 0 | CS98: 0 | CT98: 0 | CU98: 0 | CV98: 0 | CW98: 0 | CX98: 0 | CY98: 0 | CZ98: 0 | DA98: 0 | DB98: 0 | DC98: 0 | DD98: 0 | DE98: 0 | DF98: 0 | DG98: 0 | DH98: 0 | DI98: 0 | DJ98: 0 | DK98: 0 | DL98: 0 | DM98: 0 | DN98: 0 | DO98: 0 | DP98: 0 | DQ98: 0 | DR98: 0 | DS98: 0 | DT98: 0 | DU98: 0 | DV98: 0 | DW98: 0 | DX98: 0 | DY98: -0.4120494 | DZ98: -2.1191112 | EA98: -5.28306195 | EB98: =($C$38*$C7*$D59-SQRT($C$38*$C7)*($D59-$C59))/$D59*EB85 -> -8.4470127 | EC98: -11.87585235 | ED98: -15.1869636 | EE98: -18.3067662 | EF98: -21.2205441 | EG98: -23.82528495 | EH98: -26.1062727 | EI98: -27.8721987 | EJ98: -29.3143716 | EK98: -29.9618778 | EL98: -29.9030136 | EM98: -29.4615321 | EN98: -28.7551617 | EO98: -27.62202585 | EP98: -26.4594579 | EQ98: -25.26745785 | ER98: -23.7517047 | ES98: -22.11822315 | ET98: -20.2787169 | EU98: -18.3361983 | EV98: -16.0699266 | EW98: -13.244445 | EX98: -8.9767905 | EY98: -7.0342719 | EZ98: -6.7399509 | FA98: -6.0924447 | FB98: -4.0027656 | FC98: -2.0013828 | FD98: -0.5297778 | FE98: -0.0588642 | FF98: 0 | FG98: 0 | FH98: 0 | FI98: 0 | FJ98: 0 | FK98: 0 | FL98: 0 | FM98: 0 | FN98: 0 | FO98: 0 | FP98: 0 | FQ98: 0 | FR98: 0 | FS98: 0 | FT98: 0 | FU98: 0 | FV98: 0 | FW98: 0 | FX98: 0 | FY98: 0 | FZ98: 0 | GA98: 0 | GB98: 0 | GC98: 0 | GD98: 0 | GE98: 0 | GF98: 0 | GG98: 0 | GH98: 0 | GI98: 0 | GJ98: 0 | GK98: 0 | GL98: 0
B99: 3kW uncontrolled charging | C99: =($C$38*$C8*$D60-SQRT($C$38*$C8)*($D60-$C60))/$D60*C86 -> 0 | D99: =($C$38*$C8*$D60-SQRT($C$38*$C8)*($D60-$C60))/$D60*D86 -> 0 | E99: 0 | F99: 0 | G99: 0 | H99: 0 | I99: 0 | J99: 0 | K99: 0 | L99: 0 | M99: 0 | N99: 0 | O99: 0 | P99: 0 | Q99: 0 | R99: 0 | S99: 0 | T99: 0 | U99: 0 | V99: 0 | W99: 0 | X99: 0 | Y99: 0 | Z99: 0 | AA99: 0 | AB99: 0 | AC99: 0 | AD99: 0 | AE99: 0 | AF99: 0 | AG99: 0 | AH99: 0 | AI99: 0 | AJ99: 0 | AK99: 0 | AL99: 0 | AM99: 0 | AN99: 0 | AO99: 0 | AP99: 0 | AQ99: 0 | AR99: 0 | AS99: 0 | AT99: 0 | AU99: 0 | AV99: 0 | AW99: 0 | AX99: 0 | AY99: 0 | AZ99: 0 | BA99: 0 | BB99: 0 | BC99: 0 | BD99: 0 | BE99: 0 | BF99: 0 | BG99: 0 | BH99: 0 | BI99: 0 | BJ99: 0 | BK99: 0 | BL99: 0 | BM99: 0 | BN99: 0 | BO99: 0 | BP99: =($C$38*$C8*$D60-SQRT($C$38*$C8)*($D60-$C60))/$D60*BP86 -> 0 | BQ99: 0 | BR99: 0 | BS99: 0 | BT99: 0 | BU99: 0 | BV99: 0 | BW99: 0 | BX99: 0 | BY99: 0 | BZ99: 0 | CA99: 0 | CB99: 0 | CC99: 0 | CD99: 0 | CE99: 0 | CF99: 0 | CG99: 0 | CH99: 0 | CI99: 0 | CJ99: 0 | CK99: 0 | CL99: 0 | CM99: 0 | CN99: 0 | CO99: 0 | CP99: 0 | CQ99: 0 | CR99: 0 | CS99: 0 | CT99: 0 | CU99: 0 | CV99: 0 | CW99: 0 | CX99: 0 | CY99: 0 | CZ99: 0 | DA99: 0 | DB99: 0 | DC99: 0 | DD99: 0 | DE99: 0 | DF99: 0 | DG99: 0 | DH99: 0 | DI99: 0 | DJ99: 0 | DK99: 0 | DL99: 0 | DM99: 0 | DN99: 0 | DO99: 0 | DP99: 0 | DQ99: 0 | DR99: 0 | DS99: 0 | DT99: 0 | DU99: 0 | DV99: 0 | DW99: 0 | DX99: 0 | DY99: 0 | DZ99: 0 | EA99: 0 | EB99: =($C$38*$C8*$D60-SQRT($C$38*$C8)*($D60-$C60))/$D60*EB86 -> 0 | EC99: 0 | ED99: 0 | EE99: 0 | EF99: 0 | EG99: 0 | EH99: 0 | EI99: 0 | EJ99: 0 | EK99: 0 | EL99: 0 | EM99: 0 | EN99: 0 | EO99: 0 | EP99: 0 | EQ99: 0 | ER99: 0 | ES99: 0 | ET99: 0 | EU99: 0 | EV99: 0 | EW99: 0 | EX99: 0 | EY99: 0 | EZ99: 0 | FA99: 0 | FB99: 0 | FC99: 0 | FD99: 0 | FE99: 0 | FF99: 0 | FG99: 0 | FH99: 0 | FI99: 0 | FJ99: 0 | FK99: 0 | FL99: 0 | FM99: 0 | FN99: 0 | FO99: 0 | FP99: 0 | FQ99: 0 | FR99: 0 | FS99: 0 | FT99: 0 | FU99: 0 | FV99: 0 | FW99: 0 | FX99: 0 | FY99: 0 | FZ99: 0 | GA99: 0 | GB99: 0 | GC99: 0 | GD99: 0 | GE99: 0 | GF99: 0 | GG99: 0 | GH99: 0 | GI99: 0 | GJ99: 0 | GK99: 0 | GL99: 0
B100: Electric boiler | C100: 0 | D100: =($C$38*$C9*$D61-SQRT($C$38*$C9)*($D61-$C61))/$D61*D87 -> 0 | E100: 0 | F100: 0 | G100: 0 | H100: 0 | I100: 0 | J100: 0 | K100: 0 | L100: 0 | M100: 0 | N100: 0 | O100: 0 | P100: 0 | Q100: 0 | R100: 0 | S100: 0 | T100: 0 | U100: 0 | V100: 0 | W100: 0 | X100: 0 | Y100: 0 | Z100: 0 | AA100: 0 | AB100: 0 | AC100: 0 | AD100: 0 | AE100: 0 | AF100: 0 | AG100: 0 | AH100: 0 | AI100: 0 | AJ100: 0 | AK100: 0 | AL100: 0 | AM100: 0 | AN100: 0 | AO100: 0 | AP100: 0 | AQ100: 0 | AR100: 0 | AS100: 0 | AT100: 0 | AU100: 0 | AV100: 0 | AW100: 0 | AX100: 0 | AY100: 0 | AZ100: 0 | BA100: 0 | BB100: 0 | BC100: 0 | BD100: 0 | BE100: 0 | BF100: 0 | BG100: 0 | BH100: 0 | BI100: 0 | BJ100: 0 | BK100: 0 | BL100: 0 | BM100: 0 | BN100: 0 | BO100: 0 | BP100: =($C$38*$C9*$D61-SQRT($C$38*$C9)*($D61-$C61))/$D61*BP87 -> 0 | BQ100: 0 | BR100: 0 | BS100: 0 | BT100: 0 | BU100: 0 | BV100: 0 | BW100: 0 | BX100: 0 | BY100: 0 | BZ100: 0 | CA100: 0 | CB100: 0 | CC100: 0 | CD100: 0 | CE100: 0 | CF100: 0 | CG100: 0 | CH100: 0 | CI100: 0 | CJ100: 0 | CK100: 0 | CL100: 0 | CM100: 0 | CN100: 0 | CO100: 0 | CP100: 0 | CQ100: 0 | CR100: 0 | CS100: 0 | CT100: 0 | CU100: 0 | CV100: 0 | CW100: 0 | CX100: 0 | CY100: 0 | CZ100: 0 | DA100: 0 | DB100: 0 | DC100: 0 | DD100: 0 | DE100: 0 | DF100: 0 | DG100: 0 | DH100: 0 | DI100: 0 | DJ100: 0 | DK100: 0 | DL100: 0 | DM100: 0 | DN100: 0 | DO100: 0 | DP100: 0 | DQ100: 0 | DR100: 0 | DS100: 0 | DT100: 0 | DU100: 0 | DV100: 0 | DW100: 0 | DX100: 0 | DY100: 0 | DZ100: 0 | EA100: 0 | EB100: =($C$38*$C9*$D61-SQRT($C$38*$C9)*($D61-$C61))/$D61*EB87 -> 0 | EC100: 0 | ED100: 0 | EE100: 0 | EF100: 0 | EG100: 0 | EH100: 0 | EI100: 0 | EJ100: 0 | EK100: 0 | EL100: 0 | EM100: 0 | EN100: 0 | EO100: 0 | EP100: 0 | EQ100: 0 | ER100: 0 | ES100: 0 | ET100: 0 | EU100: 0 | EV100: 0 | EW100: 0 | EX100: 0 | EY100: 0 | EZ100: 0 | FA100: 0 | FB100: 0 | FC100: 0 | FD100: 0 | FE100: 0 | FF100: 0 | FG100: 0 | FH100: 0 | FI100: 0 | FJ100: 0 | FK100: 0 | FL100: 0 | FM100: 0 | FN100: 0 | FO100: 0 | FP100: 0 | FQ100: 0 | FR100: 0 | FS100: 0 | FT100: 0 | FU100: 0 | FV100: 0 | FW100: 0 | FX100: 0 | FY100: 0 | FZ100: 0 | GA100: 0 | GB100: 0 | GC100: 0 | GD100: 0 | GE100: 0 | GF100: 0 | GG100: 0 | GH100: 0 | GI100: 0 | GJ100: 0 | GK100: 0 | GL100: 0
B101: Micro CHP | C101: -4.505694583 | D101: =($C$38*$C10*$D62-SQRT($C$38*$C10)*($D62-$C62))/$D62*D88 -> -3.899436753 | E101: -3.388836716 | F101: -3.099737611 | G101: -3.027462835 | H101: -3.147353934 | I101: -3.361202243 | J101: -3.672408927 | K101: -3.982765319 | L101: -4.234451599 | M101: -4.367097071 | N101: -4.322031622 | O101: -4.109883896 | P101: -3.762539824 | Q101: -3.271071346 | R101: -2.759195871 | S101: -2.313643133 | T101: -1.873192143 | U101: -1.479507185 | V101: -1.214216242 | W101: -1.113031555 | X101: -1.118983595 | Y101: -1.138965445 | Z101: -1.113456701 | AA101: -1.068391252 | AB101: -0.9850626862 | AC101: -0.9650808363 | AD101: -1.015248034 | AE101: -1.142366611 | AF101: -1.327730155 | AG101: -1.526698363 | AH101: -1.675924518 | AI101: -1.750325023 | AJ101: -1.655517523 | AK101: -1.426363967 | AL101: -1.104953786 | AM101: -0.7584600053 | AN101: -0.4272714716 | AO101: -0.1989682077 | AP101: -0.08545429431 | AQ101: -0.04123913706 | AR101: -0.02253272437 | AS101: -0.01870641269 | AT101: -0.044640303 | AU101: -0.1003343953 | AV101: -0.1522021759 | AW101: -0.2032196651 | AX101: -0.2495605511 | AY101: -0.2716681297 | AZ101: -0.2763447329 | BA101: -0.2559377372 | BB101: -0.2091717055 | BC101: -0.163681111 | BD101: -0.120741391 | BE101: -0.0863045858 | BF101: -0.1062864357 | BG101: -0.1747349003 | BH101: -0.2623149233 | BI101: -0.3979364153 | BJ101: -0.5620426721 | BK101: -0.7031910587 | BL101: -0.8281839071 | BM101: -0.9697574395 | BN101: -1.113881846 | BO101: -1.240150132 | BP101: =($C$38*$C10*$D62-SQRT($C$38*$C10)*($D62-$C62))/$D62*BP88 -> -1.33920909 | BQ101: -1.48503408 | BR101: -1.73672036 | BS101: -2.06025627 | BT101: -2.451390353 | BU101: -2.976870491 | BV101: -3.698767963 | BW101: -4.700836479 | BX101: -5.962243898 | BY101: -7.518702462 | BZ101: -9.289859627 | CA101: -11.00362212 | CB101: -12.33645402 | CC101: -13.22033202 | CD101: -13.56002347 | CE101: -13.34830089 | CF101: -12.53117077 | CG101: -11.40240882 | CH101: -10.12399557 | CI101: -9.054754031 | CJ101: -8.243575954 | CK101: -7.737227374 | CL101: -7.438349917 | CM101: -7.379254659 | CN101: -7.30825532 | CO101: -7.252136082 | CP101: -7.111412841 | CQ101: -6.817211987 | CR101: -6.37250954 | CS101: -5.82024522 | CT101: -5.167221359 | CU101: -28.73192183 | CV101: -27.70933011 | CW101: -26.56199213 | CX101: -25.51027368 | CY101: -25.48461613 | CZ101: -25.47859324 | DA101: -25.6099165 | DB101: -25.86805791 | DC101: -26.24020074 | DD101: -26.88016979 | DE101: -27.60624219 | DF101: -28.32646034 | DG101: -28.87738686 | DH101: -29.36129058 | DI101: -29.6962119 | DJ101: -30.04693729 | DK101: -30.53385246 | DL101: -31.15372913 | DM101: -31.72388075 | DN101: -32.54241668 | DO101: -33.66715675 | DP101: -35.03449915 | DQ101: -36.55667821 | DR101: -38.15489034 | DS101: -39.74471859 | DT101: -41.36273401 | DU101: -42.83569395 | DV101: -44.02711955 | DW101: -45.05556552 | DX101: -45.83490443 | DY101: -46.27496146 | DZ101: -46.33721413 | EA101: -46.0659428 | EB101: =($C$38*$C10*$D62-SQRT($C$38*$C10)*($D62-$C62))/$D62*EB88 -> -45.57601619 | EC101: -44.82182889 | ED101: -43.92287523 | EE101: -42.9126425 | EF101: -41.91409419 | EG101: -40.95621249 | EH101: -40.13685744 | EI101: -39.46301561 | EJ101: -38.70420273 | EK101: -37.72574681 | EL101: -36.73216137 | EM101: -35.61703384 | EN101: -34.27664994 | EO101: -32.96862103 | EP101: -31.74337084 | EQ101: -30.83266048 | ER101: -30.30705421 | ES101: -30.29296063 | ET101: -30.66216428 | EU101: -31.44523739 | EV101: -32.34845527 | EW101: -33.33353638 | EX101: -34.44531517 | EY101: -35.66560249 | EZ101: -36.69159113 | FA101: -37.56659775 | FB101: -38.24793207 | FC101: -38.62759147 | FD101: -38.88698564 | FE101: -39.09887119 | FF101: -39.28088317 | FG101: -39.57140368 | FH101: -40.06101711 | FI101: -40.64456365 | FJ101: -41.35018229 | FK101: -41.88672614 | FL101: -42.25870032 | FM101: -42.44360329 | FN101: -42.64418989 | FO101: -42.71954839 | FP101: -42.90310223 | FQ101: -43.18229969 | FR101: -43.63052376 | FS101: -44.22088822 | FT101: -45.04578433 | FU101: -45.73143105 | FV101: -46.27850292 | FW101: -46.54098082 | FX101: -46.54924423 | FY101: -46.11496919 | FZ101: -45.29279543 | GA101: -44.03716574 | GB101: -42.64223847 | GC101: -41.34635173 | GD101: -40.2670484 | GE101: -39.19193701 | GF101: -38.25226855 | GG101: -37.2401085 | GH101: -36.24936586 | GI101: -35.160715 | GJ101: -33.21013925 | GK101: -31.44265959 | GL101: -29.95319691
B102: Electric heater | C102: 0 | D102: =($C$38*$C11*$D63-SQRT($C$38*$C11)*($D63-$C63))/$D63*D89 -> 0 | E102: 0 | F102: 0 | G102: 0 | H102: 0 | I102: 0 | J102: 0 | K102: 0 | L102: 0 | M102: 0 | N102: 0 | O102: 0 | P102: 0 | Q102: 0 | R102: 0 | S102: 0 | T102: 0 | U102: 0 | V102: 0 | W102: 0 | X102: 0 | Y102: 0 | Z102: 0 | AA102: 0 | AB102: 0 | AC102: 0 | AD102: 0 | AE102: 0 | AF102: 0 | AG102: 0 | AH102: 0 | AI102: 0 | AJ102: 0 | AK102: 0 | AL102: 0 | AM102: 0 | AN102: 0 | AO102: 0 | AP102: 0 | AQ102: 0 | AR102: 0 | AS102: 0 | AT102: 0 | AU102: 0 | AV102: 0 | AW102: 0 | AX102: 0 | AY102: 0 | AZ102: 0 | BA102: 0 | BB102: 0 | BC102: 0 | BD102: 0 | BE102: 0 | BF102: 0 | BG102: 0 | BH102: 0 | BI102: 0 | BJ102: 0 | BK102: 0 | BL102: 0 | BM102: 0 | BN102: 0 | BO102: 0 | BP102: =($C$38*$C11*$D63-SQRT($C$38*$C11)*($D63-$C63))/$D63*BP89 -> 0 | BQ102: 0 | BR102: 0 | BS102: 0 | BT102: 0 | BU102: 0 | BV102: 0 | BW102: 0 | BX102: 0 | BY102: 0 | BZ102: 0 | CA102: 0 | CB102: 0 | CC102: 0 | CD102: 0 | CE102: 0 | CF102: 0 | CG102: 0 | CH102: 0 | CI102: 0 | CJ102: 0 | CK102: 0 | CL102: 0 | CM102: 0 | CN102: 0 | CO102: 0 | CP102: 0 | CQ102: 0 | CR102: 0 | CS102: 0 | CT102: 0 | CU102: 0 | CV102: 0 | CW102: 0 | CX102: 0 | CY102: 0 | CZ102: 0 | DA102: 0 | DB102: 0 | DC102: 0 | DD102: 0 | DE102: 0 | DF102: 0 | DG102: 0 | DH102: 0 | DI102: 0 | DJ102: 0 | DK102: 0 | DL102: 0 | DM102: 0 | DN102: 0 | DO102: 0 | DP102: 0 | DQ102: 0 | DR102: 0 | DS102: 0 | DT102: 0 | DU102: 0 | DV102: 0 | DW102: 0 | DX102: 0 | DY102: 0 | DZ102: 0 | EA102: 0 | EB102: =($C$38*$C11*$D63-SQRT($C$38*$C11)*($D63-$C63))/$D63*EB89 -> 0 | EC102: 0 | ED102: 0 | EE102: 0 | EF102: 0 | EG102: 0 | EH102: 0 | EI102: 0 | EJ102: 0 | EK102: 0 | EL102: 0 | EM102: 0 | EN102: 0 | EO102: 0 | EP102: 0 | EQ102: 0 | ER102: 0 | ES102: 0 | ET102: 0 | EU102: 0 | EV102: 0 | EW102: 0 | EX102: 0 | EY102: 0 | EZ102: 0 | FA102: 0 | FB102: 0 | FC102: 0 | FD102: 0 | FE102: 0 | FF102: 0 | FG102: 0 | FH102: 0 | FI102: 0 | FJ102: 0 | FK102: 0 | FL102: 0 | FM102: 0 | FN102: 0 | FO102: 0 | FP102: 0 | FQ102: 0 | FR102: 0 | FS102: 0 | FT102: 0 | FU102: 0 | FV102: 0 | FW102: 0 | FX102: 0 | FY102: 0 | FZ102: 0 | GA102: 0 | GB102: 0 | GC102: 0 | GD102: 0 | GE102: 0 | GF102: 0 | GG102: 0 | GH102: 0 | GI102: 0 | GJ102: 0 | GK102: 0 | GL102: 0
B103: Ground source heat pump | C103: 0 | D103: =($C$38*$C12*$D64-SQRT($C$38*$C12)*($D64-$C64))/$D64*D90 -> 0 | E103: 0 | F103: 0 | G103: 0 | H103: 0 | I103: 0 | J103: 0 | K103: 0 | L103: 0 | M103: 0 | N103: 0 | O103: 0 | P103: 0 | Q103: 0 | R103: 0 | S103: 0 | T103: 0 | U103: 0 | V103: 0 | W103: 0 | X103: 0 | Y103: 0 | Z103: 0 | AA103: 0 | AB103: 0 | AC103: 0 | AD103: 0 | AE103: 0 | AF103: 0 | AG103: 0 | AH103: 0 | AI103: 0 | AJ103: 0 | AK103: 0 | AL103: 0 | AM103: 0 | AN103: 0 | AO103: 0 | AP103: 0 | AQ103: 0 | AR103: 0 | AS103: 0 | AT103: 0 | AU103: 0 | AV103: 0 | AW103: 0 | AX103: 0 | AY103: 0 | AZ103: 0 | BA103: 0 | BB103: 0 | BC103: 0 | BD103: 0 | BE103: 0 | BF103: 0 | BG103: 0 | BH103: 0 | BI103: 0 | BJ103: 0 | BK103: 0 | BL103: 0 | BM103: 0 | BN103: 0 | BO103: 0 | BP103: =($C$38*$C12*$D64-SQRT($C$38*$C12)*($D64-$C64))/$D64*BP90 -> 0 | BQ103: 0 | BR103: 0 | BS103: 0 | BT103: 0 | BU103: 0 | BV103: 0 | BW103: 0 | BX103: 0 | BY103: 0 | BZ103: 0 | CA103: 0 | CB103: 0 | CC103: 0 | CD103: 0 | CE103: 0 | CF103: 0 | CG103: 0 | CH103: 0 | CI103: 0 | CJ103: 0 | CK103: 0 | CL103: 0 | CM103: 0 | CN103: 0 | CO103: 0 | CP103: 0 | CQ103: 0 | CR103: 0 | CS103: 0 | CT103: 0 | CU103: 0 | CV103: 0 | CW103: 0 | CX103: 0 | CY103: 0 | CZ103: 0 | DA103: 0 | DB103: 0 | DC103: 0 | DD103: 0 | DE103: 0 | DF103: 0 | DG103: 0 | DH103: 0 | DI103: 0 | DJ103: 0 | DK103: 0 | DL103: 0 | DM103: 0 | DN103: 0 | DO103: 0 | DP103: 0 | DQ103: 0 | DR103: 0 | DS103: 0 | DT103: 0 | DU103: 0 | DV103: 0 | DW103: 0 | DX103: 0 | DY103: 0 | DZ103: 0 | EA103: 0 | EB103: =($C$38*$C12*$D64-SQRT($C$38*$C12)*($D64-$C64))/$D64*EB90 -> 0 | EC103: 0 | ED103: 0 | EE103: 0 | EF103: 0 | EG103: 0 | EH103: 0 | EI103: 0 | EJ103: 0 | EK103: 0 | EL103: 0 | EM103: 0 | EN103: 0 | EO103: 0 | EP103: 0 | EQ103: 0 | ER103: 0 | ES103: 0 | ET103: 0 | EU103: 0 | EV103: 0 | EW103: 0 | EX103: 0 | EY103: 0 | EZ103: 0 | FA103: 0 | FB103: 0 | FC103: 0 | FD103: 0 | FE103: 0 | FF103: 0 | FG103: 0 | FH103: 0 | FI103: 0 | FJ103: 0 | FK103: 0 | FL103: 0 | FM103: 0 | FN103: 0 | FO103: 0 | FP103: 0 | FQ103: 0 | FR103: 0 | FS103: 0 | FT103: 0 | FU103: 0 | FV103: 0 | FW103: 0 | FX103: 0 | FY103: 0 | FZ103: 0 | GA103: 0 | GB103: 0 | GC103: 0 | GD103: 0 | GE103: 0 | GF103: 0 | GG103: 0 | GH103: 0 | GI103: 0 | GJ103: 0 | GK103: 0 | GL103: 0
B104: Monovalent heat pump | C104: 0 | D104: =($C$38*$C13*$D65-SQRT($C$38*$C13)*($D65-$C65))/$D65*D91 -> 0 | E104: 0 | F104: 0 | G104: 0 | H104: 0 | I104: 0 | J104: 0 | K104: 0 | L104: 0 | M104: 0 | N104: 0 | O104: 0 | P104: 0 | Q104: 0 | R104: 0 | S104: 0 | T104: 0 | U104: 0 | V104: 0 | W104: 0 | X104: 0 | Y104: 0 | Z104: 0 | AA104: 0 | AB104: 0 | AC104: 0 | AD104: 0 | AE104: 0 | AF104: 0 | AG104: 0 | AH104: 0 | AI104: 0 | AJ104: 0 | AK104: 0 | AL104: 0 | AM104: 0 | AN104: 0 | AO104: 0 | AP104: 0 | AQ104: 0 | AR104: 0 | AS104: 0 | AT104: 0 | AU104: 0 | AV104: 0 | AW104: 0 | AX104: 0 | AY104: 0 | AZ104: 0 | BA104: 0 | BB104: 0 | BC104: 0 | BD104: 0 | BE104: 0 | BF104: 0 | BG104: 0 | BH104: 0 | BI104: 0 | BJ104: 0 | BK104: 0 | BL104: 0 | BM104: 0 | BN104: 0 | BO104: 0 | BP104: =($C$38*$C13*$D65-SQRT($C$38*$C13)*($D65-$C65))/$D65*BP91 -> 0 | BQ104: 0 | BR104: 0 | BS104: 0 | BT104: 0 | BU104: 0 | BV104: 0 | BW104: 0 | BX104: 0 | BY104: 0 | BZ104: 0 | CA104: 0 | CB104: 0 | CC104: 0 | CD104: 0 | CE104: 0 | CF104: 0 | CG104: 0 | CH104: 0 | CI104: 0 | CJ104: 0 | CK104: 0 | CL104: 0 | CM104: 0 | CN104: 0 | CO104: 0 | CP104: 0 | CQ104: 0 | CR104: 0 | CS104: 0 | CT104: 0 | CU104: 0 | CV104: 0 | CW104: 0 | CX104: 0 | CY104: 0 | CZ104: 0 | DA104: 0 | DB104: 0 | DC104: 0 | DD104: 0 | DE104: 0 | DF104: 0 | DG104: 0 | DH104: 0 | DI104: 0 | DJ104: 0 | DK104: 0 | DL104: 0 | DM104: 0 | DN104: 0 | DO104: 0 | DP104: 0 | DQ104: 0 | DR104: 0 | DS104: 0 | DT104: 0 | DU104: 0 | DV104: 0 | DW104: 0 | DX104: 0 | DY104: 0 | DZ104: 0 | EA104: 0 | EB104: =($C$38*$C13*$D65-SQRT($C$38*$C13)*($D65-$C65))/$D65*EB91 -> 0 | EC104: 0 | ED104: 0 | EE104: 0 | EF104: 0 | EG104: 0 | EH104: 0 | EI104: 0 | EJ104: 0 | EK104: 0 | EL104: 0 | EM104: 0 | EN104: 0 | EO104: 0 | EP104: 0 | EQ104: 0 | ER104: 0 | ES104: 0 | ET104: 0 | EU104: 0 | EV104: 0 | EW104: 0 | EX104: 0 | EY104: 0 | EZ104: 0 | FA104: 0 | FB104: 0 | FC104: 0 | FD104: 0 | FE104: 0 | FF104: 0 | FG104: 0 | FH104: 0 | FI104: 0 | FJ104: 0 | FK104: 0 | FL104: 0 | FM104: 0 | FN104: 0 | FO104: 0 | FP104: 0 | FQ104: 0 | FR104: 0 | FS104: 0 | FT104: 0 | FU104: 0 | FV104: 0 | FW104: 0 | FX104: 0 | FY104: 0 | FZ104: 0 | GA104: 0 | GB104: 0 | GC104: 0 | GD104: 0 | GE104: 0 | GF104: 0 | GG104: 0 | GH104: 0 | GI104: 0 | GJ104: 0 | GK104: 0 | GL104: 0
B105: Air conditioning | C105: 0 | D105: =($C$38*$C14*$D66-SQRT($C$38*$C14)*($D66-$C66))/$D66*D92 -> 0 | E105: 0 | F105: 0 | G105: 0 | H105: 0 | I105: 0 | J105: 0 | K105: 0 | L105: 0 | M105: 0 | N105: 0 | O105: 0 | P105: 0 | Q105: 0 | R105: 0 | S105: 0 | T105: 0 | U105: 0 | V105: 0 | W105: 0 | X105: 0 | Y105: 0 | Z105: 0 | AA105: 0 | AB105: 0 | AC105: 0 | AD105: 0 | AE105: 0 | AF105: 0 | AG105: 0 | AH105: 0 | AI105: 0 | AJ105: 0 | AK105: 0 | AL105: 0 | AM105: 0 | AN105: 0 | AO105: 0 | AP105: 0 | AQ105: 0 | AR105: 0 | AS105: 0 | AT105: 0 | AU105: 0 | AV105: 0 | AW105: 0 | AX105: 0 | AY105: 0 | AZ105: 0 | BA105: 0 | BB105: 0 | BC105: 0 | BD105: 0 | BE105: 0 | BF105: 0 | BG105: 0 | BH105: 0 | BI105: 0 | BJ105: 0 | BK105: 0 | BL105: 0 | BM105: 0 | BN105: 0 | BO105: 0 | BP105: =($C$38*$C14*$D66-SQRT($C$38*$C14)*($D66-$C66))/$D66*BP92 -> 0 | BQ105: 0 | BR105: 0 | BS105: 0 | BT105: 0 | BU105: 0 | BV105: 0 | BW105: 0 | BX105: 0 | BY105: 0 | BZ105: 0 | CA105: 0 | CB105: 0 | CC105: 0 | CD105: 0 | CE105: 0 | CF105: 0 | CG105: 0 | CH105: 0 | CI105: 0 | CJ105: 0 | CK105: 0 | CL105: 0 | CM105: 0 | CN105: 0 | CO105: 0 | CP105: 0 | CQ105: 0 | CR105: 0 | CS105: 0 | CT105: 0 | CU105: 0 | CV105: 0 | CW105: 0 | CX105: 0 | CY105: 0 | CZ105: 0 | DA105: 0 | DB105: 0 | DC105: 0 | DD105: 0 | DE105: 0 | DF105: 0 | DG105: 0 | DH105: 0 | DI105: 0 | DJ105: 0 | DK105: 0 | DL105: 0 | DM105: 0 | DN105: 0 | DO105: 0 | DP105: 0 | DQ105: 0 | DR105: 0 | DS105: 0 | DT105: 0 | DU105: 0 | DV105: 0 | DW105: 0 | DX105: 0 | DY105: 0 | DZ105: 0 | EA105: 0 | EB105: =($C$38*$C14*$D66-SQRT($C$38*$C14)*($D66-$C66))/$D66*EB92 -> 0 | EC105: 0 | ED105: 0 | EE105: 0 | EF105: 0 | EG105: 0 | EH105: 0 | EI105: 0 | EJ105: 0 | EK105: 0 | EL105: 0 | EM105: 0 | EN105: 0 | EO105: 0 | EP105: 0 | EQ105: 0 | ER105: 0 | ES105: 0 | ET105: 0 | EU105: 0 | EV105: 0 | EW105: 0 | EX105: 0 | EY105: 0 | EZ105: 0 | FA105: 0 | FB105: 0 | FC105: 0 | FD105: 0 | FE105: 0 | FF105: 0 | FG105: 0 | FH105: 0 | FI105: 0 | FJ105: 0 | FK105: 0 | FL105: 0 | FM105: 0 | FN105: 0 | FO105: 0 | FP105: 0 | FQ105: 0 | FR105: 0 | FS105: 0 | FT105: 0 | FU105: 0 | FV105: 0 | FW105: 0 | FX105: 0 | FY105: 0 | FZ105: 0 | GA105: 0 | GB105: 0 | GC105: 0 | GD105: 0 | GE105: 0 | GF105: 0 | GG105: 0 | GH105: 0 | GI105: 0 | GJ105: 0 | GK105: 0 | GL105: 0
B107: Cable power [kW]
C108: 00:00:00 | D108: 01:00:00 | E108: 02:00:00 | F108: 03:00:00 | G108: 04:00:00 | H108: 05:00:00 | I108: 06:00:00 | J108: 07:00:00 | K108: 08:00:00 | L108: 09:00:00 | M108: 10:00:00 | N108: 11:00:00 | O108: 12:00:00 | P108: 13:00:00 | Q108: 14:00:00 | R108: 15:00:00 | S108: 16:00:00 | T108: 17:00:00 | U108: 18:00:00 | V108: 19:00:00 | W108: 20:00:00 | X108: 21:00:00 | Y108: 22:00:00 | Z108: 23:00:00 | AA108: 1 | AB108: 1.041666667 | AC108: 1.083333333 | AD108: 1.125 | AE108: 1.166666667 | AF108: 1.208333333 | AG108: 1.25 | AH108: 1.291666667 | AI108: 1.333333333 | AJ108: 1.375 | AK108: 1.416666667 | AL108: 1.458333333 | AM108: 1.5 | AN108: 1.541666667 | AO108: 1.583333333 | AP108: 1.625 | AQ108: 1.666666667 | AR108: 1.708333333 | AS108: 1.75 | AT108: 1.791666667 | AU108: 1.833333333 | AV108: 1.875 | AW108: 1.916666667 | AX108: 1.958333333 | AY108: 2 | AZ108: 2.041666667 | BA108: 2.083333333 | BB108: 2.125 | BC108: 2.166666667 | BD108: 2.208333333 | BE108: 2.25 | BF108: 2.291666667 | BG108: 2.333333333 | BH108: 2.375 | BI108: 2.416666667 | BJ108: 2.458333333 | BK108: 2.5 | BL108: 2.541666667 | BM108: 2.583333333 | BN108: 2.625 | BO108: 2.666666667 | BP108: 2.708333333 | BQ108: 2.75 | BR108: 2.791666667 | BS108: 2.833333333 | BT108: 2.875 | BU108: 2.916666667 | BV108: 2.958333333 | BW108: 3 | BX108: 3.041666667 | BY108: 3.083333333 | BZ108: 3.125 | CA108: 3.166666667 | CB108: 3.208333333 | CC108: 3.25 | CD108: 3.291666667 | CE108: 3.333333333 | CF108: 3.375 | CG108: 3.416666667 | CH108: 3.458333333 | CI108: 3.5 | CJ108: 3.541666667 | CK108: 3.583333333 | CL108: 3.625 | CM108: 3.666666667 | CN108: 3.708333333 | CO108: 3.75 | CP108: 3.791666667 | CQ108: 3.833333333 | CR108: 3.875 | CS108: 3.916666667 | CT108: 3.958333333 | CU108: 4 | CV108: 4.041666667 | CW108: 4.083333333 | CX108: 4.125 | CY108: 4.166666667 | CZ108: 4.208333333 | DA108: 4.25 | DB108: 4.291666667 | DC108: 4.333333333 | DD108: 4.375 | DE108: 4.416666667 | DF108: 4.458333333 | DG108: 4.5 | DH108: 4.541666667 | DI108: 4.583333333 | DJ108: 4.625 | DK108: 4.666666667 | DL108: 4.708333333 | DM108: 4.75 | DN108: 4.791666667 | DO108: 4.833333333 | DP108: 4.875 | DQ108: 4.916666667 | DR108: 4.958333333 | DS108: 5 | DT108: 5.041666667 | DU108: 5.083333333 | DV108: 5.125 | DW108: 5.166666667 | DX108: 5.208333333 | DY108: 5.25 | DZ108: 5.291666667 | EA108: 5.333333333 | EB108: 5.375 | EC108: 5.416666667 | ED108: 5.458333333 | EE108: 5.5 | EF108: 5.541666667 | EG108: 5.583333333 | EH108: 5.625 | EI108: 5.666666667 | EJ108: 5.708333333 | EK108: 5.75 | EL108: 5.791666667 | EM108: 5.833333333 | EN108: 5.875 | EO108: 5.916666667 | EP108: 5.958333333 | EQ108: 6 | ER108: 6.041666667 | ES108: 6.083333333 | ET108: 6.125 | EU108: 6.166666667 | EV108: 6.208333333 | EW108: 6.25 | EX108: 6.291666667 | EY108: 6.333333333 | EZ108: 6.375 | FA108: 6.416666667 | FB108: 6.458333333 | FC108: 6.5 | FD108: 6.541666667 | FE108: 6.583333333 | FF108: 6.625 | FG108: 6.666666667 | FH108: 6.708333333 | FI108: 6.75 | FJ108: 6.791666667 | FK108: 6.833333333 | FL108: 6.875 | FM108: 6.916666667 | FN108: 6.958333333 | FO108: 7 | FP108: 7.041666667 | FQ108: 7.083333333 | FR108: 7.125 | FS108: 7.166666667 | FT108: 7.208333333 | FU108: 7.25 | FV108: 7.291666667 | FW108: 7.333333333 | FX108: 7.375 | FY108: 7.416666667 | FZ108: 7.458333333 | GA108: 7.5 | GB108: 7.541666667 | GC108: 7.583333333 | GD108: 7.625 | GE108: 7.666666667 | GF108: 7.708333333 | GG108: 7.75 | GH108: 7.791666667 | GI108: 7.833333333 | GJ108: 7.875 | GK108: 7.916666667 | GL108: 7.958333333
B109: Household load | C109: =($C$39*$D58-SQRT($C$39)*($D58-$C58))/$D58*C84 -> 15.92405076 | D109: =($C$39*$D58-SQRT($C$39)*($D58-$C58))/$D58*D84 -> 14.86778338 | E109: 13.31378008 | F109: 12.58423391 | G109: 11.43043129 | H109: 10.9141068 | I109: 10.15328813 | J109: 9.858714185 | K109: 9.291653874 | L109: 9.027258997 | M109: 8.711690918 | N109: 8.612624848 | O109: 8.424771085 | P109: 8.332265681 | Q109: 8.2471957 | R109: 8.2511321 | S109: 8.287434457 | T109: 8.198865454 | U109: 8.10636005 | V109: 8.134570918 | W109: 8.173716231 | X109: 8.2334183 | Y109: 8.123855162 | Z109: 8.331828303 | AA109: 8.494751532 | AB109: 8.773579876 | AC109: 8.979366129 | AD109: 9.210301604 | AE109: 9.645055133 | AF109: 9.965871745 | AG109: 10.8530926 | AH109: 11.45995429 | AI109: 12.71544725 | AJ109: 13.38004281 | AK109: 14.50432243 | AL109: 15.08297326 | AM109: 16.34918197 | AN109: 16.85697759 | AO109: 17.50823313 | AP109: 17.575808 | AQ109: 17.81002381 | AR109: 17.87169408 | AS109: 17.97185359 | AT109: 18.05189373 | AU109: 18.22290845 | AV109: 18.29376365 | AW109: 18.42060321 | AX109: 18.68237382 | AY109: 19.02243505 | AZ109: 19.24877806 | BA109: 19.28923551 | BB109: 19.40404718 | BC109: 19.31197915 | BD109: 19.21160095 | BE109: 18.81599274 | BF109: 18.69002793 | BG109: 18.66028624 | BH109: 18.41557336 | BI109: 18.06370293 | BJ109: 17.85966619 | BK109: 17.77503358 | BL109: 17.76125618 | BM109: 17.87213145 | BN109: 17.89574986 | BO109: 17.77765785 | BP109: =($C$39*$D58-SQRT($C$39)*($D58-$C58))/$D58*BP84 -> 17.72779678 | BQ109: 18.03133697 | BR109: 18.36593098 | BS109: 18.87722563 | BT109: 19.21378784 | BU109: 19.89631589 | BV109: 20.31619857 | BW109: 20.83930241 | BX109: 20.75335768 | BY109: 20.54538454 | BZ109: 20.4377896 | CA109: 20.62323778 | CB109: 20.61208465 | CC109: 20.53751174 | CD109: 20.48830673 | CE109: 20.30045297 | CF109: 20.11544216 | CG109: 19.65663286 | CH109: 19.44537938 | CI109: 19.11340964 | CJ109: 18.98547663 | CK109: 18.92796145 | CL109: 19.09657059 | CM109: 19.53679134 | CN109: 19.89894016 | CO109: 20.44041387 | CP109: 20.52963894 | CQ109: 20.52526516 | CR109: 19.9767934 | CS109: 18.78100251 | CT109: 17.713582 | CU109: 17.63507269 | CV109: 16.63325885 | CW109: 15.33184122 | CX109: 14.52225492 | CY109: 13.22717927 | CZ109: 12.61047658 | DA109: 11.7768345 | DB109: 11.38385056 | DC109: 10.78923544 | DD109: 10.4297109 | DE109: 10.08330768 | DF109: 9.862213208 | DG109: 9.537460195 | DH109: 9.324894587 | DI109: 9.172687114 | DJ109: 9.081493844 | DK109: 8.919007993 | DL109: 8.711690918 | DM109: 8.526242733 | DN109: 8.422584196 | DO109: 8.457137042 | DP109: 8.545706045 | DQ109: 8.69944434 | DR109: 8.908073548 | DS109: 9.085211555 | DT109: 9.271534496 | DU109: 9.498096194 | DV109: 9.914042476 | DW109: 10.7743646 | DX109: 11.42452669 | DY109: 12.49063507 | DZ109: 13.22280549 | EA109: 14.38360616 | EB109: =($C$39*$D58-SQRT($C$39)*($D58-$C58))/$D58*EB84 -> 15.2456778 | EC109: 16.61598243 | ED109: 17.61057953 | EE109: 19.22712786 | EF109: 19.92715102 | EG109: 21.02037682 | EH109: 21.61018078 | EI109: 22.55469813 | EJ109: 22.87879507 | EK109: 22.98595263 | EL109: 22.9137853 | EM109: 22.82674711 | EN109: 22.85102158 | EO109: 23.24050651 | EP109: 23.55213819 | EQ109: 24.25609775 | ER109: 24.27643582 | ES109: 24.03303507 | ET109: 23.64595572 | EU109: 23.43295274 | EV109: 23.43754521 | EW109: 23.5991563 | EX109: 23.57619397 | EY109: 23.41108385 | EZ109: 23.33038765 | FA109: 23.23525797 | FB109: 23.21360777 | FC109: 22.92209547 | FD109: 22.59799853 | FE109: 22.58356506 | FF109: 22.8151566 | FG109: 23.86945578 | FH109: 24.74989728 | FI109: 26.96084203 | FJ109: 28.7755225 | FK109: 31.79824044 | FL109: 33.3255637 | FM109: 35.1398068 | FN109: 35.51835728 | FO109: 35.43984796 | FP109: 35.11837528 | FQ109: 34.76453665 | FR109: 34.74813498 | FS109: 34.70942705 | FT109: 34.59789571 | FU109: 34.56509237 | FV109: 34.2967611 | FW109: 33.65272229 | FX109: 32.79721133 | FY109: 31.5725535 | FZ109: 30.97487674 | GA109: 30.17032029 | GB109: 29.72813134 | GC109: 28.85118886 | GD109: 28.36569951 | GE109: 27.48132161 | GF109: 26.95253185 | GG109: 26.02922733 | GH109: 25.2084879 | GI109: 23.41545763 | GJ109: 22.07183304 | GK109: 19.89106736 | GL109: 18.52382437
B110: Solar PV | C110: =($C$39*$C7*$D59-SQRT($C$39*$C7)*($D59-$C59))/$D59*C85 -> 0 | D110: =($C$39*$C7*$D59-SQRT($C$39*$C7)*($D59-$C59))/$D59*D85 -> 0 | E110: 0 | F110: 0 | G110: 0 | H110: 0 | I110: 0 | J110: 0 | K110: 0 | L110: 0 | M110: 0 | N110: 0 | O110: 0 | P110: -0.0727146 | Q110: -0.36963255 | R110: -0.9937662 | S110: -1.8421032 | T110: -2.7995121 | U110: -3.77509965 | V110: -4.726449 | W110: -6.17468145 | X110: -7.7319858 | Y110: -9.1983969 | Z110: -10.4709024 | AA110: -11.9494326 | AB110: -13.5006774 | AC110: -14.9792076 | AD110: -16.4092614 | AE110: -17.8393152 | AF110: -19.3057263 | AG110: -20.6994228 | AH110: -22.1052384 | AI110: -23.4141012 | AJ110: -24.5896539 | AK110: -25.78338525 | AL110: -26.8316874 | AM110: -27.78303675 | AN110: -28.7101479 | AO110: -29.66149725 | AP110: -30.2856309 | AQ110: -30.60678705 | AR110: -31.6066128 | AS110: -31.6672083 | AT110: -32.1883296 | AU110: -32.3095206 | AV110: -32.4185925 | AW110: -32.4185925 | AX110: -32.3337588 | AY110: -32.2610442 | AZ110: -31.9580667 | BA110: -31.630851 | BB110: -31.0854915 | BC110: -30.46135785 | BD110: -29.7160332 | BE110: -29.05554225 | BF110: -28.1890266 | BG110: -27.2073795 | BH110: -26.3105661 | BI110: -25.1956089 | BJ110: -23.9836989 | BK110: -22.7717889 | BL110: -21.5841171 | BM110: -20.1904206 | BN110: -18.8936769 | BO110: -17.4878613 | BP110: =($C$39*$C7*$D59-SQRT($C$39*$C7)*($D59-$C59))/$D59*BP85 -> -16.1547603 | BQ110: -14.6519919 | BR110: -13.2461763 | BS110: -11.8161225 | BT110: -10.2891159 | BU110: -8.9075385 | BV110: -7.5259611 | BW110: -6.11408595 | BX110: -4.6658535 | BY110: -3.5024199 | BZ110: -2.302629 | CA110: -1.3452201 | CB110: -0.6907887 | CC110: -0.24844155 | CD110: 0 | CE110: 0 | CF110: 0 | CG110: 0 | CH110: 0 | CI110: 0 | CJ110: 0 | CK110: 0 | CL110: 0 | CM110: 0 | CN110: 0 | CO110: 0 | CP110: 0 | CQ110: 0 | CR110: 0 | CS110: 0 | CT110: 0 | CU110: 0 | CV110: 0 | CW110: 0 | CX110: 0 | CY110: 0 | CZ110: 0 | DA110: 0 | DB110: 0 | DC110: 0 | DD110: 0 | DE110: 0 | DF110: 0 | DG110: 0 | DH110: 0 | DI110: 0 | DJ110: 0 | DK110: 0 | DL110: 0 | DM110: 0 | DN110: 0 | DO110: 0 | DP110: 0 | DQ110: 0 | DR110: 0 | DS110: 0 | DT110: 0 | DU110: 0 | DV110: 0 | DW110: 0 | DX110: 0 | DY110: -0.1696674 | DZ110: -0.8725752 | EA110: -2.17537845 | EB110: =($C$39*$C7*$D59-SQRT($C$39*$C7)*($D59-$C59))/$D59*EB85 -> -3.4781817 | EC110: -4.89005685 | ED110: -6.2534556 | EE110: -7.5380802 | EF110: -8.7378711 | EG110: -9.81041145 | EH110: -10.7496417 | EI110: -11.4767877 | EJ110: -12.0706236 | EK110: -12.3372438 | EL110: -12.3130056 | EM110: -12.1312191 | EN110: -11.8403607 | EO110: -11.37377535 | EP110: -10.8950709 | EQ110: -10.40424735 | ER110: -9.7801137 | ES110: -9.10750365 | ET110: -8.3500599 | EU110: -7.5501993 | EV110: -6.6170286 | EW110: -5.453595 | EX110: -3.6963255 | EY110: -2.8964649 | EZ110: -2.7752739 | FA110: -2.5086537 | FB110: -1.6481976 | FC110: -0.8240988 | FD110: -0.2181438 | FE110: -0.0242382 | FF110: 0 | FG110: 0 | FH110: 0 | FI110: 0 | FJ110: 0 | FK110: 0 | FL110: 0 | FM110: 0 | FN110: 0 | FO110: 0 | FP110: 0 | FQ110: 0 | FR110: 0 | FS110: 0 | FT110: 0 | FU110: 0 | FV110: 0 | FW110: 0 | FX110: 0 | FY110: 0 | FZ110: 0 | GA110: 0 | GB110: 0 | GC110: 0 | GD110: 0 | GE110: 0 | GF110: 0 | GG110: 0 | GH110: 0 | GI110: 0 | GJ110: 0 | GK110: 0 | GL110: 0
B111: 3kW uncontrolled charging | C111: =($C$39*$C8*$D60-SQRT($C$39*$C8)*($D60-$C60))/$D60*C86 -> 0 | D111: =($C$39*$C8*$D60-SQRT($C$39*$C8)*($D60-$C60))/$D60*D86 -> 0 | E111: 0 | F111: 0 | G111: 0 | H111: 0 | I111: 0 | J111: 0 | K111: 0 | L111: 0 | M111: 0 | N111: 0 | O111: 0 | P111: 0 | Q111: 0 | R111: 0 | S111: 0 | T111: 0 | U111: 0 | V111: 0 | W111: 0 | X111: 0 | Y111: 0 | Z111: 0 | AA111: 0 | AB111: 0 | AC111: 0 | AD111: 0 | AE111: 0 | AF111: 0 | AG111: 0 | AH111: 0 | AI111: 0 | AJ111: 0 | AK111: 0 | AL111: 0 | AM111: 0 | AN111: 0 | AO111: 0 | AP111: 0 | AQ111: 0 | AR111: 0 | AS111: 0 | AT111: 0 | AU111: 0 | AV111: 0 | AW111: 0 | AX111: 0 | AY111: 0 | AZ111: 0 | BA111: 0 | BB111: 0 | BC111: 0 | BD111: 0 | BE111: 0 | BF111: 0 | BG111: 0 | BH111: 0 | BI111: 0 | BJ111: 0 | BK111: 0 | BL111: 0 | BM111: 0 | BN111: 0 | BO111: 0 | BP111: =($C$39*$C8*$D60-SQRT($C$39*$C8)*($D60-$C60))/$D60*BP86 -> 0 | BQ111: 0 | BR111: 0 | BS111: 0 | BT111: 0 | BU111: 0 | BV111: 0 | BW111: 0 | BX111: 0 | BY111: 0 | BZ111: 0 | CA111: 0 | CB111: 0 | CC111: 0 | CD111: 0 | CE111: 0 | CF111: 0 | CG111: 0 | CH111: 0 | CI111: 0 | CJ111: 0 | CK111: 0 | CL111: 0 | CM111: 0 | CN111: 0 | CO111: 0 | CP111: 0 | CQ111: 0 | CR111: 0 | CS111: 0 | CT111: 0 | CU111: 0 | CV111: 0 | CW111: 0 | CX111: 0 | CY111: 0 | CZ111: 0 | DA111: 0 | DB111: 0 | DC111: 0 | DD111: 0 | DE111: 0 | DF111: 0 | DG111: 0 | DH111: 0 | DI111: 0 | DJ111: 0 | DK111: 0 | DL111: 0 | DM111: 0 | DN111: 0 | DO111: 0 | DP111: 0 | DQ111: 0 | DR111: 0 | DS111: 0 | DT111: 0 | DU111: 0 | DV111: 0 | DW111: 0 | DX111: 0 | DY111: 0 | DZ111: 0 | EA111: 0 | EB111: =($C$39*$C8*$D60-SQRT($C$39*$C8)*($D60-$C60))/$D60*EB86 -> 0 | EC111: 0 | ED111: 0 | EE111: 0 | EF111: 0 | EG111: 0 | EH111: 0 | EI111: 0 | EJ111: 0 | EK111: 0 | EL111: 0 | EM111: 0 | EN111: 0 | EO111: 0 | EP111: 0 | EQ111: 0 | ER111: 0 | ES111: 0 | ET111: 0 | EU111: 0 | EV111: 0 | EW111: 0 | EX111: 0 | EY111: 0 | EZ111: 0 | FA111: 0 | FB111: 0 | FC111: 0 | FD111: 0 | FE111: 0 | FF111: 0 | FG111: 0 | FH111: 0 | FI111: 0 | FJ111: 0 | FK111: 0 | FL111: 0 | FM111: 0 | FN111: 0 | FO111: 0 | FP111: 0 | FQ111: 0 | FR111: 0 | FS111: 0 | FT111: 0 | FU111: 0 | FV111: 0 | FW111: 0 | FX111: 0 | FY111: 0 | FZ111: 0 | GA111: 0 | GB111: 0 | GC111: 0 | GD111: 0 | GE111: 0 | GF111: 0 | GG111: 0 | GH111: 0 | GI111: 0 | GJ111: 0 | GK111: 0 | GL111: 0
B112: Electric boiler | C112: 0 | D112: =($C$39*$C9*$D61-SQRT($C$39*$C9)*($D61-$C61))/$D61*D87 -> 0 | E112: 0 | F112: 0 | G112: 0 | H112: 0 | I112: 0 | J112: 0 | K112: 0 | L112: 0 | M112: 0 | N112: 0 | O112: 0 | P112: 0 | Q112: 0 | R112: 0 | S112: 0 | T112: 0 | U112: 0 | V112: 0 | W112: 0 | X112: 0 | Y112: 0 | Z112: 0 | AA112: 0 | AB112: 0 | AC112: 0 | AD112: 0 | AE112: 0 | AF112: 0 | AG112: 0 | AH112: 0 | AI112: 0 | AJ112: 0 | AK112: 0 | AL112: 0 | AM112: 0 | AN112: 0 | AO112: 0 | AP112: 0 | AQ112: 0 | AR112: 0 | AS112: 0 | AT112: 0 | AU112: 0 | AV112: 0 | AW112: 0 | AX112: 0 | AY112: 0 | AZ112: 0 | BA112: 0 | BB112: 0 | BC112: 0 | BD112: 0 | BE112: 0 | BF112: 0 | BG112: 0 | BH112: 0 | BI112: 0 | BJ112: 0 | BK112: 0 | BL112: 0 | BM112: 0 | BN112: 0 | BO112: 0 | BP112: =($C$39*$C9*$D61-SQRT($C$39*$C9)*($D61-$C61))/$D61*BP87 -> 0 | BQ112: 0 | BR112: 0 | BS112: 0 | BT112: 0 | BU112: 0 | BV112: 0 | BW112: 0 | BX112: 0 | BY112: 0 | BZ112: 0 | CA112: 0 | CB112: 0 | CC112: 0 | CD112: 0 | CE112: 0 | CF112: 0 | CG112: 0 | CH112: 0 | CI112: 0 | CJ112: 0 | CK112: 0 | CL112: 0 | CM112: 0 | CN112: 0 | CO112: 0 | CP112: 0 | CQ112: 0 | CR112: 0 | CS112: 0 | CT112: 0 | CU112: 0 | CV112: 0 | CW112: 0 | CX112: 0 | CY112: 0 | CZ112: 0 | DA112: 0 | DB112: 0 | DC112: 0 | DD112: 0 | DE112: 0 | DF112: 0 | DG112: 0 | DH112: 0 | DI112: 0 | DJ112: 0 | DK112: 0 | DL112: 0 | DM112: 0 | DN112: 0 | DO112: 0 | DP112: 0 | DQ112: 0 | DR112: 0 | DS112: 0 | DT112: 0 | DU112: 0 | DV112: 0 | DW112: 0 | DX112: 0 | DY112: 0 | DZ112: 0 | EA112: 0 | EB112: =($C$39*$C9*$D61-SQRT($C$39*$C9)*($D61-$C61))/$D61*EB87 -> 0 | EC112: 0 | ED112: 0 | EE112: 0 | EF112: 0 | EG112: 0 | EH112: 0 | EI112: 0 | EJ112: 0 | EK112: 0 | EL112: 0 | EM112: 0 | EN112: 0 | EO112: 0 | EP112: 0 | EQ112: 0 | ER112: 0 | ES112: 0 | ET112: 0 | EU112: 0 | EV112: 0 | EW112: 0 | EX112: 0 | EY112: 0 | EZ112: 0 | FA112: 0 | FB112: 0 | FC112: 0 | FD112: 0 | FE112: 0 | FF112: 0 | FG112: 0 | FH112: 0 | FI112: 0 | FJ112: 0 | FK112: 0 | FL112: 0 | FM112: 0 | FN112: 0 | FO112: 0 | FP112: 0 | FQ112: 0 | FR112: 0 | FS112: 0 | FT112: 0 | FU112: 0 | FV112: 0 | FW112: 0 | FX112: 0 | FY112: 0 | FZ112: 0 | GA112: 0 | GB112: 0 | GC112: 0 | GD112: 0 | GE112: 0 | GF112: 0 | GG112: 0 | GH112: 0 | GI112: 0 | GJ112: 0 | GK112: 0 | GL112: 0
B113: Micro CHP | C113: -1.871414663 | D113: =($C$39*$C10*$D62-SQRT($C$39*$C10)*($D62-$C62))/$D62*D88 -> -1.619608916 | E113: -1.407534089 | F113: -1.287458418 | G113: -1.2574395 | H113: -1.307235587 | I113: -1.396056268 | J113: -1.525314197 | K113: -1.654218963 | L113: -1.75875543 | M113: -1.813848973 | N113: -1.795131295 | O113: -1.707016942 | P113: -1.562749554 | Q113: -1.358620911 | R113: -1.146016339 | S113: -0.9609585391 | T113: -0.7780197213 | U113: -0.6145049092 | V113: -0.5043178221 | W113: -0.4622913369 | X113: -0.4647634831 | Y113: -0.473062831 | Z113: -0.4624679188 | AA113: -0.4437502405 | AB113: -0.4091401939 | AC113: -0.400840846 | AD113: -0.4216775067 | AE113: -0.4744754859 | AF113: -0.5514651815 | AG113: -0.6341054968 | AH113: -0.6960857334 | AI113: -0.7269875607 | AJ113: -0.6876098036 | AK113: -0.5924321754 | AL113: -0.4589362813 | AM113: -0.3150220569 | AN113: -0.1774647798 | AO113: -0.08264031538 | AP113: -0.03549295596 | AQ113: -0.01712844144 | AR113: -0.009358839135 | AS113: -0.007769602301 | AT113: -0.0185410964 | AU113: -0.04167332143 | AV113: -0.06321630963 | AW113: -0.08440613408 | AX113: -0.103653558 | AY113: -0.1128358152 | AZ113: -0.1147782158 | BA113: -0.106302286 | BB113: -0.08687828027 | BC113: -0.06798402013 | BD113: -0.05014925121 | BE113: -0.0358461197 | BF113: -0.04414546762 | BG113: -0.07257514876 | BH113: -0.1089510141 | BI113: -0.1652806308 | BJ113: -0.2334412328 | BK113: -0.2920664138 | BL113: -0.3439814837 | BM113: -0.4027832465 | BN113: -0.4626445006 | BO113: -0.5150893162 | BP113: =($C$39*$C10*$D62-SQRT($C$39*$C10)*($D62-$C62))/$D62*BP88 -> -0.556232892 | BQ113: -0.6168004735 | BR113: -0.7213369409 | BS113: -0.8557157443 | BT113: -1.018171065 | BU113: -1.236426257 | BV113: -1.536262273 | BW113: -1.952465742 | BX113: -2.476384151 | BY113: -3.122850379 | BZ113: -3.858490452 | CA113: -4.570291971 | CB113: -5.123876135 | CC113: -5.490989844 | CD113: -5.632078759 | CE113: -5.544140987 | CF113: -5.204750632 | CG113: -4.735925766 | CH113: -4.204944081 | CI113: -3.760840677 | CJ113: -3.423922468 | CK113: -3.213613461 | CL113: -3.089476406 | CM113: -3.064931526 | CN113: -3.035442353 | CO113: -3.012133546 | CP113: -2.953684947 | CQ113: -2.831490293 | CR113: -2.646785656 | CS113: -2.417405807 | CT113: -2.146176054 | CU113: -11.9336406 | CV113: -11.50891294 | CW113: -11.03237262 | CX113: -10.59554733 | CY113: -10.58489062 | CZ113: -10.58238904 | DA113: -10.63693342 | DB113: -10.74415098 | DC113: -10.89871839 | DD113: -11.16452591 | DE113: -11.46609596 | DF113: -11.76523447 | DG113: -11.99405868 | DH113: -12.19504534 | DI113: -12.33415301 | DJ113: -12.47982481 | DK113: -12.68206226 | DL113: -12.93952451 | DM113: -13.17633375 | DN113: -13.516308 | DO113: -13.9834624 | DP113: -14.55138031 | DQ113: -15.18360874 | DR113: -15.84741707 | DS113: -16.50774321 | DT113: -17.17977673 | DU113: -17.79156228 | DV113: -18.28641413 | DW113: -18.71357333 | DX113: -19.03726732 | DY113: -19.22004251 | DZ113: -19.2458988 | EA113: -19.1332278 | EB113: =($C$39*$C10*$D62-SQRT($C$39*$C10)*($D62-$C62))/$D62*EB88 -> -18.92973956 | EC113: -18.61649215 | ED113: -18.24311685 | EE113: -17.82352242 | EF113: -17.40878105 | EG113: -17.01093032 | EH113: -16.67061585 | EI113: -16.39073948 | EJ113: -16.07557086 | EK113: -15.66917474 | EL113: -15.25649467 | EM113: -14.79333279 | EN113: -14.23661194 | EO113: -13.69332956 | EP113: -13.18442885 | EQ113: -12.80617047 | ER113: -12.5878629 | ES113: -12.58200921 | ET113: -12.73535585 | EU113: -13.06060082 | EV113: -13.43574723 | EW113: -13.84489508 | EX113: -14.30666609 | EY113: -14.8135055 | EZ113: -15.23964405 | FA113: -15.60307309 | FB113: -15.88606143 | FC113: -16.0437508 | FD113: -16.1514887 | FE113: -16.23949416 | FF113: -16.3150918 | FG113: -16.43575785 | FH113: -16.639116 | FI113: -16.88148875 | FJ113: -17.17456344 | FK113: -17.39741388 | FL113: -17.55191125 | FM113: -17.62870965 | FN113: -17.71202215 | FO113: -17.74332188 | FP113: -17.81955992 | FQ113: -17.935523 | FR113: -18.12169032 | FS113: -18.36689485 | FT113: -18.70951077 | FU113: -18.99429024 | FV113: -19.22151343 | FW113: -19.33053214 | FX113: -19.3339643 | FY113: -19.15359063 | FZ113: -18.81210542 | GA113: -18.29058676 | GB113: -17.71121164 | GC113: -17.17297244 | GD113: -16.72468993 | GE113: -16.27814852 | GF113: -15.88786256 | GG113: -15.46746763 | GH113: -15.0559683 | GI113: -14.60380334 | GJ113: -13.79364278 | GK113: -13.05953014 | GL113: -12.44089027
B114: Electric heater | C114: 0 | D114: =($C$39*$C11*$D63-SQRT($C$39*$C11)*($D63-$C63))/$D63*D89 -> 0 | E114: 0 | F114: 0 | G114: 0 | H114: 0 | I114: 0 | J114: 0 | K114: 0 | L114: 0 | M114: 0 | N114: 0 | O114: 0 | P114: 0 | Q114: 0 | R114: 0 | S114: 0 | T114: 0 | U114: 0 | V114: 0 | W114: 0 | X114: 0 | Y114: 0 | Z114: 0 | AA114: 0 | AB114: 0 | AC114: 0 | AD114: 0 | AE114: 0 | AF114: 0 | AG114: 0 | AH114: 0 | AI114: 0 | AJ114: 0 | AK114: 0 | AL114: 0 | AM114: 0 | AN114: 0 | AO114: 0 | AP114: 0 | AQ114: 0 | AR114: 0 | AS114: 0 | AT114: 0 | AU114: 0 | AV114: 0 | AW114: 0 | AX114: 0 | AY114: 0 | AZ114: 0 | BA114: 0 | BB114: 0 | BC114: 0 | BD114: 0 | BE114: 0 | BF114: 0 | BG114: 0 | BH114: 0 | BI114: 0 | BJ114: 0 | BK114: 0 | BL114: 0 | BM114: 0 | BN114: 0 | BO114: 0 | BP114: =($C$39*$C11*$D63-SQRT($C$39*$C11)*($D63-$C63))/$D63*BP89 -> 0 | BQ114: 0 | BR114: 0 | BS114: 0 | BT114: 0 | BU114: 0 | BV114: 0 | BW114: 0 | BX114: 0 | BY114: 0 | BZ114: 0 | CA114: 0 | CB114: 0 | CC114: 0 | CD114: 0 | CE114: 0 | CF114: 0 | CG114: 0 | CH114: 0 | CI114: 0 | CJ114: 0 | CK114: 0 | CL114: 0 | CM114: 0 | CN114: 0 | CO114: 0 | CP114: 0 | CQ114: 0 | CR114: 0 | CS114: 0 | CT114: 0 | CU114: 0 | CV114: 0 | CW114: 0 | CX114: 0 | CY114: 0 | CZ114: 0 | DA114: 0 | DB114: 0 | DC114: 0 | DD114: 0 | DE114: 0 | DF114: 0 | DG114: 0 | DH114: 0 | DI114: 0 | DJ114: 0 | DK114: 0 | DL114: 0 | DM114: 0 | DN114: 0 | DO114: 0 | DP114: 0 | DQ114: 0 | DR114: 0 | DS114: 0 | DT114: 0 | DU114: 0 | DV114: 0 | DW114: 0 | DX114: 0 | DY114: 0 | DZ114: 0 | EA114: 0 | EB114: =($C$39*$C11*$D63-SQRT($C$39*$C11)*($D63-$C63))/$D63*EB89 -> 0 | EC114: 0 | ED114: 0 | EE114: 0 | EF114: 0 | EG114: 0 | EH114: 0 | EI114: 0 | EJ114: 0 | EK114: 0 | EL114: 0 | EM114: 0 | EN114: 0 | EO114: 0 | EP114: 0 | EQ114: 0 | ER114: 0 | ES114: 0 | ET114: 0 | EU114: 0 | EV114: 0 | EW114: 0 | EX114: 0 | EY114: 0 | EZ114: 0 | FA114: 0 | FB114: 0 | FC114: 0 | FD114: 0 | FE114: 0 | FF114: 0 | FG114: 0 | FH114: 0 | FI114: 0 | FJ114: 0 | FK114: 0 | FL114: 0 | FM114: 0 | FN114: 0 | FO114: 0 | FP114: 0 | FQ114: 0 | FR114: 0 | FS114: 0 | FT114: 0 | FU114: 0 | FV114: 0 | FW114: 0 | FX114: 0 | FY114: 0 | FZ114: 0 | GA114: 0 | GB114: 0 | GC114: 0 | GD114: 0 | GE114: 0 | GF114: 0 | GG114: 0 | GH114: 0 | GI114: 0 | GJ114: 0 | GK114: 0 | GL114: 0
B115: Ground source heat pump | C115: 0 | D115: =($C$39*$C12*$D64-SQRT($C$39*$C12)*($D64-$C64))/$D64*D90 -> 0 | E115: 0 | F115: 0 | G115: 0 | H115: 0 | I115: 0 | J115: 0 | K115: 0 | L115: 0 | M115: 0 | N115: 0 | O115: 0 | P115: 0 | Q115: 0 | R115: 0 | S115: 0 | T115: 0 | U115: 0 | V115: 0 | W115: 0 | X115: 0 | Y115: 0 | Z115: 0 | AA115: 0 | AB115: 0 | AC115: 0 | AD115: 0 | AE115: 0 | AF115: 0 | AG115: 0 | AH115: 0 | AI115: 0 | AJ115: 0 | AK115: 0 | AL115: 0 | AM115: 0 | AN115: 0 | AO115: 0 | AP115: 0 | AQ115: 0 | AR115: 0 | AS115: 0 | AT115: 0 | AU115: 0 | AV115: 0 | AW115: 0 | AX115: 0 | AY115: 0 | AZ115: 0 | BA115: 0 | BB115: 0 | BC115: 0 | BD115: 0 | BE115: 0 | BF115: 0 | BG115: 0 | BH115: 0 | BI115: 0 | BJ115: 0 | BK115: 0 | BL115: 0 | BM115: 0 | BN115: 0 | BO115: 0 | BP115: =($C$39*$C12*$D64-SQRT($C$39*$C12)*($D64-$C64))/$D64*BP90 -> 0 | BQ115: 0 | BR115: 0 | BS115: 0 | BT115: 0 | BU115: 0 | BV115: 0 | BW115: 0 | BX115: 0 | BY115: 0 | BZ115: 0 | CA115: 0 | CB115: 0 | CC115: 0 | CD115: 0 | CE115: 0 | CF115: 0 | CG115: 0 | CH115: 0 | CI115: 0 | CJ115: 0 | CK115: 0 | CL115: 0 | CM115: 0 | CN115: 0 | CO115: 0 | CP115: 0 | CQ115: 0 | CR115: 0 | CS115: 0 | CT115: 0 | CU115: 0 | CV115: 0 | CW115: 0 | CX115: 0 | CY115: 0 | CZ115: 0 | DA115: 0 | DB115: 0 | DC115: 0 | DD115: 0 | DE115: 0 | DF115: 0 | DG115: 0 | DH115: 0 | DI115: 0 | DJ115: 0 | DK115: 0 | DL115: 0 | DM115: 0 | DN115: 0 | DO115: 0 | DP115: 0 | DQ115: 0 | DR115: 0 | DS115: 0 | DT115: 0 | DU115: 0 | DV115: 0 | DW115: 0 | DX115: 0 | DY115: 0 | DZ115: 0 | EA115: 0 | EB115: =($C$39*$C12*$D64-SQRT($C$39*$C12)*($D64-$C64))/$D64*EB90 -> 0 | EC115: 0 | ED115: 0 | EE115: 0 | EF115: 0 | EG115: 0 | EH115: 0 | EI115: 0 | EJ115: 0 | EK115: 0 | EL115: 0 | EM115: 0 | EN115: 0 | EO115: 0 | EP115: 0 | EQ115: 0 | ER115: 0 | ES115: 0 | ET115: 0 | EU115: 0 | EV115: 0 | EW115: 0 | EX115: 0 | EY115: 0 | EZ115: 0 | FA115: 0 | FB115: 0 | FC115: 0 | FD115: 0 | FE115: 0 | FF115: 0 | FG115: 0 | FH115: 0 | FI115: 0 | FJ115: 0 | FK115: 0 | FL115: 0 | FM115: 0 | FN115: 0 | FO115: 0 | FP115: 0 | FQ115: 0 | FR115: 0 | FS115: 0 | FT115: 0 | FU115: 0 | FV115: 0 | FW115: 0 | FX115: 0 | FY115: 0 | FZ115: 0 | GA115: 0 | GB115: 0 | GC115: 0 | GD115: 0 | GE115: 0 | GF115: 0 | GG115: 0 | GH115: 0 | GI115: 0 | GJ115: 0 | GK115: 0 | GL115: 0
B116: Monovalent heat pump | C116: 0 | D116: =($C$39*$C13*$D65-SQRT($C$39*$C13)*($D65-$C65))/$D65*D91 -> 0 | E116: 0 | F116: 0 | G116: 0 | H116: 0 | I116: 0 | J116: 0 | K116: 0 | L116: 0 | M116: 0 | N116: 0 | O116: 0 | P116: 0 | Q116: 0 | R116: 0 | S116: 0 | T116: 0 | U116: 0 | V116: 0 | W116: 0 | X116: 0 | Y116: 0 | Z116: 0 | AA116: 0 | AB116: 0 | AC116: 0 | AD116: 0 | AE116: 0 | AF116: 0 | AG116: 0 | AH116: 0 | AI116: 0 | AJ116: 0 | AK116: 0 | AL116: 0 | AM116: 0 | AN116: 0 | AO116: 0 | AP116: 0 | AQ116: 0 | AR116: 0 | AS116: 0 | AT116: 0 | AU116: 0 | AV116: 0 | AW116: 0 | AX116: 0 | AY116: 0 | AZ116: 0 | BA116: 0 | BB116: 0 | BC116: 0 | BD116: 0 | BE116: 0 | BF116: 0 | BG116: 0 | BH116: 0 | BI116: 0 | BJ116: 0 | BK116: 0 | BL116: 0 | BM116: 0 | BN116: 0 | BO116: 0 | BP116: =($C$39*$C13*$D65-SQRT($C$39*$C13)*($D65-$C65))/$D65*BP91 -> 0 | BQ116: 0 | BR116: 0 | BS116: 0 | BT116: 0 | BU116: 0 | BV116: 0 | BW116: 0 | BX116: 0 | BY116: 0 | BZ116: 0 | CA116: 0 | CB116: 0 | CC116: 0 | CD116: 0 | CE116: 0 | CF116: 0 | CG116: 0 | CH116: 0 | CI116: 0 | CJ116: 0 | CK116: 0 | CL116: 0 | CM116: 0 | CN116: 0 | CO116: 0 | CP116: 0 | CQ116: 0 | CR116: 0 | CS116: 0 | CT116: 0 | CU116: 0 | CV116: 0 | CW116: 0 | CX116: 0 | CY116: 0 | CZ116: 0 | DA116: 0 | DB116: 0 | DC116: 0 | DD116: 0 | DE116: 0 | DF116: 0 | DG116: 0 | DH116: 0 | DI116: 0 | DJ116: 0 | DK116: 0 | DL116: 0 | DM116: 0 | DN116: 0 | DO116: 0 | DP116: 0 | DQ116: 0 | DR116: 0 | DS116: 0 | DT116: 0 | DU116: 0 | DV116: 0 | DW116: 0 | DX116: 0 | DY116: 0 | DZ116: 0 | EA116: 0 | EB116: =($C$39*$C13*$D65-SQRT($C$39*$C13)*($D65-$C65))/$D65*EB91 -> 0 | EC116: 0 | ED116: 0 | EE116: 0 | EF116: 0 | EG116: 0 | EH116: 0 | EI116: 0 | EJ116: 0 | EK116: 0 | EL116: 0 | EM116: 0 | EN116: 0 | EO116: 0 | EP116: 0 | EQ116: 0 | ER116: 0 | ES116: 0 | ET116: 0 | EU116: 0 | EV116: 0 | EW116: 0 | EX116: 0 | EY116: 0 | EZ116: 0 | FA116: 0 | FB116: 0 | FC116: 0 | FD116: 0 | FE116: 0 | FF116: 0 | FG116: 0 | FH116: 0 | FI116: 0 | FJ116: 0 | FK116: 0 | FL116: 0 | FM116: 0 | FN116: 0 | FO116: 0 | FP116: 0 | FQ116: 0 | FR116: 0 | FS116: 0 | FT116: 0 | FU116: 0 | FV116: 0 | FW116: 0 | FX116: 0 | FY116: 0 | FZ116: 0 | GA116: 0 | GB116: 0 | GC116: 0 | GD116: 0 | GE116: 0 | GF116: 0 | GG116: 0 | GH116: 0 | GI116: 0 | GJ116: 0 | GK116: 0 | GL116: 0
B117: Air conditioning | C117: 0 | D117: =($C$39*$C14*$D66-SQRT($C$39*$C14)*($D66-$C66))/$D66*D92 -> 0 | E117: 0 | F117: 0 | G117: 0 | H117: 0 | I117: 0 | J117: 0 | K117: 0 | L117: 0 | M117: 0 | N117: 0 | O117: 0 | P117: 0 | Q117: 0 | R117: 0 | S117: 0 | T117: 0 | U117: 0 | V117: 0 | W117: 0 | X117: 0 | Y117: 0 | Z117: 0 | AA117: 0 | AB117: 0 | AC117: 0 | AD117: 0 | AE117: 0 | AF117: 0 | AG117: 0 | AH117: 0 | AI117: 0 | AJ117: 0 | AK117: 0 | AL117: 0 | AM117: 0 | AN117: 0 | AO117: 0 | AP117: 0 | AQ117: 0 | AR117: 0 | AS117: 0 | AT117: 0 | AU117: 0 | AV117: 0 | AW117: 0 | AX117: 0 | AY117: 0 | AZ117: 0 | BA117: 0 | BB117: 0 | BC117: 0 | BD117: 0 | BE117: 0 | BF117: 0 | BG117: 0 | BH117: 0 | BI117: 0 | BJ117: 0 | BK117: 0 | BL117: 0 | BM117: 0 | BN117: 0 | BO117: 0 | BP117: =($C$39*$C14*$D66-SQRT($C$39*$C14)*($D66-$C66))/$D66*BP92 -> 0 | BQ117: 0 | BR117: 0 | BS117: 0 | BT117: 0 | BU117: 0 | BV117: 0 | BW117: 0 | BX117: 0 | BY117: 0 | BZ117: 0 | CA117: 0 | CB117: 0 | CC117: 0 | CD117: 0 | CE117: 0 | CF117: 0 | CG117: 0 | CH117: 0 | CI117: 0 | CJ117: 0 | CK117: 0 | CL117: 0 | CM117: 0 | CN117: 0 | CO117: 0 | CP117: 0 | CQ117: 0 | CR117: 0 | CS117: 0 | CT117: 0 | CU117: 0 | CV117: 0 | CW117: 0 | CX117: 0 | CY117: 0 | CZ117: 0 | DA117: 0 | DB117: 0 | DC117: 0 | DD117: 0 | DE117: 0 | DF117: 0 | DG117: 0 | DH117: 0 | DI117: 0 | DJ117: 0 | DK117: 0 | DL117: 0 | DM117: 0 | DN117: 0 | DO117: 0 | DP117: 0 | DQ117: 0 | DR117: 0 | DS117: 0 | DT117: 0 | DU117: 0 | DV117: 0 | DW117: 0 | DX117: 0 | DY117: 0 | DZ117: 0 | EA117: 0 | EB117: =($C$39*$C14*$D66-SQRT($C$39*$C14)*($D66-$C66))/$D66*EB92 -> 0 | EC117: 0 | ED117: 0 | EE117: 0 | EF117: 0 | EG117: 0 | EH117: 0 | EI117: 0 | EJ117: 0 | EK117: 0 | EL117: 0 | EM117: 0 | EN117: 0 | EO117: 0 | EP117: 0 | EQ117: 0 | ER117: 0 | ES117: 0 | ET117: 0 | EU117: 0 | EV117: 0 | EW117: 0 | EX117: 0 | EY117: 0 | EZ117: 0 | FA117: 0 | FB117: 0 | FC117: 0 | FD117: 0 | FE117: 0 | FF117: 0 | FG117: 0 | FH117: 0 | FI117: 0 | FJ117: 0 | FK117: 0 | FL117: 0 | FM117: 0 | FN117: 0 | FO117: 0 | FP117: 0 | FQ117: 0 | FR117: 0 | FS117: 0 | FT117: 0 | FU117: 0 | FV117: 0 | FW117: 0 | FX117: 0 | FY117: 0 | FZ117: 0 | GA117: 0 | GB117: 0 | GC117: 0 | GD117: 0 | GE117: 0 | GF117: 0 | GG117: 0 | GH117: 0 | GI117: 0 | GJ117: 0 | GK117: 0 | GL117: 0
A119: Results
B121: Total power (3-phase, real) [kW]
C122: 00:00:00 | D122: 00:15:00 | E122: 00:30:00 | F122: 00:45:00 | G122: 01:00:00 | H122: 01:15:00 | I122: 01:30:00 | J122: 01:45:00 | K122: 02:00:00 | L122: 02:15:00 | M122: 02:30:00 | N122: 02:45:00 | O122: 03:00:00 | P122: 03:15:00 | Q122: 03:30:00 | R122: 03:45:00 | S122: 04:00:00 | T122: 04:15:00 | U122: 04:30:00 | V122: 04:45:00 | W122: 05:00:00 | X122: 05:15:00 | Y122: 05:30:00 | Z122: 05:45:00 | AA122: 06:00:00 | AB122: 06:15:00 | AC122: 06:30:00 | AD122: 06:45:00 | AE122: 07:00:00 | AF122: 07:15:00 | AG122: 07:30:00 | AH122: 07:45:00 | AI122: 08:00:00 | AJ122: 08:15:00 | AK122: 08:30:00 | AL122: 08:45:00 | AM122: 09:00:00 | AN122: 09:15:00 | AO122: 09:30:00 | AP122: 09:45:00 | AQ122: 10:00:00 | AR122: 10:15:00 | AS122: 10:30:00 | AT122: 10:45:00 | AU122: 11:00:00 | AV122: 11:15:00 | AW122: 11:30:00 | AX122: 11:45:00 | AY122: 12:00:00 | AZ122: 12:15:00 | BA122: 12:30:00 | BB122: 12:45:00 | BC122: 13:00:00 | BD122: 13:15:00 | BE122: 13:30:00 | BF122: 13:45:00 | BG122: 14:00:00 | BH122: 14:15:00 | BI122: 14:30:00 | BJ122: 14:45:00 | BK122: 15:00:00 | BL122: 15:15:00 | BM122: 15:30:00 | BN122: 15:45:00 | BO122: 16:00:00 | BP122: 16:15:00 | BQ122: 16:30:00 | BR122: 16:45:00 | BS122: 17:00:00 | BT122: 17:15:00 | BU122: 17:30:00 | BV122: 17:45:00 | BW122: 18:00:00 | BX122: 18:15:00 | BY122: 18:30:00 | BZ122: 18:45:00 | CA122: 19:00:00 | CB122: 19:15:00 | CC122: 19:30:00 | CD122: 19:45:00 | CE122: 20:00:00 | CF122: 20:15:00 | CG122: 20:30:00 | CH122: 20:45:00 | CI122: 21:00:00 | CJ122: 21:15:00 | CK122: 21:30:00 | CL122: 21:45:00 | CM122: 22:00:00 | CN122: 22:15:00 | CO122: 22:30:00 | CP122: 22:45:00 | CQ122: 23:00:00 | CR122: 23:15:00 | CS122: 23:30:00 | CT122: 23:45:00 | CU122: 00:00:00 | CV122: 00:15:00 | CW122: 00:30:00 | CX122: 00:45:00 | CY122: 01:00:00 | CZ122: 01:15:00 | DA122: 01:30:00 | DB122: 01:45:00 | DC122: 02:00:00 | DD122: 02:15:00 | DE122: 02:30:00 | DF122: 02:45:00 | DG122: 03:00:00 | DH122: 03:15:00 | DI122: 03:30:00 | DJ122: 03:45:00 | DK122: 04:00:00 | DL122: 04:15:00 | DM122: 04:30:00 | DN122: 04:45:00 | DO122: 05:00:00 | DP122: 05:15:00 | DQ122: 05:30:00 | DR122: 05:45:00 | DS122: 06:00:00 | DT122: 06:15:00 | DU122: 06:30:00 | DV122: 06:45:00 | DW122: 07:00:00 | DX122: 07:15:00 | DY122: 07:30:00 | DZ122: 07:45:00 | EA122: 08:00:00 | EB122: 08:15:00 | EC122: 08:30:00 | ED122: 08:45:00 | EE122: 09:00:00 | EF122: 09:15:00 | EG122: 09:30:00 | EH122: 09:45:00 | EI122: 10:00:00 | EJ122: 10:15:00 | EK122: 10:30:00 | EL122: 10:45:00 | EM122: 11:00:00 | EN122: 11:15:00 | EO122: 11:30:00 | EP122: 11:45:00 | EQ122: 12:00:00 | ER122: 12:15:00 | ES122: 12:30:00 | ET122: 12:45:00 | EU122: 13:00:00 | EV122: 13:15:00 | EW122: 13:30:00 | EX122: 13:45:00 | EY122: 14:00:00 | EZ122: 14:15:00 | FA122: 14:30:00 | FB122: 14:45:00 | FC122: 15:00:00 | FD122: 15:15:00 | FE122: 15:30:00 | FF122: 15:45:00 | FG122: 16:00:00 | FH122: 16:15:00 | FI122: 16:30:00 | FJ122: 16:45:00 | FK122: 17:00:00 | FL122: 17:15:00 | FM122: 17:30:00 | FN122: 17:45:00 | FO122: 18:00:00 | FP122: 18:15:00 | FQ122: 18:30:00 | FR122: 18:45:00 | FS122: 19:00:00 | FT122: 19:15:00 | FU122: 19:30:00 | FV122: 19:45:00 | FW122: 20:00:00 | FX122: 20:15:00 | FY122: 20:30:00 | FZ122: 20:45:00 | GA122: 21:00:00 | GB122: 21:15:00 | GC122: 21:30:00 | GD122: 21:45:00 | GE122: 22:00:00 | GF122: 22:15:00 | GG122: 22:30:00 | GH122: 22:45:00 | GI122: 23:00:00 | GJ122: 23:15:00 | GK122: 23:30:00 | GL122: 23:45:00
B123: Transformer | C123: =SUM(C97:C105) -> 29.04668033 | D123: 27.42735627 | E123: 24.66363231 | F123: 23.41555933 | G123: 21.056743 | H123: 19.84894324 | I123: 18.03203087 | J123: 17.10014949 | K123: 15.59498278 | L123: 14.78620985 | M123: 13.98865451 | N123: 13.82498526 | O123: 13.64132039 | P123: 13.61716065 | Q123: 13.20829809 | R123: 12.21271451 | S123: 10.67451023 | T123: 8.603208202 | U123: 6.432697901 | V123: 4.447010001 | W123: 1.113538895 | X123: -2.548644237 | Y123: -6.360762469 | Z123: -8.987419592 | AA123: -12.18978701 | AB123: -15.28626892 | AC123: -18.42340647 | AD123: -21.45997462 | AE123: -24.14404439 | AF123: -27.21472337 | AG123: -28.92898645 | AH123: -31.21366338 | AI123: =SUM(AI97:AI105) -> -31.82137548 | AJ123: -33.18116215 | AK123: -33.48218504 | AL123: -34.48741969 | AM123: -33.78341219 | AN123: -34.63384118 | AO123: -35.343746 | AP123: -36.60360329 | AQ123: -36.84584019 | AR123: -39.12534122 | AS123: -39.05763679 | AT123: -40.1805044 | AU123: -40.17018719 | AV123: -40.33765018 | AW123: -40.12141353 | AX123: -39.41017246 | AY123: -38.53916988 | AZ123: -37.33113358 | BA123: -36.43081502 | BB123: -34.81769342 | BC123: -33.45043932 | BD123: -31.80892484 | BE123: -31.00399503 | BF123: -29.18499274 | BG123: -26.9321076 | BH123: -25.35732839 | BI123: -23.52659653 | BJ123: -21.17740333 | BK123: -18.55366474 | BL123: -15.82334111 | BM123: -12.34660617 | BN123: -9.291731308 | BO123: =SUM(BO97:BO105) -> -6.252698814 | BP123: -3.219285296 | BQ123: 0.924036918 | BR123: 4.791472228 | BS123: 9.018234771 | BT123: 13.04469032 | BU123: 17.31257333 | BV123: 20.83063862 | BW123: 24.35960269 | BX123: 26.4342435 | BY123: 27.2650619 | BZ123: 28.1809774 | CA123: 29.18309479 | CB123: 29.41609636 | CC123: 29.44936301 | CD123: 29.60935343 | CE123: 29.42526342 | CF123: 29.85257112 | CG123: 30.01461033 | CH123: 30.8479072 | CI123: 31.21768015 | CJ123: 31.75930017 | CK123: 32.14446282 | CL123: 32.79860397 | CM123: 33.78525541 | CN123: 34.6193114 | CO123: 35.81632934 | CP123: 36.14505205 | CQ123: 36.43003724 | CR123: 35.71909592 | CS123: 33.7517988 | CT123: 32.15574084 | CU123: =SUM(CU97:CU105) -> 8.42561927 | CV123: 7.337364067 | CW123: 5.742582417 | CX123: 5.088482205 | CY123: 2.385382825 | CZ123: 1.091997664 | DA123: -0.7958303996 | DB123: -1.88199886 | DC123: -3.507010659 | DD123: -4.904506963 | DE123: -6.360459637 | DF123: -7.546529396 | DG123: -8.781718678 | DH123: -9.713503473 | DI123: -10.36912975 | DJ123: -10.91200166 | DK123: -11.7412786 | DL123: -12.79797755 | DM123: -13.75887315 | DN123: -14.79582023 | DO123: -15.84775658 | DP123: -17.02848187 | DQ123: -18.22673048 | DR123: -19.38535563 | DS123: -20.60194965 | DT123: -21.82737795 | DU123: -22.8229667 | DV123: -23.13798303 | DW123: -22.35370869 | DX123: -21.76313974 | DY123: -20.36892904 | DZ123: -20.59554203 | EA123: =SUM(EA97:EA105) -> -21.04238529 | EB123: -21.90000284 | EC123: -21.68738892 | ED123: -22.00390542 | EE123: -20.70736736 | EF123: -21.14763056 | EG123: -20.4910355 | EH123: -20.70993645 | EI123: -19.81189884 | EJ123: -19.81237846 | EK123: -19.25564507 | EL123: -18.35525382 | EM123: -16.98203643 | EN123: -14.88413521 | EO123: -11.62231593 | EP123: -8.577882016 | EQ123: -4.991911126 | ER123: -2.907698892 | ES123: -1.772975239 | ET123: -1.118258548 | EU123: -0.4076156991 | EV123: 0.9651145646 | EW123: 3.146033692 | EX123: 6.253527185 | EY123: 6.627867298 | EZ123: 5.726170738 | FA123: 5.298229708 | FB123: 6.660956975 | FC123: 7.668456637 | FD123: 8.197787059 | FE123: 8.426403429 | FF123: 8.791224847 | FG123: =SUM(FG97:FG105) -> 10.72213918 | FH123: 12.08763811 | FI123: 16.16260769 | FJ123: 19.28056639 | FK123: 25.11296516 | FL123: 27.95909945 | FM123: 31.59685225 | FN123: 32.19388102 | FO123: 31.95310143 | FP123: 31.09219658 | FQ123: 30.06745222 | FR123: 29.58466943 | FS123: 28.91274637 | FT123: 27.85285093 | FU123: 27.09808677 | FV123: 25.98563415 | FW123: 24.36615032 | FX123: 22.55530381 | FY123: 20.40919405 | FZ123: 19.97204788 | GA123: 19.53245691 | GB123: 19.99568096 | GC123: 19.44382787 | GD123: 19.50019293 | GE123: 18.71189787 | GF123: 18.53739304 | GG123: 17.60412727 | GH123: 16.8655513 | GI123: 14.17624235 | GJ123: 13.29576736 | GK123: 10.46831894 | GL123: 9.076966303
B124: Cable | C124: =SUM(C109:C117) -> 14.05263609 | D124: =SUM(D109:D117) -> 13.24817447 | E124: 11.90624599 | F124: 11.2967755 | G124: 10.17299179 | H124: 9.606871217 | I124: 8.757231862 | J124: 8.333399988 | K124: 7.637434912 | L124: 7.268503567 | M124: 6.897841945 | N124: 6.817493553 | O124: 6.717754143 | P124: 6.696801528 | Q124: 6.518942239 | R124: 6.111349561 | S124: 5.484372718 | T124: 4.621333633 | U124: 3.716755491 | V124: 2.903804096 | W124: 1.536743444 | X124: 0.03666901657 | Y124: -1.547604569 | Z124: -2.601542015 | AA124: -3.898431308 | AB124: -5.136237718 | AC124: -6.400682317 | AD124: -7.620637302 | AE124: -8.668735553 | AF124: -9.891319736 | AG124: -10.48043569 | AH124: -11.34136984 | AI124: -11.42564151 | AJ124: -11.89722089 | AK124: -11.87149499 | AL124: -12.20765043 | AM124: -11.74887683 | AN124: -12.03063509 | AO124: -12.23590444 | AP124: -12.74531586 | AQ124: -12.81389168 | AR124: -13.74427756 | AS124: -13.70312431 | AT124: -14.15497697 | AU124: -14.12828548 | AV124: -14.18804516 | AW124: -14.08239543 | AX124: -13.75503854 | AY124: -13.35144496 | AZ124: -12.82406685 | BA124: -12.44791778 | BB124: -11.7683226 | BC124: -11.21736272 | BD124: -10.5545815 | BE124: -10.27539563 | BF124: -9.543144137 | BG124: -8.619668408 | BH124: -8.00394375 | BI124: -7.297186602 | BJ124: -6.357473946 | BK124: -5.28882173 | BL124: -4.1668424 | BM124: -2.721072392 | BN124: -1.460571545 | BO124: -0.2252927656 | BP124: =SUM(BP109:BP117) -> 1.01680359 | BQ124: 2.762544598 | BR124: 4.398417744 | BS124: 6.205387383 | BT124: 7.906500875 | BU124: 9.752351132 | BV124: 11.2539752 | BW124: 12.77275072 | BX124: 13.61112003 | BY124: 13.92011426 | BZ124: 14.27667015 | CA124: 14.70772571 | CB124: 14.79741981 | CC124: 14.79808034 | CD124: 14.85622798 | CE124: 14.75631198 | CF124: 14.91069153 | CG124: 14.92070709 | CH124: 15.2404353 | CI124: 15.35256896 | CJ124: 15.56155416 | CK124: 15.71434799 | CL124: 16.00709419 | CM124: 16.47185982 | CN124: 16.8634978 | CO124: 17.42828032 | CP124: 17.57595399 | CQ124: 17.69377486 | CR124: 17.33000775 | CS124: 16.36359671 | CT124: 15.56740595 | CU124: 5.701432086 | CV124: 5.124345911 | CW124: 4.299468599 | CX124: 3.926707589 | CY124: 2.642288654 | CZ124: 2.02808754 | DA124: 1.139901089 | DB124: 0.6396995717 | DC124: -0.1094829491 | DD124: -0.7348150089 | DE124: -1.382788272 | DF124: -1.903021265 | DG124: -2.456598484 | DH124: -2.870150754 | DI124: -3.161465893 | DJ124: -3.398330966 | DK124: -3.763054267 | DL124: -4.227833595 | DM124: -4.650091017 | DN124: -5.093723807 | DO124: -5.526325363 | DP124: -6.005674262 | DQ124: -6.484164399 | DR124: -6.939343524 | DS124: -7.422531656 | DT124: -7.908242232 | DU124: -8.293466083 | DV124: -8.372371657 | DW124: -7.939208731 | DX124: -7.612740631 | DY124: -6.899074841 | DZ124: -6.895668507 | EA124: -6.925000084 | EB124: =SUM(EB109:EB117) -> -7.162243462 | EC124: -6.890566572 | ED124: -6.885992914 | EE124: -6.134474755 | EF124: -6.219501124 | EG124: -5.800964949 | EH124: -5.810076776 | EI124: -5.312829049 | EJ124: -5.267399383 | EK124: -5.020465912 | EL124: -4.655714976 | EM124: -4.097804772 | EN124: -3.225951058 | EO124: -1.826598404 | EP124: -0.5273615649 | EQ124: 1.045679925 | ER124: 1.90845922 | ES124: 2.343522217 | ET124: 2.560539979 | EU124: 2.822152623 | EV124: 3.384769372 | EW124: 4.300666221 | EX124: 5.573202378 | EY124: 5.701113449 | EZ124: 5.315469693 | FA124: 5.123531189 | FB124: 5.679348748 | FC124: 6.054245871 | FD124: 6.228366029 | FE124: 6.3198327 | FF124: 6.500064801 | FG124: 7.433697932 | FH124: 8.110781276 | FI124: 10.07935329 | FJ124: 11.60095906 | FK124: 14.40082656 | FL124: 15.77365245 | FM124: 17.51109715 | FN124: 17.80633513 | FO124: 17.69652609 | FP124: 17.29881536 | FQ124: 16.82901365 | FR124: 16.62644466 | FS124: 16.34253219 | FT124: 15.88838494 | FU124: 15.57080214 | FV124: 15.07524766 | FW124: 14.32219016 | FX124: 13.46324703 | FY124: 12.41896287 | FZ124: 12.16277132 | GA124: 11.87973353 | GB124: 12.0169197 | GC124: 11.67821642 | GD124: 11.64100958 | GE124: 11.20317309 | GF124: 11.06466929 | GG124: 10.5617597 | GH124: 10.1525196 | GI124: 8.811654282 | GJ124: 8.278190261 | GK124: 6.831537215 | GL124: 6.082934096
